Body name,Service Area,Dept,Capital/Revenue,Expenses Type,Detailed Expenses Type,Transaction number,Expense Code,Date,Amount,Supplier Name,Supplier ID
WANDSWORTH COUNCIL,ASC,SOCIAL SERVICES,Revenue,PRIVATE,EXTERNAL NURSING CARE,589266,152645310,11-Feb-15,"2,435.17", HOPELIT UK LTD,SP0005994
WANDSWORTH COUNCIL,ASC,SOCIAL SERVICES,Revenue,CUSTOMER & CLIENT RECPTS - EXT,CLIENT CONTS EXTERNAL NURSING,589266,152680820,11-Feb-15,-495.80, HOPELIT UK LTD,SP0005994
WANDSWORTH COUNCIL,ASC,SOCIAL SERVICES,Revenue,CUSTOMER & CLIENT RECPTS - EXT,RNCC,589266,152684120,11-Feb-15,-443.57, HOPELIT UK LTD,SP0005994
WANDSWORTH COUNCIL,ASC,SOCIAL SERVICES,Revenue,PRIVATE,EXTERNAL RESIDENTIAL CARE,596194,130245330,19-Feb-15,"4,472.68",229 MITCHAM LANE LTD,SP0000884
WANDSWORTH COUNCIL,ASC,SOCIAL SERVICES,Revenue,PRIVATE,EXTERNAL RESIDENTIAL CARE,596195,130245330,19-Feb-15,"5,237.67",229 MITCHAM LANE LTD,SP0000884
WANDSWORTH COUNCIL,ASC,SOCIAL SERVICES,Revenue,PRIVATE,EXTERNAL RESIDENTIAL CARE,596196,130245330,19-Feb-15,"5,560.07",229 MITCHAM LANE LTD,SP0000884
WANDSWORTH COUNCIL,ASC,SOCIAL SERVICES,Revenue,PRIVATE,EXTERNAL RESIDENTIAL CARE,596197,130245330,19-Feb-15,"5,237.67",229 MITCHAM LANE LTD,SP0000884
WANDSWORTH COUNCIL,ASC,SOCIAL SERVICES,Revenue,PRIVATE,EXTERNAL RESIDENTIAL CARE,596264,130245330,19-Feb-15,"4,472.68",229 MITCHAM LANE LTD,SP0000884
WANDSWORTH COUNCIL,ASC,SOCIAL SERVICES,Revenue,PRIVATE,EXTERNAL RESIDENTIAL CARE,596265,130245330,19-Feb-15,"5,236.12",229 MITCHAM LANE LTD,SP0000884
WANDSWORTH COUNCIL,ASC,SOCIAL SERVICES,Revenue,PRIVATE,EXTERNAL RESIDENTIAL CARE,596266,130245330,19-Feb-15,"5,558.83",229 MITCHAM LANE LTD,SP0000884
WANDSWORTH COUNCIL,ASC,SOCIAL SERVICES,Revenue,PRIVATE,EXTERNAL RESIDENTIAL CARE,596267,130245330,19-Feb-15,"5,236.12",229 MITCHAM LANE LTD,SP0000884
WANDSWORTH COUNCIL,ASC,SOCIAL SERVICES,Revenue,PRIVATE,EXTERNAL RESIDENTIAL CARE,596268,130245330,19-Feb-15,"4,039.84",229 MITCHAM LANE LTD,SP0000884
WANDSWORTH COUNCIL,ASC,SOCIAL SERVICES,Revenue,PRIVATE,EXTERNAL RESIDENTIAL CARE,596269,130245330,19-Feb-15,"4,729.40",229 MITCHAM LANE LTD,SP0000884
WANDSWORTH COUNCIL,ASC,SOCIAL SERVICES,Revenue,PRIVATE,EXTERNAL RESIDENTIAL CARE,596270,130245330,19-Feb-15,"5,020.88",229 MITCHAM LANE LTD,SP0000884
WANDSWORTH COUNCIL,ASC,SOCIAL SERVICES,Revenue,PRIVATE,EXTERNAL RESIDENTIAL CARE,596271,130245330,19-Feb-15,"4,729.40",229 MITCHAM LANE LTD,SP0000884
WANDSWORTH COUNCIL,ASC,SOCIAL SERVICES,Revenue,CUSTOMER & CLIENT RECPTS - EXT,CL CONT EXTERNAL RESIDENTIAL,596195,130280720,19-Feb-15,-353.62,229 MITCHAM LANE LTD,SP0000884
WANDSWORTH COUNCIL,ASC,SOCIAL SERVICES,Revenue,CUSTOMER & CLIENT RECPTS - EXT,CL CONT EXTERNAL RESIDENTIAL,596196,130280720,19-Feb-15,-353.62,229 MITCHAM LANE LTD,SP0000884
WANDSWORTH COUNCIL,ASC,SOCIAL SERVICES,Revenue,CUSTOMER & CLIENT RECPTS - EXT,CL CONT EXTERNAL RESIDENTIAL,596197,130280720,19-Feb-15,-353.62,229 MITCHAM LANE LTD,SP0000884
WANDSWORTH COUNCIL,ASC,SOCIAL SERVICES,Revenue,CUSTOMER & CLIENT RECPTS - EXT,CL CONT EXTERNAL RESIDENTIAL,596265,130280720,19-Feb-15,-353.62,229 MITCHAM LANE LTD,SP0000884
WANDSWORTH COUNCIL,ASC,SOCIAL SERVICES,Revenue,CUSTOMER & CLIENT RECPTS - EXT,CL CONT EXTERNAL RESIDENTIAL,596266,130280720,19-Feb-15,-353.62,229 MITCHAM LANE LTD,SP0000884
WANDSWORTH COUNCIL,ASC,SOCIAL SERVICES,Revenue,CUSTOMER & CLIENT RECPTS - EXT,CL CONT EXTERNAL RESIDENTIAL,596267,130280720,19-Feb-15,-353.62,229 MITCHAM LANE LTD,SP0000884
WANDSWORTH COUNCIL,ASC,SOCIAL SERVICES,Revenue,CUSTOMER & CLIENT RECPTS - EXT,CL CONT EXTERNAL RESIDENTIAL,596269,130280720,19-Feb-15,-319.40,229 MITCHAM LANE LTD,SP0000884
WANDSWORTH COUNCIL,ASC,SOCIAL SERVICES,Revenue,CUSTOMER & CLIENT RECPTS - EXT,CL CONT EXTERNAL RESIDENTIAL,596270,130280720,19-Feb-15,-319.40,229 MITCHAM LANE LTD,SP0000884
WANDSWORTH COUNCIL,ASC,SOCIAL SERVICES,Revenue,CUSTOMER & CLIENT RECPTS - EXT,CL CONT EXTERNAL RESIDENTIAL,596271,130280720,19-Feb-15,-319.40,229 MITCHAM LANE LTD,SP0000884
WANDSWORTH COUNCIL,ASC,SOCIAL SERVICES,Revenue,PRIVATE,EXTERNAL RESIDENTIAL CARE,596272,142045330,19-Feb-15,"5,092.99",229 MITCHAM LANE LTD,SP0000884
WANDSWORTH COUNCIL,ASC,SOCIAL SERVICES,Revenue,PRIVATE,EXTERNAL RESIDENTIAL CARE,596274,142045330,19-Feb-15,"4,600.12",229 MITCHAM LANE LTD,SP0000884
WANDSWORTH COUNCIL,ASC,SOCIAL SERVICES,Revenue,PRIVATE,EXTERNAL RESIDENTIAL CARE,596273,142145330,19-Feb-15,"5,143.69",229 MITCHAM LANE LTD,SP0000884
WANDSWORTH COUNCIL,ASC,SOCIAL SERVICES,Revenue,PRIVATE,EXTERNAL RESIDENTIAL CARE,596275,142145330,19-Feb-15,"4,646.10",229 MITCHAM LANE LTD,SP0000884
WANDSWORTH COUNCIL,ASC,SOCIAL SERVICES,Revenue,CUSTOMER & CLIENT RECPTS - EXT,SECTION 117 CONT,596273,142185630,19-Feb-15,"-1,800.34",229 MITCHAM LANE LTD,SP0000884
WANDSWORTH COUNCIL,ASC,SOCIAL SERVICES,Revenue,CUSTOMER & CLIENT RECPTS - EXT,SECTION 117 CONT,596275,142185630,19-Feb-15,"-1,626.12",229 MITCHAM LANE LTD,SP0000884
WANDSWORTH COUNCIL,CES,CHILDREN'S,Revenue,OTHER AGENCIES,EXTERNAL FOSTERING,585857,376343310,05-Feb-15,"3,407.14",24 SEVEN FOSTERING SERVICES LTD,SP0008435
WANDSWORTH COUNCIL,CES,CHILDREN'S,Revenue,OTHER AGENCIES,EXTERNAL FOSTERING,585858,376343310,05-Feb-15,"3,520.71",24 SEVEN FOSTERING SERVICES LTD,SP0008435
WANDSWORTH COUNCIL,CES,CHILDREN'S,Revenue,OTHER AGENCIES,EXTERNAL FOSTERING,585859,376343310,05-Feb-15,"3,520.71",24 SEVEN FOSTERING SERVICES LTD,SP0008435
WANDSWORTH COUNCIL,NGF CS,ENVIRONMENT & COMMUNITY,Revenue,OTHER AGENCIES,DISBURSEMENTS,588863,120643250,12-Feb-15,"3,700.00",4 BRICK COURT MANAGEMENT LIMITED,SP0007380
WANDSWORTH COUNCIL,NGF CS,ENVIRONMENT & COMMUNITY,Revenue,OTHER AGENCIES,DISBURSEMENTS,588864,120643250,12-Feb-15,"4,175.00",4 BRICK COURT MANAGEMENT LIMITED,SP0007380
WANDSWORTH COUNCIL,NGF CS,ENVIRONMENT & COMMUNITY,Revenue,OTHER AGENCIES,DISBURSEMENTS,598345,120643250,24-Feb-15,500.00,4 BRICK COURT MANAGEMENT LIMITED,SP0007380
WANDSWORTH COUNCIL,NGF CS,ENVIRONMENT & COMMUNITY,Revenue,OTHER AGENCIES,DISBURSEMENTS,598346,120643250,24-Feb-15,"4,850.00",4 BRICK COURT MANAGEMENT LIMITED,SP0007380
WANDSWORTH COUNCIL,NGF CS,ENVIRONMENT & COMMUNITY,Revenue,OTHER AGENCIES,DISBURSEMENTS,598347,120643250,24-Feb-15,425.00,4 BRICK COURT MANAGEMENT LIMITED,SP0007380
WANDSWORTH COUNCIL,NGF CS,ENVIRONMENT & COMMUNITY,Revenue,OTHER AGENCIES,DISBURSEMENTS,598348,120643250,24-Feb-15,"4,100.00",4 BRICK COURT MANAGEMENT LIMITED,SP0007380
WANDSWORTH COUNCIL,NGF CS,ENVIRONMENT & COMMUNITY,Revenue,OTHER AGENCIES,DISBURSEMENTS,599767,120643250,26-Feb-15,"1,170.00",4 BRICK COURT MANAGEMENT LIMITED,SP0007380
WANDSWORTH COUNCIL,CES,ENVIRONMENT & COMMUNITY,Revenue,GRANTS & SUBSCRIPTIONS,CONTRACTS TO VOLUNTARY ORGS,593091,340737550,16-Feb-15,"69,210.75",4 CHILDREN (TRADING) LTD,SP0002728
WANDSWORTH COUNCIL,NGF HS,ENVIRONMENT & COMMUNITY,Revenue,"EQUIPMENT, FURNITURE & MATS","EQUIPMENT, FURNITURE & MATS",594180,470130000,17-Feb-15,"1,286.88",A & B GLASS CO LTD T/A ASSET FINELINE,SP0001733
WANDSWORTH COUNCIL,CES,CHILDREN'S,Revenue,PRIVATE,EXTERNAL DAYCARE,590128,362145290,11-Feb-15,720.00,A BETTER CHOICE DAYCARE,SP0008947
WANDSWORTH COUNCIL,CES,CHILDREN'S,Revenue,PRIVATE,EXTERNAL DAYCARE,601939,362145290,27-Feb-15,780.00,A BETTER CHOICE DAYCARE,SP0008947
WANDSWORTH COUNCIL,NGF CS,ADMINISTRATION,Revenue,PRIVATE,"CONTRACT 6- HWYS, PLAN ETC",20301556,120646170,27-Feb-15,450.00,A S B LAW,2008363
WANDSWORTH COUNCIL,BS,ENVIRONMENT & COMMUNITY,Revenue,INVENTORIES,BUILDING WORKS STORES,589759,6004B0020,11-Feb-15,55.00,A S D METAL SERVICES,SP0003053
WANDSWORTH COUNCIL,BS,ENVIRONMENT & COMMUNITY,Revenue,INVENTORIES,BUILDING WORKS STORES,589759,6004B0020,11-Feb-15,975.00,A S D METAL SERVICES,SP0003053
WANDSWORTH COUNCIL,BS,ENVIRONMENT & COMMUNITY,Revenue,INVENTORIES,BUILDING WORKS STORES,599962,6004B0020,25-Feb-15,288.00,A S D METAL SERVICES,SP0003053
WANDSWORTH COUNCIL,BS,ENVIRONMENT & COMMUNITY,Revenue,INVENTORIES,BUILDING WORKS STORES,599962,6004B0020,25-Feb-15,468.00,A S D METAL SERVICES,SP0003053
WANDSWORTH COUNCIL,BS,ENVIRONMENT & COMMUNITY,Revenue,INVENTORIES,BUILDING WORKS STORES,599962,6004B0020,25-Feb-15,790.00,A S D METAL SERVICES,SP0003053
WANDSWORTH COUNCIL,BS,ENVIRONMENT & COMMUNITY,Revenue,INVENTORIES,BUILDING WORKS STORES,599962,6004B0020,25-Feb-15,"1,794.00",A S D METAL SERVICES,SP0003053
WANDSWORTH COUNCIL,ASC,SOCIAL SERVICES,Revenue,HIRE,HIRE - TRANSPORT,585771,130020410,05-Feb-15,968.00,A STAR TRANSPORT LTD,SP0000866
WANDSWORTH COUNCIL,ASC,SOCIAL SERVICES,Revenue,HIRE,HIRE - TRANSPORT,585783,130020410,05-Feb-15,"1,044.00",A STAR TRANSPORT LTD,SP0000866
WANDSWORTH COUNCIL,ASC,SOCIAL SERVICES,Revenue,HIRE,HIRE - TRANSPORT,585731,130220410,05-Feb-15,628.00,A STAR TRANSPORT LTD,SP0000866
WANDSWORTH COUNCIL,ASC,SOCIAL SERVICES,Revenue,HIRE,HIRE - TRANSPORT,585732,130220410,05-Feb-15,528.00,A STAR TRANSPORT LTD,SP0000866
WANDSWORTH COUNCIL,ASC,SOCIAL SERVICES,Revenue,HIRE,HIRE - TRANSPORT,585733,130220410,05-Feb-15,486.00,A STAR TRANSPORT LTD,SP0000866
WANDSWORTH COUNCIL,ASC,SOCIAL SERVICES,Revenue,HIRE,HIRE - TRANSPORT,585735,130220410,05-Feb-15,790.20,A STAR TRANSPORT LTD,SP0000866
WANDSWORTH COUNCIL,ASC,SOCIAL SERVICES,Revenue,HIRE,HIRE - TRANSPORT,585736,130220410,05-Feb-15,789.90,A STAR TRANSPORT LTD,SP0000866
WANDSWORTH COUNCIL,ASC,SOCIAL SERVICES,Revenue,HIRE,HIRE - TRANSPORT,585737,130220410,05-Feb-15,789.90,A STAR TRANSPORT LTD,SP0000866
WANDSWORTH COUNCIL,ASC,SOCIAL SERVICES,Revenue,HIRE,HIRE - TRANSPORT,585739,130220410,05-Feb-15,468.00,A STAR TRANSPORT LTD,SP0000866
WANDSWORTH COUNCIL,ASC,SOCIAL SERVICES,Revenue,HIRE,HIRE - TRANSPORT,585740,130220410,05-Feb-15,792.00,A STAR TRANSPORT LTD,SP0000866
WANDSWORTH COUNCIL,ASC,SOCIAL SERVICES,Revenue,HIRE,HIRE - TRANSPORT,585743,130220410,05-Feb-15,776.00,A STAR TRANSPORT LTD,SP0000866
WANDSWORTH COUNCIL,ASC,SOCIAL SERVICES,Revenue,HIRE,HIRE - TRANSPORT,585744,130220410,05-Feb-15,"1,120.00",A STAR TRANSPORT LTD,SP0000866
WANDSWORTH COUNCIL,ASC,SOCIAL SERVICES,Revenue,HIRE,HIRE - TRANSPORT,585747,130220410,05-Feb-15,"1,091.00",A STAR TRANSPORT LTD,SP0000866
WANDSWORTH COUNCIL,ASC,SOCIAL SERVICES,Revenue,HIRE,HIRE - TRANSPORT,585748,130220410,05-Feb-15,623.26,A STAR TRANSPORT LTD,SP0000866
WANDSWORTH COUNCIL,ASC,SOCIAL SERVICES,Revenue,HIRE,HIRE - TRANSPORT,585753,130220410,05-Feb-15,436.00,A STAR TRANSPORT LTD,SP0000866
WANDSWORTH COUNCIL,ASC,SOCIAL SERVICES,Revenue,HIRE,HIRE - TRANSPORT,585755,130220410,05-Feb-15,910.00,A STAR TRANSPORT LTD,SP0000866
WANDSWORTH COUNCIL,ASC,SOCIAL SERVICES,Revenue,HIRE,HIRE - TRANSPORT,585757,130220410,05-Feb-15,738.00,A STAR TRANSPORT LTD,SP0000866
WANDSWORTH COUNCIL,ASC,SOCIAL SERVICES,Revenue,HIRE,HIRE - TRANSPORT,585758,130220410,05-Feb-15,474.00,A STAR TRANSPORT LTD,SP0000866
WANDSWORTH COUNCIL,ASC,SOCIAL SERVICES,Revenue,HIRE,HIRE - TRANSPORT,585761,130220410,05-Feb-15,420.00,A STAR TRANSPORT LTD,SP0000866
WANDSWORTH COUNCIL,ASC,SOCIAL SERVICES,Revenue,HIRE,HIRE - TRANSPORT,585762,130220410,05-Feb-15,"1,740.00",A STAR TRANSPORT LTD,SP0000866
WANDSWORTH COUNCIL,ASC,SOCIAL SERVICES,Revenue,HIRE,HIRE - TRANSPORT,585763,130220410,05-Feb-15,500.10,A STAR TRANSPORT LTD,SP0000866
WANDSWORTH COUNCIL,ASC,SOCIAL SERVICES,Revenue,HIRE,HIRE - TRANSPORT,585764,130220410,05-Feb-15,500.10,A STAR TRANSPORT LTD,SP0000866
WANDSWORTH COUNCIL,ASC,SOCIAL SERVICES,Revenue,HIRE,HIRE - TRANSPORT,585765,130220410,05-Feb-15,499.80,A STAR TRANSPORT LTD,SP0000866
WANDSWORTH COUNCIL,ASC,SOCIAL SERVICES,Revenue,HIRE,HIRE - TRANSPORT,585766,130220410,05-Feb-15,575.52,A STAR TRANSPORT LTD,SP0000866
WANDSWORTH COUNCIL,ASC,SOCIAL SERVICES,Revenue,HIRE,HIRE - TRANSPORT,585767,130220410,05-Feb-15,520.00,A STAR TRANSPORT LTD,SP0000866
WANDSWORTH COUNCIL,ASC,SOCIAL SERVICES,Revenue,HIRE,HIRE - TRANSPORT,585768,130220410,05-Feb-15,"1,116.00",A STAR TRANSPORT LTD,SP0000866
WANDSWORTH COUNCIL,ASC,SOCIAL SERVICES,Revenue,HIRE,HIRE - TRANSPORT,585770,130220410,05-Feb-15,750.00,A STAR TRANSPORT LTD,SP0000866
WANDSWORTH COUNCIL,ASC,SOCIAL SERVICES,Revenue,HIRE,HIRE - TRANSPORT,585772,130220410,05-Feb-15,712.71,A STAR TRANSPORT LTD,SP0000866
WANDSWORTH COUNCIL,ASC,SOCIAL SERVICES,Revenue,HIRE,HIRE - TRANSPORT,585773,130220410,05-Feb-15,506.20,A STAR TRANSPORT LTD,SP0000866
WANDSWORTH COUNCIL,ASC,SOCIAL SERVICES,Revenue,HIRE,HIRE - TRANSPORT,585777,130220410,05-Feb-15,814.00,A STAR TRANSPORT LTD,SP0000866
WANDSWORTH COUNCIL,ASC,SOCIAL SERVICES,Revenue,HIRE,HIRE - TRANSPORT,585779,130220410,05-Feb-15,456.00,A STAR TRANSPORT LTD,SP0000866
WANDSWORTH COUNCIL,ASC,SOCIAL SERVICES,Revenue,HIRE,HIRE - TRANSPORT,585780,130220410,05-Feb-15,450.00,A STAR TRANSPORT LTD,SP0000866
WANDSWORTH COUNCIL,ASC,SOCIAL SERVICES,Revenue,HIRE,HIRE - TRANSPORT,585781,130220410,05-Feb-15,648.00,A STAR TRANSPORT LTD,SP0000866
WANDSWORTH COUNCIL,ASC,SOCIAL SERVICES,Revenue,HIRE,HIRE - TRANSPORT,585785,130220410,05-Feb-15,430.35,A STAR TRANSPORT LTD,SP0000866
WANDSWORTH COUNCIL,ASC,SOCIAL SERVICES,Revenue,HIRE,HIRE - TRANSPORT,585802,130220410,05-Feb-15,900.00,A STAR TRANSPORT LTD,SP0000866
WANDSWORTH COUNCIL,ASC,SOCIAL SERVICES,Revenue,HIRE,HIRE - TRANSPORT,589342,130220410,11-Feb-15,960.00,A STAR TRANSPORT LTD,SP0000866
WANDSWORTH COUNCIL,ASC,SOCIAL SERVICES,Revenue,HIRE,HIRE - TRANSPORT,589343,130220410,11-Feb-15,960.00,A STAR TRANSPORT LTD,SP0000866
WANDSWORTH COUNCIL,ASC,SOCIAL SERVICES,Revenue,HIRE,HIRE - TRANSPORT,589344,130220410,11-Feb-15,960.00,A STAR TRANSPORT LTD,SP0000866
WANDSWORTH COUNCIL,ASC,SOCIAL SERVICES,Revenue,HIRE,HIRE - TRANSPORT,589345,130220410,11-Feb-15,960.00,A STAR TRANSPORT LTD,SP0000866
WANDSWORTH COUNCIL,ASC,SOCIAL SERVICES,Revenue,HIRE,HIRE - TRANSPORT,589346,130220410,11-Feb-15,480.00,A STAR TRANSPORT LTD,SP0000866
WANDSWORTH COUNCIL,ASC,SOCIAL SERVICES,Revenue,HIRE,HIRE - TRANSPORT,589347,130220410,11-Feb-15,"1,632.00",A STAR TRANSPORT LTD,SP0000866
WANDSWORTH COUNCIL,ASC,SOCIAL SERVICES,Revenue,HIRE,HIRE - TRANSPORT,589348,130220410,11-Feb-15,"1,728.00",A STAR TRANSPORT LTD,SP0000866
WANDSWORTH COUNCIL,ASC,SOCIAL SERVICES,Revenue,HIRE,HIRE - TRANSPORT,591415,130220410,12-Feb-15,960.00,A STAR TRANSPORT LTD,SP0000866
WANDSWORTH COUNCIL,ASC,SOCIAL SERVICES,Revenue,HIRE,HIRE - TRANSPORT,595194,130220410,18-Feb-15,680.00,A STAR TRANSPORT LTD,SP0000866
WANDSWORTH COUNCIL,ASC,SOCIAL SERVICES,Revenue,HIRE,HIRE - TRANSPORT,595196,130220410,18-Feb-15,"1,360.00",A STAR TRANSPORT LTD,SP0000866
WANDSWORTH COUNCIL,ASC,SOCIAL SERVICES,Revenue,HIRE,HIRE - TRANSPORT,595198,130220410,18-Feb-15,516.70,A STAR TRANSPORT LTD,SP0000866
WANDSWORTH COUNCIL,ASC,SOCIAL SERVICES,Revenue,HIRE,HIRE - TRANSPORT,595199,130220410,18-Feb-15,516.60,A STAR TRANSPORT LTD,SP0000866
WANDSWORTH COUNCIL,ASC,SOCIAL SERVICES,Revenue,HIRE,HIRE - TRANSPORT,595201,130220410,18-Feb-15,"1,360.00",A STAR TRANSPORT LTD,SP0000866
WANDSWORTH COUNCIL,ASC,SOCIAL SERVICES,Revenue,HIRE,HIRE - TRANSPORT,595203,130220410,18-Feb-15,516.70,A STAR TRANSPORT LTD,SP0000866
WANDSWORTH COUNCIL,ASC,SOCIAL SERVICES,Revenue,HIRE,HIRE - TRANSPORT,595204,130220410,18-Feb-15,516.60,A STAR TRANSPORT LTD,SP0000866
WANDSWORTH COUNCIL,ASC,SOCIAL SERVICES,Revenue,HIRE,HIRE - TRANSPORT,595206,130220410,18-Feb-15,680.00,A STAR TRANSPORT LTD,SP0000866
WANDSWORTH COUNCIL,ASC,SOCIAL SERVICES,Revenue,HIRE,HIRE - TRANSPORT,595208,130220410,18-Feb-15,516.70,A STAR TRANSPORT LTD,SP0000866
WANDSWORTH COUNCIL,ASC,SOCIAL SERVICES,Revenue,HIRE,HIRE - TRANSPORT,595209,130220410,18-Feb-15,516.60,A STAR TRANSPORT LTD,SP0000866
WANDSWORTH COUNCIL,ASC,SOCIAL SERVICES,Revenue,HIRE,HIRE - TRANSPORT,595216,130220410,18-Feb-15,500.04,A STAR TRANSPORT LTD,SP0000866
WANDSWORTH COUNCIL,ASC,SOCIAL SERVICES,Revenue,HIRE,HIRE - TRANSPORT,595217,130220410,18-Feb-15,930.06,A STAR TRANSPORT LTD,SP0000866
WANDSWORTH COUNCIL,ASC,SOCIAL SERVICES,Revenue,HIRE,HIRE - TRANSPORT,595218,130220410,18-Feb-15,929.88,A STAR TRANSPORT LTD,SP0000866
WANDSWORTH COUNCIL,ASC,SOCIAL SERVICES,Revenue,HIRE,HIRE - TRANSPORT,595221,130220410,18-Feb-15,484.00,A STAR TRANSPORT LTD,SP0000866
WANDSWORTH COUNCIL,ASC,SOCIAL SERVICES,Revenue,HIRE,HIRE - TRANSPORT,595222,130220410,18-Feb-15,981.92,A STAR TRANSPORT LTD,SP0000866
WANDSWORTH COUNCIL,ASC,SOCIAL SERVICES,Revenue,HIRE,HIRE - TRANSPORT,595223,130220410,18-Feb-15,981.54,A STAR TRANSPORT LTD,SP0000866
WANDSWORTH COUNCIL,ASC,SOCIAL SERVICES,Revenue,HIRE,NEW TRANSPORT CONTRACT,585733,130220430,05-Feb-15,90.00,A STAR TRANSPORT LTD,SP0000866
WANDSWORTH COUNCIL,CES,CHILDREN'S,Revenue,HIRE,HIRE - TRANSPORT,20300242,300720410,04-Feb-15,180.00,A STAR TRANSPORT LTD,2007011
WANDSWORTH COUNCIL,CES,CHILDREN'S,Revenue,HIRE,HIRE - TRANSPORT,20300243,300720410,04-Feb-15,200.00,A STAR TRANSPORT LTD,2007011
WANDSWORTH COUNCIL,CES,CHILDREN'S,Revenue,HIRE,HIRE - TRANSPORT,20300567,300720410,11-Feb-15,40.00,A STAR TRANSPORT LTD,2007011
WANDSWORTH COUNCIL,CES,CHILDREN'S,Revenue,HIRE,HIRE - TRANSPORT,20300242,301320410,04-Feb-15,"18,080.00",A STAR TRANSPORT LTD,2007011
WANDSWORTH COUNCIL,CES,CHILDREN'S,Revenue,HIRE,HIRE - TRANSPORT,20300243,301320410,04-Feb-15,"17,848.00",A STAR TRANSPORT LTD,2007011
WANDSWORTH COUNCIL,CES,CHILDREN'S,Revenue,HIRE,HIRE - TRANSPORT,20300567,301320410,11-Feb-15,"18,004.00",A STAR TRANSPORT LTD,2007011
WANDSWORTH COUNCIL,NGF CS,ENVIRONMENT & COMMUNITY,Revenue,PRIVATE,GENERAL CONTRACT WORK,593982,114145370,18-Feb-15,"7,880.00",AA PROJECTS LTD,SP0008976
WANDSWORTH COUNCIL,NGF CS,ENVIRONMENT & COMMUNITY,Revenue,PRIVATE,GENERAL CONTRACT WORK,593983,114145370,18-Feb-15,"8,240.00",AA PROJECTS LTD,SP0008976
WANDSWORTH COUNCIL,CES,CHILDREN'S,Revenue,GRANTS & SUBSCRIPTIONS,GRANTS EARLY YRS PROVIDRS 3YR+,7015005,220037530,04-Feb-15,"7,240.47",ABACUS EARLY LEARNING NURSERY,2004658
WANDSWORTH COUNCIL,CES,CHILDREN'S,Revenue,GRANTS & SUBSCRIPTIONS,GRANTS EARLY YRS PROVIDRS 4YR+,7015005,220037540,04-Feb-15,"2,302.15",ABACUS EARLY LEARNING NURSERY,2004658
WANDSWORTH COUNCIL,ASC,SOCIAL SERVICES,Revenue,PRIVATE,EXTERNAL RESIDENTIAL CARE,593283,152645330,16-Feb-15,"2,186.84",ABBEY CARE CENTRE T/A BHAKTI SHYAMA CARE,SP0001684
WANDSWORTH COUNCIL,ASC,SOCIAL SERVICES,Revenue,CUSTOMER & CLIENT RECPTS - EXT,CL CONT EXTERNAL RESIDENTIAL,593283,152680720,16-Feb-15,"-1,183.60",ABBEY CARE CENTRE T/A BHAKTI SHYAMA CARE,SP0001684
WANDSWORTH COUNCIL,ASC,SOCIAL SERVICES,Revenue,PRIVATE,EXTERNAL NURSING CARE,593285,152845310,16-Feb-15,"2,839.16",ABBEY CARE CENTRE T/A BHAKTI SHYAMA CARE,SP0001684
WANDSWORTH COUNCIL,ASC,SOCIAL SERVICES,Revenue,PRIVATE,EXTERNAL NURSING CARE,593286,152845310,16-Feb-15,"3,039.16",ABBEY CARE CENTRE T/A BHAKTI SHYAMA CARE,SP0001684
WANDSWORTH COUNCIL,ASC,SOCIAL SERVICES,Revenue,PRIVATE,EXTERNAL NURSING CARE,595062,152845310,18-Feb-15,"2,600.00",ABBEY CARE CENTRE T/A BHAKTI SHYAMA CARE,SP0001684
WANDSWORTH COUNCIL,ASC,SOCIAL SERVICES,Revenue,PRIVATE,EXTERNAL NURSING CARE,595063,152845310,18-Feb-15,"2,940.00",ABBEY CARE CENTRE T/A BHAKTI SHYAMA CARE,SP0001684
WANDSWORTH COUNCIL,ASC,SOCIAL SERVICES,Revenue,PRIVATE,EXTERNAL RESIDENTIAL CARE,593284,152845330,16-Feb-15,"2,395.60",ABBEY CARE CENTRE T/A BHAKTI SHYAMA CARE,SP0001684
WANDSWORTH COUNCIL,ASC,SOCIAL SERVICES,Revenue,CUSTOMER & CLIENT RECPTS - EXT,CL CONT EXTERNAL RESIDENTIAL,593284,152880720,16-Feb-15,-558.04,ABBEY CARE CENTRE T/A BHAKTI SHYAMA CARE,SP0001684
WANDSWORTH COUNCIL,ASC,SOCIAL SERVICES,Revenue,CUSTOMER & CLIENT RECPTS - EXT,CLIENT CONTS EXTERNAL NURSING,593285,152880820,16-Feb-15,-495.80,ABBEY CARE CENTRE T/A BHAKTI SHYAMA CARE,SP0001684
WANDSWORTH COUNCIL,ASC,SOCIAL SERVICES,Revenue,CUSTOMER & CLIENT RECPTS - EXT,CLIENT CONTS EXTERNAL NURSING,593286,152880820,16-Feb-15,-495.80,ABBEY CARE CENTRE T/A BHAKTI SHYAMA CARE,SP0001684
WANDSWORTH COUNCIL,ASC,SOCIAL SERVICES,Revenue,CUSTOMER & CLIENT RECPTS - EXT,CLIENT CONTS EXTERNAL NURSING,595062,152880820,18-Feb-15,-495.80,ABBEY CARE CENTRE T/A BHAKTI SHYAMA CARE,SP0001684
WANDSWORTH COUNCIL,ASC,SOCIAL SERVICES,Revenue,CUSTOMER & CLIENT RECPTS - EXT,CLIENT CONTS EXTERNAL NURSING,595063,152880820,18-Feb-15,-304.60,ABBEY CARE CENTRE T/A BHAKTI SHYAMA CARE,SP0001684
WANDSWORTH COUNCIL,ASC,SOCIAL SERVICES,Revenue,CUSTOMER & CLIENT RECPTS - EXT,RNCC,593285,152884120,16-Feb-15,-443.56,ABBEY CARE CENTRE T/A BHAKTI SHYAMA CARE,SP0001684
WANDSWORTH COUNCIL,ASC,SOCIAL SERVICES,Revenue,CUSTOMER & CLIENT RECPTS - EXT,RNCC,593286,152884120,16-Feb-15,-443.56,ABBEY CARE CENTRE T/A BHAKTI SHYAMA CARE,SP0001684
WANDSWORTH COUNCIL,ASC,SOCIAL SERVICES,Revenue,CUSTOMER & CLIENT RECPTS - EXT,RNCC,595062,152884120,18-Feb-15,-443.56,ABBEY CARE CENTRE T/A BHAKTI SHYAMA CARE,SP0001684
WANDSWORTH COUNCIL,ASC,SOCIAL SERVICES,Revenue,CUSTOMER & CLIENT RECPTS - EXT,RNCC,595063,152884120,18-Feb-15,-443.56,ABBEY CARE CENTRE T/A BHAKTI SHYAMA CARE,SP0001684
WANDSWORTH COUNCIL,ASC,SOCIAL SERVICES,Revenue,PRIVATE,EXTERNAL RESIDENTIAL CARE,585082,142045330,05-Feb-15,"2,440.00",ABBEY HOUSE,SP0001434
WANDSWORTH COUNCIL,ASC,SOCIAL SERVICES,Revenue,PRIVATE,EXTERNAL RESIDENTIAL CARE,585083,142045330,05-Feb-15,"3,200.00",ABBEY HOUSE,SP0001434
WANDSWORTH COUNCIL,ASC,SOCIAL SERVICES,Revenue,PRIVATE,EXTERNAL RESIDENTIAL CARE,585166,152845330,05-Feb-15,"2,554.55",ABBEYFIELD,SP0000609
WANDSWORTH COUNCIL,ASC,SOCIAL SERVICES,Revenue,CUSTOMER & CLIENT RECPTS - EXT,CL CONT EXTERNAL RESIDENTIAL,585166,152880720,05-Feb-15,"-1,308.68",ABBEYFIELD,SP0000609
WANDSWORTH COUNCIL,ASC,SOCIAL SERVICES,Revenue,PRIVATE,EXTERNAL RESIDENTIAL CARE,589235,152245330,11-Feb-15,"3,020.97",ABBEYFIELD (READING) SOCIETY LTD,SP0001101
WANDSWORTH COUNCIL,ASC,SOCIAL SERVICES,Revenue,PRIVATE,EXTERNAL RESIDENTIAL CARE,600470,152245330,25-Feb-15,"2,728.60",ABBEYFIELD (READING) SOCIETY LTD,SP0001101
WANDSWORTH COUNCIL,ASC,SOCIAL SERVICES,Revenue,CUSTOMER & CLIENT RECPTS - EXT,CL CONT EXTERNAL RESIDENTIAL,589235,152280720,11-Feb-15,-834.97,ABBEYFIELD (READING) SOCIETY LTD,SP0001101
WANDSWORTH COUNCIL,ASC,SOCIAL SERVICES,Revenue,CUSTOMER & CLIENT RECPTS - EXT,CL CONT EXTERNAL RESIDENTIAL,600470,152280720,25-Feb-15,-754.16,ABBEYFIELD (READING) SOCIETY LTD,SP0001101
WANDSWORTH COUNCIL,NGF HS,ENVIRONMENT & COMMUNITY,Revenue,"EQUIPMENT, FURNITURE & MATS","EQUIPMENT, FURNITURE & MATS",583269,470130000,03-Feb-15,595.45,ABBOTT BUILDERS,SP0004182
WANDSWORTH COUNCIL,NGF HS,ENVIRONMENT & COMMUNITY,Revenue,"EQUIPMENT, FURNITURE & MATS","EQUIPMENT, FURNITURE & MATS",583270,470130000,03-Feb-15,"1,379.03",ABBOTT BUILDERS,SP0004182
WANDSWORTH COUNCIL,NGF HS,ENVIRONMENT & COMMUNITY,Revenue,"EQUIPMENT, FURNITURE & MATS","EQUIPMENT, FURNITURE & MATS",594181,470130000,17-Feb-15,"4,281.96",ABBOTT BUILDERS,SP0004182
WANDSWORTH COUNCIL,CS,ENVIRONMENT & COMMUNITY,Revenue,HEALTH,THIRD PARTY PYMT - HEALTH,582835,128041130,03-Feb-15,"1,312.50",ABC DRUGSTORE FH098,SP0005023
WANDSWORTH COUNCIL,CS,ENVIRONMENT & COMMUNITY,Revenue,HEALTH,THIRD PARTY PYMT - HEALTH,582836,128041130,03-Feb-15,"1,397.00",ABC PHARMACY FGT10,SP0008446
WANDSWORTH COUNCIL,CS,ENVIRONMENT & COMMUNITY,Revenue,HEALTH,THIRD PARTY PYMT - HEALTH,593956,128041130,18-Feb-15,"1,313.50",ABC PHARMACY FGT10,SP0008446
WANDSWORTH COUNCIL,CS,ENVIRONMENT & COMMUNITY,Revenue,HEALTH,THIRD PARTY PYMT - HEALTH,582831,128041130,03-Feb-15,976.00,ABC PHARMACY FML18 T/A DAY LEWIS PHARMAC,SP0008445
WANDSWORTH COUNCIL,CRS,ENVIRONMENT & COMMUNITY,Revenue,PRIVATE,GENERAL CONTRACT WORK,582842,38334537K04929,05-Feb-15,"1,800.00",ABRAXUS LIGHTING,SP0009083
WANDSWORTH COUNCIL,PH,ENVIRONMENT & COMMUNITY,Revenue,OTHER AGENCIES,THIRD PARTY PYMT - OTH AGENCIE,584246,334943800,04-Feb-15,"3,760.00",ABSTRAKTION LTD,SP0006901
WANDSWORTH COUNCIL,NGF HS,ENVIRONMENT & COMMUNITY,Revenue,INDIRECT,TRAINING - APPROVED QUALS,602038,408500760,27-Feb-15,640.00,ACADEMY FOR DISTANCE LEARNING,SP0009251
WANDSWORTH COUNCIL,NGF HS,ENVIRONMENT & COMMUNITY,Revenue,"EQUIPMENT, FURNITURE & MATS","EQUIPMENT, FURNITURE & MATS",600045,470130000,25-Feb-15,"1,300.00",ACCESS AUTOMATION LTD,SP0005650
WANDSWORTH COUNCIL,NGF HS,ENVIRONMENT & COMMUNITY,Revenue,"EQUIPMENT, FURNITURE & MATS","EQUIPMENT, FURNITURE & MATS",600046,470130000,25-Feb-15,825.00,ACCESS AUTOMATION LTD,SP0005650
WANDSWORTH COUNCIL,CES,CHILDREN'S,Revenue,HIRE,HIRE - TRANSPORT,20300555,301320410,11-Feb-15,"3,568.00",ACCESS MOBILITY TRANSPORT LTD,2017607
WANDSWORTH COUNCIL,CES,CHILDREN'S,Revenue,HIRE,HIRE - TRANSPORT,20300568,301320410,11-Feb-15,"3,582.00",ACCESS MOBILITY TRANSPORT LTD,2017607
WANDSWORTH COUNCIL,CES,CHILDREN'S,Revenue,DIRECT,CLIENT TRAVEL EXPENSES,585880,361250340,05-Feb-15,490.00,ACCESS MOBILITY TRANSPORT LTD,SP0005825
WANDSWORTH COUNCIL,CES,CHILDREN'S,Revenue,DIRECT,CLIENT TRAVEL EXPENSES,588439,361250340,10-Feb-15,490.00,ACCESS MOBILITY TRANSPORT LTD,SP0005825
WANDSWORTH COUNCIL,CES,CHILDREN'S,Revenue,DIRECT,CLIENT TRAVEL EXPENSES,592763,361250340,16-Feb-15,490.00,ACCESS MOBILITY TRANSPORT LTD,SP0005825
WANDSWORTH COUNCIL,CES,CHILDREN'S,Revenue,DIRECT,CLIENT TRAVEL EXPENSES,597994,361250340,20-Feb-15,490.00,ACCESS MOBILITY TRANSPORT LTD,SP0005825
WANDSWORTH COUNCIL,CES,CHILDREN'S,Revenue,DIRECT,CLIENT TRAVEL EXPENSES,597999,361250340,20-Feb-15,490.00,ACCESS MOBILITY TRANSPORT LTD,SP0005825
WANDSWORTH COUNCIL,CES,CHILDREN'S,Revenue,DIRECT,CLIENT TRAVEL EXPENSES,599054,361250340,24-Feb-15,490.00,ACCESS MOBILITY TRANSPORT LTD,SP0005825
WANDSWORTH COUNCIL,CES,CHILDREN'S,Revenue,HIRE,HIRE - TRANSPORT,600630,367020410,25-Feb-15,434.00,ACCESS MOBILITY TRANSPORT LTD,SP0005825
WANDSWORTH COUNCIL,CES,CHILDREN'S,Revenue,HIRE,HIRE - TRANSPORT,600634,367020410,25-Feb-15,496.00,ACCESS MOBILITY TRANSPORT LTD,SP0005825
WANDSWORTH COUNCIL,CES,CHILDREN'S,Revenue,HIRE,HIRE - TRANSPORT,602000,367020410,27-Feb-15,496.00,ACCESS MOBILITY TRANSPORT LTD,SP0005825
WANDSWORTH COUNCIL,BS,HOUSING,CAPITAL,COUNCIL DWELLINGS,HRA REPAIRS & IMPROVEMENTS,587813,7004C001J6232D,09-Feb-15,"75,692.82",ACCLAIM CONTRACTS LTD,SP0000242
WANDSWORTH COUNCIL,BS,CHILDREN'S,CAPITAL,OTHER LAND & BUILDINGS,SCHOOLS PRIMARY BLDNGS - OLAB,20300910,7004C014J1366D,27-Feb-15,"6,808.61",ACCLAIM CONTRACTS LTD,2001285
WANDSWORTH COUNCIL,NGF HS,ENVIRONMENT & COMMUNITY,Revenue,CLEANING & DOMESTIC SUPPLIES,HOMELESS INITIATIVE CLEANING,586856,4FB413000,09-Feb-15,"11,755.67",ACCURO ENVIRONMENTAL LTD,SP0005346
WANDSWORTH COUNCIL,ASC,SOCIAL SERVICES,Revenue,PRIVATE,EXTERNAL RESIDENTIAL CARE,585106,130245330,05-Feb-15,"8,532.57",ACH OF LONDON LLP,SP0001688
WANDSWORTH COUNCIL,ASC,SOCIAL SERVICES,Revenue,PRIVATE,EXTERNAL RESIDENTIAL CARE,585107,130245330,05-Feb-15,"5,095.91",ACH OF LONDON LLP,SP0001688
WANDSWORTH COUNCIL,ASC,SOCIAL SERVICES,Revenue,PRIVATE,EXTERNAL RESIDENTIAL CARE,591564,130245330,12-Feb-15,"7,706.84",ACH OF LONDON LLP,SP0001688
WANDSWORTH COUNCIL,ASC,SOCIAL SERVICES,Revenue,PRIVATE,EXTERNAL RESIDENTIAL CARE,591565,130245330,12-Feb-15,"4,602.76",ACH OF LONDON LLP,SP0001688
WANDSWORTH COUNCIL,ASC,SOCIAL SERVICES,Revenue,PRIVATE,ONE TO ONE CARE,585809,130246220,05-Feb-15,"2,018.10",ACH OF LONDON LLP,SP0001688
WANDSWORTH COUNCIL,ASC,SOCIAL SERVICES,Revenue,PRIVATE,ONE TO ONE CARE,591426,130246220,12-Feb-15,"1,822.80",ACH OF LONDON LLP,SP0001688
WANDSWORTH COUNCIL,ASC,SOCIAL SERVICES,Revenue,CUSTOMER & CLIENT RECPTS - EXT,CL CONT EXTERNAL RESIDENTIAL,585106,130280720,05-Feb-15,-145.92,ACH OF LONDON LLP,SP0001688
WANDSWORTH COUNCIL,ASC,SOCIAL SERVICES,Revenue,CUSTOMER & CLIENT RECPTS - EXT,CL CONT EXTERNAL RESIDENTIAL,585107,130280720,05-Feb-15,-439.75,ACH OF LONDON LLP,SP0001688
WANDSWORTH COUNCIL,ASC,SOCIAL SERVICES,Revenue,CUSTOMER & CLIENT RECPTS - EXT,CL CONT EXTERNAL RESIDENTIAL,591564,130280720,12-Feb-15,-131.80,ACH OF LONDON LLP,SP0001688
WANDSWORTH COUNCIL,ASC,SOCIAL SERVICES,Revenue,CUSTOMER & CLIENT RECPTS - EXT,CL CONT EXTERNAL RESIDENTIAL,591565,130280720,12-Feb-15,-397.20,ACH OF LONDON LLP,SP0001688
WANDSWORTH COUNCIL,CES,CHILDREN'S,Revenue,OTH LA,SPECIAL SCHOOL ADD SUPPORT,20300419,221444560,13-Feb-15,"4,692.40",ACHIEVING FOR CHILDREN LTD,2019211
WANDSWORTH COUNCIL,CES,CHILDREN'S,Revenue,OTH LA,SPECIAL SCHOOL ADD SUPPORT,20300420,221444560,13-Feb-15,"2,578.56",ACHIEVING FOR CHILDREN LTD,2019211
WANDSWORTH COUNCIL,CES,CHILDREN'S,Revenue,OTH LA,SPECIAL SCHOOL ADD SUPPORT,20300421,221444560,13-Feb-15,"5,342.11",ACHIEVING FOR CHILDREN LTD,2019211
WANDSWORTH COUNCIL,CES,CHILDREN'S,Revenue,OTH LA,SPECIAL SCHOOL ADD SUPPORT,20300422,221444560,13-Feb-15,"11,458.18",ACHIEVING FOR CHILDREN LTD,2019211
WANDSWORTH COUNCIL,CES,CHILDREN'S,Revenue,OTH LA,SPECIAL SCHOOL ADD SUPPORT,20300423,221444560,13-Feb-15,"8,516.22",ACHIEVING FOR CHILDREN LTD,2019211
WANDSWORTH COUNCIL,CES,CHILDREN'S,Revenue,OTH LA,SPECIAL SCHOOL ADD SUPPORT,20300424,221444560,13-Feb-15,"3,970.49",ACHIEVING FOR CHILDREN LTD,2019211
WANDSWORTH COUNCIL,CES,CHILDREN'S,Revenue,OTH LA,FEES & CHARGES OTHER LA,20300418,221444570,13-Feb-15,"7,705.18",ACHIEVING FOR CHILDREN LTD,2019211
WANDSWORTH COUNCIL,CES,CHILDREN'S,Revenue,OTH LA,FEES & CHARGES OTHER LA,20300425,221444570,13-Feb-15,"13,174.20",ACHIEVING FOR CHILDREN LTD,2019211
WANDSWORTH COUNCIL,NGF HS,ENVIRONMENT & COMMUNITY,Revenue,OTHER AGENCIES,CO-OP INTEREST ALLOWANCE,586803,405243680,06-Feb-15,849.43,ACKROYDON EAST TMO LTD A/C 70154377,SP0003055
WANDSWORTH COUNCIL,ASC,SOCIAL SERVICES,Revenue,PRIVATE,EXTERNAL NURSING CARE,593287,152245310,16-Feb-15,"2,839.84",ACORN LODGE LIMITED,SP0001612
WANDSWORTH COUNCIL,ASC,SOCIAL SERVICES,Revenue,CUSTOMER & CLIENT RECPTS - EXT,CLIENT CONTS EXTERNAL NURSING,593287,152280820,16-Feb-15,-495.80,ACORN LODGE LIMITED,SP0001612
WANDSWORTH COUNCIL,ASC,SOCIAL SERVICES,Revenue,CUSTOMER & CLIENT RECPTS - EXT,RNCC,593287,152284120,16-Feb-15,-443.56,ACORN LODGE LIMITED,SP0001612
WANDSWORTH COUNCIL,NGF CS,FINANCE,Revenue,"REPAIRS, ALTERATIONS & MTCE","REPS, ALTS & MTCE-BUILDINGS",599933,47611000L08301,25-Feb-15,737.55,ACR LONDON LTD,SP0000193
WANDSWORTH COUNCIL,NGF HTS,FINANCE,Revenue,"REPAIRS, ALTERATIONS & MTCE","REPS, ALTS & MTCE-BUILDINGS",581863,477010000,02-Feb-15,810.77,ACR LONDON LTD,SP0000193
WANDSWORTH COUNCIL,NGF CS,FINANCE,Revenue,"REPAIRS, ALTERATIONS & MTCE","REPS, ALTS & MTCE-BUILDINGS",596673,47611000L08224,19-Feb-15,500.00,ACS WINDOWS,SP0006912
WANDSWORTH COUNCIL,ASC,SOCIAL SERVICES,Revenue,OTHER AGENCIES,EXTERNAL OUTREACH,599016,130243330,24-Feb-15,600.00,ACT TOO LTD,SP0000855
WANDSWORTH COUNCIL,ASC,SOCIAL SERVICES,Revenue,PRIVATE,EXTERNAL DAYCARE,585570,130245290,05-Feb-15,554.04,ACT TOO LTD,SP0000855
WANDSWORTH COUNCIL,ASC,SOCIAL SERVICES,Revenue,PRIVATE,EXTERNAL DAYCARE,585571,130245290,05-Feb-15,554.04,ACT TOO LTD,SP0000855
WANDSWORTH COUNCIL,ASC,SOCIAL SERVICES,Revenue,PRIVATE,EXTERNAL DAYCARE,585572,130245290,05-Feb-15,"1,108.08",ACT TOO LTD,SP0000855
WANDSWORTH COUNCIL,ASC,SOCIAL SERVICES,Revenue,PRIVATE,EXTERNAL DAYCARE,585575,130245290,05-Feb-15,554.04,ACT TOO LTD,SP0000855
WANDSWORTH COUNCIL,ASC,SOCIAL SERVICES,Revenue,PRIVATE,EXTERNAL DAYCARE,585577,130245290,05-Feb-15,738.72,ACT TOO LTD,SP0000855
WANDSWORTH COUNCIL,ASC,SOCIAL SERVICES,Revenue,PRIVATE,EXTERNAL DAYCARE,585583,130245290,05-Feb-15,554.04,ACT TOO LTD,SP0000855
WANDSWORTH COUNCIL,ASC,SOCIAL SERVICES,Revenue,PRIVATE,EXTERNAL DAYCARE,585584,130245290,05-Feb-15,554.04,ACT TOO LTD,SP0000855
WANDSWORTH COUNCIL,ASC,SOCIAL SERVICES,Revenue,PRIVATE,EXTERNAL DAYCARE,585585,130245290,05-Feb-15,738.72,ACT TOO LTD,SP0000855
WANDSWORTH COUNCIL,ASC,SOCIAL SERVICES,Revenue,PRIVATE,EXTERNAL DAYCARE,585586,130245290,05-Feb-15,923.40,ACT TOO LTD,SP0000855
WANDSWORTH COUNCIL,ASC,SOCIAL SERVICES,Revenue,PRIVATE,EXTERNAL DAYCARE,585587,130245290,05-Feb-15,738.72,ACT TOO LTD,SP0000855
WANDSWORTH COUNCIL,ASC,SOCIAL SERVICES,Revenue,PRIVATE,EXTERNAL DAYCARE,585588,130245290,05-Feb-15,738.72,ACT TOO LTD,SP0000855
WANDSWORTH COUNCIL,ASC,SOCIAL SERVICES,Revenue,PRIVATE,EXTERNAL DAYCARE,585591,130245290,05-Feb-15,554.04,ACT TOO LTD,SP0000855
WANDSWORTH COUNCIL,ASC,SOCIAL SERVICES,Revenue,PRIVATE,EXTERNAL DAYCARE,585598,130245290,05-Feb-15,554.04,ACT TOO LTD,SP0000855
WANDSWORTH COUNCIL,ASC,SOCIAL SERVICES,Revenue,PRIVATE,EXTERNAL DAYCARE,585599,130245290,05-Feb-15,738.72,ACT TOO LTD,SP0000855
WANDSWORTH COUNCIL,ASC,SOCIAL SERVICES,Revenue,PRIVATE,EXTERNAL DAYCARE,585602,130245290,05-Feb-15,554.04,ACT TOO LTD,SP0000855
WANDSWORTH COUNCIL,ASC,SOCIAL SERVICES,Revenue,PRIVATE,EXTERNAL DAYCARE,585603,130245290,05-Feb-15,554.04,ACT TOO LTD,SP0000855
WANDSWORTH COUNCIL,ASC,SOCIAL SERVICES,Revenue,PRIVATE,EXTERNAL DAYCARE,585604,130245290,05-Feb-15,"1,108.08",ACT TOO LTD,SP0000855
WANDSWORTH COUNCIL,ASC,SOCIAL SERVICES,Revenue,PRIVATE,EXTERNAL DAYCARE,585607,130245290,05-Feb-15,554.04,ACT TOO LTD,SP0000855
WANDSWORTH COUNCIL,ASC,SOCIAL SERVICES,Revenue,PRIVATE,EXTERNAL DAYCARE,585608,130245290,05-Feb-15,554.04,ACT TOO LTD,SP0000855
WANDSWORTH COUNCIL,ASC,SOCIAL SERVICES,Revenue,PRIVATE,EXTERNAL DAYCARE,585609,130245290,05-Feb-15,923.40,ACT TOO LTD,SP0000855
WANDSWORTH COUNCIL,ASC,SOCIAL SERVICES,Revenue,PRIVATE,EXTERNAL DAYCARE,585611,130245290,05-Feb-15,554.04,ACT TOO LTD,SP0000855
WANDSWORTH COUNCIL,ASC,SOCIAL SERVICES,Revenue,PRIVATE,EXTERNAL DAYCARE,585614,130245290,05-Feb-15,554.04,ACT TOO LTD,SP0000855
WANDSWORTH COUNCIL,ASC,SOCIAL SERVICES,Revenue,PRIVATE,EXTERNAL DAYCARE,585620,130245290,05-Feb-15,923.40,ACT TOO LTD,SP0000855
WANDSWORTH COUNCIL,ASC,SOCIAL SERVICES,Revenue,PRIVATE,EXTERNAL DAYCARE,585623,130245290,05-Feb-15,554.04,ACT TOO LTD,SP0000855
WANDSWORTH COUNCIL,ASC,SOCIAL SERVICES,Revenue,PRIVATE,EXTERNAL DAYCARE,585627,130245290,05-Feb-15,554.04,ACT TOO LTD,SP0000855
WANDSWORTH COUNCIL,ASC,SOCIAL SERVICES,Revenue,PRIVATE,EXTERNAL DAYCARE,585628,130245290,05-Feb-15,554.04,ACT TOO LTD,SP0000855
WANDSWORTH COUNCIL,ASC,SOCIAL SERVICES,Revenue,PRIVATE,EXTERNAL DAYCARE,585631,130245290,05-Feb-15,738.72,ACT TOO LTD,SP0000855
WANDSWORTH COUNCIL,ASC,SOCIAL SERVICES,Revenue,PRIVATE,EXTERNAL DAYCARE,585632,130245290,05-Feb-15,554.04,ACT TOO LTD,SP0000855
WANDSWORTH COUNCIL,ASC,SOCIAL SERVICES,Revenue,PRIVATE,EXTERNAL DAYCARE,585634,130245290,05-Feb-15,923.40,ACT TOO LTD,SP0000855
WANDSWORTH COUNCIL,ASC,SOCIAL SERVICES,Revenue,PRIVATE,EXTERNAL DAYCARE,585637,130245290,05-Feb-15,554.04,ACT TOO LTD,SP0000855
WANDSWORTH COUNCIL,ASC,SOCIAL SERVICES,Revenue,PRIVATE,EXTERNAL DAYCARE,597139,130245290,19-Feb-15,554.04,ACT TOO LTD,SP0000855
WANDSWORTH COUNCIL,ASC,SOCIAL SERVICES,Revenue,PRIVATE,EXTERNAL DAYCARE,597140,130245290,19-Feb-15,554.04,ACT TOO LTD,SP0000855
WANDSWORTH COUNCIL,ASC,SOCIAL SERVICES,Revenue,VOL ASS,SUPPORTED HOUSING PROGRAMME,585814,130248030,05-Feb-15,"1,350.00",ACT TOO LTD,SP0000855
WANDSWORTH COUNCIL,ASC,SOCIAL SERVICES,Revenue,VOL ASS,SUPPORTED HOUSING PROGRAMME,585816,130248030,05-Feb-15,"1,800.00",ACT TOO LTD,SP0000855
WANDSWORTH COUNCIL,ASC,SOCIAL SERVICES,Revenue,VOL ASS,SUPPORTED HOUSING PROGRAMME,585818,130248030,05-Feb-15,"1,800.00",ACT TOO LTD,SP0000855
WANDSWORTH COUNCIL,ASC,SOCIAL SERVICES,Revenue,VOL ASS,SUPPORTED HOUSING PROGRAMME,585819,130248030,05-Feb-15,"1,800.00",ACT TOO LTD,SP0000855
WANDSWORTH COUNCIL,ASC,SOCIAL SERVICES,Revenue,VOL ASS,SUPPORTED HOUSING PROGRAMME,585820,130248030,05-Feb-15,"1,800.00",ACT TOO LTD,SP0000855
WANDSWORTH COUNCIL,ASC,SOCIAL SERVICES,Revenue,VOL ASS,SUPPORTED HOUSING PROGRAMME,585821,130248030,05-Feb-15,588.00,ACT TOO LTD,SP0000855
WANDSWORTH COUNCIL,ASC,SOCIAL SERVICES,Revenue,VOL ASS,SUPPORTED HOUSING PROGRAMME,585822,130248030,05-Feb-15,784.00,ACT TOO LTD,SP0000855
WANDSWORTH COUNCIL,ASC,SOCIAL SERVICES,Revenue,VOL ASS,SUPPORTED HOUSING PROGRAMME,585823,130248030,05-Feb-15,784.00,ACT TOO LTD,SP0000855
WANDSWORTH COUNCIL,ASC,SOCIAL SERVICES,Revenue,VOL ASS,SUPPORTED HOUSING PROGRAMME,585824,130248030,05-Feb-15,784.00,ACT TOO LTD,SP0000855
WANDSWORTH COUNCIL,ASC,SOCIAL SERVICES,Revenue,VOL ASS,SUPPORTED HOUSING PROGRAMME,585825,130248030,05-Feb-15,784.00,ACT TOO LTD,SP0000855
WANDSWORTH COUNCIL,ASC,SOCIAL SERVICES,Revenue,VOL ASS,SUPPORTED HOUSING PROGRAMME,596328,130248030,19-Feb-15,"3,000.00",ACT TOO LTD,SP0000855
WANDSWORTH COUNCIL,ASC,SOCIAL SERVICES,Revenue,VOL ASS,SUPPORTED HOUSING PROGRAMME,597184,130248030,19-Feb-15,554.04,ACT TOO LTD,SP0000855
WANDSWORTH COUNCIL,ASC,SOCIAL SERVICES,Revenue,VOL ASS,SUPPORTED HOUSING PROGRAMME,597187,130248030,19-Feb-15,765.00,ACT TOO LTD,SP0000855
WANDSWORTH COUNCIL,ASC,SOCIAL SERVICES,Revenue,VOL ASS,SUPPORTED HOUSING PROGRAMME,597188,130248030,19-Feb-15,700.00,ACT TOO LTD,SP0000855
WANDSWORTH COUNCIL,ASC,SOCIAL SERVICES,Revenue,VOL ASS,SUPPORTED HOUSING PROGRAMME,597194,130248030,19-Feb-15,"1,568.00",ACT TOO LTD,SP0000855
WANDSWORTH COUNCIL,ASC,SOCIAL SERVICES,Revenue,VOL ASS,SUPPORTED HOUSING PROGRAMME,597195,130248030,19-Feb-15,784.00,ACT TOO LTD,SP0000855
WANDSWORTH COUNCIL,ASC,SOCIAL SERVICES,Revenue,VOL ASS,SUPPORTED HOUSING PROGRAMME,597196,130248030,19-Feb-15,620.76,ACT TOO LTD,SP0000855
WANDSWORTH COUNCIL,ASC,SOCIAL SERVICES,Revenue,VOL ASS,SUPPORTED HOUSING PROGRAMME,599003,130248030,24-Feb-15,554.04,ACT TOO LTD,SP0000855
WANDSWORTH COUNCIL,ASC,SOCIAL SERVICES,Revenue,VOL ASS,SUPPORTED HOUSING PROGRAMME,599006,130248030,24-Feb-15,600.00,ACT TOO LTD,SP0000855
WANDSWORTH COUNCIL,ASC,SOCIAL SERVICES,Revenue,VOL ASS,SUPPORTED HOUSING PROGRAMME,599007,130248030,24-Feb-15,"1,260.00",ACT TOO LTD,SP0000855
WANDSWORTH COUNCIL,ASC,SOCIAL SERVICES,Revenue,VOL ASS,SUPPORTED HOUSING PROGRAMME,599008,130248030,24-Feb-15,"11,760.00",ACT TOO LTD,SP0000855
WANDSWORTH COUNCIL,ASC,SOCIAL SERVICES,Revenue,VOL ASS,SUPPORTED HOUSING PROGRAMME,599009,130248030,24-Feb-15,"1,800.00",ACT TOO LTD,SP0000855
WANDSWORTH COUNCIL,ASC,SOCIAL SERVICES,Revenue,VOL ASS,SUPPORTED HOUSING PROGRAMME,599012,130248030,24-Feb-15,"1,320.00",ACT TOO LTD,SP0000855
WANDSWORTH COUNCIL,ASC,SOCIAL SERVICES,Revenue,VOL ASS,SUPPORTED HOUSING PROGRAMME,599013,130248030,24-Feb-15,"1,350.00",ACT TOO LTD,SP0000855
WANDSWORTH COUNCIL,ASC,SOCIAL SERVICES,Revenue,VOL ASS,SUPPORTED HOUSING PROGRAMME,599017,130248030,24-Feb-15,"1,440.00",ACT TOO LTD,SP0000855
WANDSWORTH COUNCIL,CES,CHILDREN'S,Revenue,PRIVATE,EXTERNAL RESIDENTIAL CARE,590166,376345330,11-Feb-15,"1,868.51",ACT TOO LTD,SP0000855
WANDSWORTH COUNCIL,ASC,SOCIAL SERVICES,Revenue,OTHER AGENCIES,EXTERNAL OUTREACH,591451,140543330,12-Feb-15,940.56,ACTION ON HEARING LOSS,SP0000563
WANDSWORTH COUNCIL,ASC,SOCIAL SERVICES,Revenue,OTHER AGENCIES,EXTERNAL OUTREACH,591452,140543330,12-Feb-15,940.56,ACTION ON HEARING LOSS,SP0000563
WANDSWORTH COUNCIL,ASC,SOCIAL SERVICES,Revenue,OTHER AGENCIES,EXTERNAL OUTREACH,591443,140543330,12-Feb-15,919.60,ACTION ON HEARING LOSS,SP0001359
WANDSWORTH COUNCIL,ASC,SOCIAL SERVICES,Revenue,OTHER AGENCIES,EXTERNAL OUTREACH,591444,140543330,12-Feb-15,919.60,ACTION ON HEARING LOSS,SP0001359
WANDSWORTH COUNCIL,ASC,SOCIAL SERVICES,Revenue,PRIVATE,EXTERNAL RESIDENTIAL CARE,585140,140545330,05-Feb-15,"4,800.00",ACTION ON HEARING LOSS,SP0000563
WANDSWORTH COUNCIL,ASC,SOCIAL SERVICES,Revenue,PRIVATE,EXTERNAL RESIDENTIAL CARE,600479,140545330,25-Feb-15,"24,761.32",ACTION ON HEARING LOSS,SP0001359
WANDSWORTH COUNCIL,ASC,SOCIAL SERVICES,Revenue,PRIVATE,EXTERNAL RESIDENTIAL CARE,601926,140545330,27-Feb-15,"40,784.64",ACTION ON HEARING LOSS,SP0001359
WANDSWORTH COUNCIL,ASC,SOCIAL SERVICES,Revenue,CUSTOMER & CLIENT RECPTS - EXT,CL CONT EXTERNAL RESIDENTIAL,600479,140580720,25-Feb-15,"-2,833.14",ACTION ON HEARING LOSS,SP0001359
WANDSWORTH COUNCIL,ASC,SOCIAL SERVICES,Revenue,PRIVATE,EXTERNAL NURSING CARE,598786,162445310,24-Feb-15,"73,379.65",ACTION ON HEARING LOSS,SP0000563
WANDSWORTH COUNCIL,ASC,SOCIAL SERVICES,Revenue,PRIVATE,EXTERNAL RESIDENTIAL CARE,585133,162445330,05-Feb-15,"4,960.08",ACTION ON HEARING LOSS,SP0000563
WANDSWORTH COUNCIL,ASC,SOCIAL SERVICES,Revenue,PRIVATE,EXTERNAL RESIDENTIAL CARE,585134,162445330,05-Feb-15,"4,960.08",ACTION ON HEARING LOSS,SP0000563
WANDSWORTH COUNCIL,ASC,SOCIAL SERVICES,Revenue,PRIVATE,EXTERNAL RESIDENTIAL CARE,585135,162445330,05-Feb-15,"4,960.08",ACTION ON HEARING LOSS,SP0000563
WANDSWORTH COUNCIL,ASC,SOCIAL SERVICES,Revenue,PRIVATE,EXTERNAL RESIDENTIAL CARE,585136,162445330,05-Feb-15,"4,960.08",ACTION ON HEARING LOSS,SP0000563
WANDSWORTH COUNCIL,ASC,SOCIAL SERVICES,Revenue,PRIVATE,EXTERNAL RESIDENTIAL CARE,585137,162445330,05-Feb-15,"4,960.08",ACTION ON HEARING LOSS,SP0000563
WANDSWORTH COUNCIL,ASC,SOCIAL SERVICES,Revenue,PRIVATE,EXTERNAL RESIDENTIAL CARE,585138,162445330,05-Feb-15,"4,960.08",ACTION ON HEARING LOSS,SP0000563
WANDSWORTH COUNCIL,ASC,SOCIAL SERVICES,Revenue,PRIVATE,EXTERNAL RESIDENTIAL CARE,585139,162445330,05-Feb-15,"4,960.08",ACTION ON HEARING LOSS,SP0000563
WANDSWORTH COUNCIL,ASC,SOCIAL SERVICES,Revenue,PRIVATE,EXTERNAL RESIDENTIAL CARE,591595,162445330,12-Feb-15,"4,960.08",ACTION ON HEARING LOSS,SP0000563
WANDSWORTH COUNCIL,ASC,SOCIAL SERVICES,Revenue,CUSTOMER & CLIENT RECPTS - EXT,CLIENT CONTS EXTERNAL NURSING,598786,162480820,24-Feb-15,"-3,513.40",ACTION ON HEARING LOSS,SP0000563
WANDSWORTH COUNCIL,ASC,SOCIAL SERVICES,Revenue,CUSTOMER & CLIENT RECPTS - EXT,RNCC,598786,162484120,24-Feb-15,"-4,879.16",ACTION ON HEARING LOSS,SP0000563
WANDSWORTH COUNCIL,ASC,SOCIAL SERVICES,Revenue,PRIVATE,EXTERNAL RESIDENTIAL CARE,593288,142045330,16-Feb-15,"3,747.12",ADMIRAL HEALTHCARE LTD,SP0001227
WANDSWORTH COUNCIL,ASC,SOCIAL SERVICES,Revenue,PRIVATE,EXTERNAL RESIDENTIAL CARE,593289,142045330,16-Feb-15,"4,424.00",ADMIRAL HEALTHCARE LTD,SP0001227
WANDSWORTH COUNCIL,ASC,SOCIAL SERVICES,Revenue,PRIVATE,EXTERNAL RESIDENTIAL CARE,593290,142045330,16-Feb-15,"4,000.00",ADMIRAL HEALTHCARE LTD,SP0001227
WANDSWORTH COUNCIL,ASC,SOCIAL SERVICES,Revenue,PRIVATE,EXTERNAL RESIDENTIAL CARE,593293,142045330,16-Feb-15,"4,000.00",ADMIRAL HEALTHCARE LTD,SP0001227
WANDSWORTH COUNCIL,ASC,SOCIAL SERVICES,Revenue,PRIVATE,EXTERNAL RESIDENTIAL CARE,593291,142245330,16-Feb-15,"5,200.00",ADMIRAL HEALTHCARE LTD,SP0001227
WANDSWORTH COUNCIL,ASC,SOCIAL SERVICES,Revenue,PRIVATE,EXTERNAL RESIDENTIAL CARE,593312,142245330,16-Feb-15,"4,662.00",ADMIRAL HEALTHCARE LTD,SP0001227
WANDSWORTH COUNCIL,ASC,SOCIAL SERVICES,Revenue,PRIVATE,EXTERNAL RESIDENTIAL CARE,600057,142245330,25-Feb-15,"4,864.00",ADMIRAL HEALTHCARE LTD,SP0001227
WANDSWORTH COUNCIL,ASC,SOCIAL SERVICES,Revenue,PRIVATE,EXTERNAL RESIDENTIAL CARE,600058,142245330,25-Feb-15,"4,864.00",ADMIRAL HEALTHCARE LTD,SP0001227
WANDSWORTH COUNCIL,ASC,SOCIAL SERVICES,Revenue,PRIVATE,EXTERNAL RESIDENTIAL CARE,600059,142245330,25-Feb-15,"4,864.00",ADMIRAL HEALTHCARE LTD,SP0001227
WANDSWORTH COUNCIL,ASC,SOCIAL SERVICES,Revenue,PRIVATE,EXTERNAL RESIDENTIAL CARE,600060,142245330,25-Feb-15,"4,864.00",ADMIRAL HEALTHCARE LTD,SP0001227
WANDSWORTH COUNCIL,ASC,SOCIAL SERVICES,Revenue,PRIVATE,EXTERNAL RESIDENTIAL CARE,600061,142245330,25-Feb-15,"4,864.00",ADMIRAL HEALTHCARE LTD,SP0001227
WANDSWORTH COUNCIL,ASC,SOCIAL SERVICES,Revenue,PRIVATE,EXTERNAL RESIDENTIAL CARE,600062,142245330,25-Feb-15,"4,864.00",ADMIRAL HEALTHCARE LTD,SP0001227
WANDSWORTH COUNCIL,ASC,SOCIAL SERVICES,Revenue,PRIVATE,EXTERNAL RESIDENTIAL CARE,600063,142245330,25-Feb-15,"4,864.00",ADMIRAL HEALTHCARE LTD,SP0001227
WANDSWORTH COUNCIL,ASC,SOCIAL SERVICES,Revenue,PRIVATE,EXTERNAL RESIDENTIAL CARE,593292,142645330,16-Feb-15,"4,702.00",ADMIRAL HEALTHCARE LTD,SP0001227
WANDSWORTH COUNCIL,NGF HTS,ENVIRONMENT & COMMUNITY,Revenue,DIRECT2,AGENCY STAFF,584259,476000510,10-Feb-15,"1,224.00",ADREM GROUP LTD,SP0006492
WANDSWORTH COUNCIL,NGF HTS,ENVIRONMENT & COMMUNITY,Revenue,DIRECT2,AGENCY STAFF,585505,476000510,06-Feb-15,"1,224.00",ADREM GROUP LTD,SP0006492
WANDSWORTH COUNCIL,NGF HTS,ENVIRONMENT & COMMUNITY,Revenue,DIRECT2,AGENCY STAFF,588056,476000510,10-Feb-15,"2,337.50",ADREM GROUP LTD,SP0006492
WANDSWORTH COUNCIL,NGF HTS,ENVIRONMENT & COMMUNITY,Revenue,DIRECT2,AGENCY STAFF,592773,476000510,16-Feb-15,"1,224.00",ADREM GROUP LTD,SP0006492
WANDSWORTH COUNCIL,NGF HTS,ENVIRONMENT & COMMUNITY,Revenue,DIRECT2,AGENCY STAFF,597840,476000510,23-Feb-15,"1,224.00",ADREM GROUP LTD,SP0006492
WANDSWORTH COUNCIL,NGF HTS,ENVIRONMENT & COMMUNITY,Revenue,DIRECT2,AGENCY STAFF,601897,476000510,27-Feb-15,"1,224.00",ADREM GROUP LTD,SP0006492
WANDSWORTH COUNCIL,CRS,ENVIRONMENT & COMMUNITY,Revenue,SERVICES,HIRE OF ARTISTES,588114,439734470,10-Feb-15,600.00,ADRIANA SWIERSZCZEK,SP0008093
WANDSWORTH COUNCIL,CS,ENVIRONMENT & COMMUNITY,Revenue,SERVICES,PROJECT WORK,590118,38013480K04551,17-Feb-15,"2,125.00",ADVANCED BUSINESS SOLUTIONS,SP0001872
WANDSWORTH COUNCIL,CS,ENVIRONMENT & COMMUNITY,Revenue,SERVICES,PROJECT WORK,590119,38013480K04551,19-Feb-15,"1,275.00",ADVANCED BUSINESS SOLUTIONS,SP0001872
WANDSWORTH COUNCIL,CS,ENVIRONMENT & COMMUNITY,Revenue,SERVICES,PROJECT WORK,590120,38013480K04551,17-Feb-15,850.00,ADVANCED BUSINESS SOLUTIONS,SP0001872
WANDSWORTH COUNCIL,NGF CS,ENVIRONMENT & COMMUNITY,Revenue,COMMUNICATIONS & COMP,HARDWARE/SOFTWARE MAINTENANCE,590121,392336340,17-Feb-15,"33,600.00",ADVANCED BUSINESS SOLUTIONS,SP0001872
WANDSWORTH COUNCIL,NGF CDC,ADMINISTRATION,Revenue,MISC,MISCELLANEOUS EXPENSES,20300726,124038500,13-Feb-15,"2,096.70",AELTC,2012754
WANDSWORTH COUNCIL,NGF HTS,ENVIRONMENT & COMMUNITY,Revenue,"EQUIPMENT, FURNITURE & MATS","EQUIPMENT, FURNITURE & MATS",583388,471030000,03-Feb-15,547.27,AGGREGATE INDUSTRIES UK LTD,SP0002123
WANDSWORTH COUNCIL,NGF HTS,ENVIRONMENT & COMMUNITY,Revenue,"EQUIPMENT, FURNITURE & MATS","EQUIPMENT, FURNITURE & MATS",583389,471030000,03-Feb-15,610.22,AGGREGATE INDUSTRIES UK LTD,SP0002123
WANDSWORTH COUNCIL,NGF HTS,ENVIRONMENT & COMMUNITY,Revenue,"EQUIPMENT, FURNITURE & MATS","EQUIPMENT, FURNITURE & MATS",583390,471030000,03-Feb-15,579.20,AGGREGATE INDUSTRIES UK LTD,SP0002123
WANDSWORTH COUNCIL,NGF HTS,ENVIRONMENT & COMMUNITY,Revenue,"EQUIPMENT, FURNITURE & MATS","EQUIPMENT, FURNITURE & MATS",590095,471030000,11-Feb-15,800.62,AGGREGATE INDUSTRIES UK LTD,SP0002123
WANDSWORTH COUNCIL,BS,ENVIRONMENT & COMMUNITY,Revenue,INVENTORIES,BUILDING WORKS STORES,589809,6004B0020,11-Feb-15,"1,240.80",AGGREGATE INDUSTRIES UK LTD,SP0002123
WANDSWORTH COUNCIL,BS,ENVIRONMENT & COMMUNITY,Revenue,INVENTORIES,BUILDING WORKS STORES,589809,6004B0020,11-Feb-15,750.72,AGGREGATE INDUSTRIES UK LTD,SP0002123
WANDSWORTH COUNCIL,ASC,SOCIAL SERVICES,Revenue,PRIVATE,EXTERNAL RESIDENTIAL CARE,585114,130245330,05-Feb-15,"7,560.76",AIMS CARE PARTNERSHIP,SP0000561
WANDSWORTH COUNCIL,ASC,SOCIAL SERVICES,Revenue,CUSTOMER & CLIENT RECPTS - EXT,CL CONT EXTERNAL RESIDENTIAL,585114,130280720,05-Feb-15,-319.40,AIMS CARE PARTNERSHIP,SP0000561
WANDSWORTH COUNCIL,ERS,ENVIRONMENT & COMMUNITY,Revenue,SERVICES,PROJECT WORK,595713,465734800,19-Feb-15,"10,000.00",AIR FOOTBALL LTD,SP0006715
WANDSWORTH COUNCIL,BS,CHILDREN'S,CAPITAL,OTHER LAND & BUILDINGS,SCHOOLS PRIMARY BLDNGS - OLAB,20300296,7003C014J1362C,06-Feb-15,"1,200.00",AIREY MILLER LLP,2016638
WANDSWORTH COUNCIL,BS,CHILDREN'S,CAPITAL,OTHER LAND & BUILDINGS,SCHOOLS PRIMARY BLDNGS - OLAB,20300550,7003C014J1362C,10-Feb-15,"8,097.65",AIREY MILLER LLP,2016638
WANDSWORTH COUNCIL,CS,ENVIRONMENT & COMMUNITY,Revenue,SERVICES,CONSULTANTS FEES,594144,453934200,17-Feb-15,423.82,AIRWAVE SOLUTIONS LIMITED,SP0005950
WANDSWORTH COUNCIL,NGF HS,HOUSING,Revenue,"REPAIRS, ALTERATIONS & MTCE",EMERGENCY LIGHTING,599262,4VET49640,24-Feb-15,949.73,AJS LTD,SP0008424
WANDSWORTH COUNCIL,CES,CHILDREN'S,Revenue,PRIVATE,S17 -  ESSENTIALS,589379,361345600,11-Feb-15,417.50,ALERE TOXICOLOGY PLC,SP0006087
WANDSWORTH COUNCIL,ASC,SOCIAL SERVICES,Revenue,PRIVATE,EXTERNAL RESIDENTIAL CARE,585108,152645330,05-Feb-15,"2,061.80",ALEXANDER LODGE,SP0000485
WANDSWORTH COUNCIL,NGF CES,ENVIRONMENT & COMMUNITY,Revenue,INDIRECT,TRAINING - EXTERNAL COURSES,588880,369400770,10-Feb-15,"1,200.00",ALICE LEWES CONSULTANCY,SP0009175
WANDSWORTH COUNCIL,BS,ENVIRONMENT & COMMUNITY,CAPITAL,COUNCIL DWELLINGS,HRA REPAIRS & IMPROVEMENTS,601011,7004C001J8080D,26-Feb-15,"5,500.00",ALL SAINTS TENANTS CO-OPERATIVE LTD,SP0002533
WANDSWORTH COUNCIL,ASC,SOCIAL SERVICES,Revenue,PRIVATE,EXTERNAL RESIDENTIAL CARE,585113,130245330,05-Feb-15,"4,630.48",ALLIED CARE (MHS) LTD,SP0001069
WANDSWORTH COUNCIL,ASC,SOCIAL SERVICES,Revenue,PRIVATE,EXTERNAL RESIDENTIAL CARE,595064,130245330,18-Feb-15,"3,913.44",ALLIED CARE (MHS) LTD,SP0001069
WANDSWORTH COUNCIL,ASC,SOCIAL SERVICES,Revenue,PRIVATE,EXTERNAL RESIDENTIAL CARE,595070,130245330,18-Feb-15,"4,516.40",ALLIED CARE (MHS) LTD,SP0001069
WANDSWORTH COUNCIL,ASC,SOCIAL SERVICES,Revenue,PRIVATE,EXTERNAL RESIDENTIAL CARE,595071,130245330,18-Feb-15,"4,630.48",ALLIED CARE (MHS) LTD,SP0001069
WANDSWORTH COUNCIL,ASC,SOCIAL SERVICES,Revenue,CUSTOMER & CLIENT RECPTS - EXT,CL CONT EXTERNAL RESIDENTIAL,585113,130280720,05-Feb-15,-319.40,ALLIED CARE (MHS) LTD,SP0001069
WANDSWORTH COUNCIL,ASC,SOCIAL SERVICES,Revenue,CUSTOMER & CLIENT RECPTS - EXT,CL CONT EXTERNAL RESIDENTIAL,595064,130280720,18-Feb-15,-242.36,ALLIED CARE (MHS) LTD,SP0001069
WANDSWORTH COUNCIL,ASC,SOCIAL SERVICES,Revenue,CUSTOMER & CLIENT RECPTS - EXT,CL CONT EXTERNAL RESIDENTIAL,595071,130280720,18-Feb-15,-319.40,ALLIED CARE (MHS) LTD,SP0001069
WANDSWORTH COUNCIL,NGF HTS,ENVIRONMENT & COMMUNITY,Revenue,SERVICES,SUBCONTRACTORS,597096,474135080,19-Feb-15,244.80,ALLSTAR BUSINESS SOLUTIONS LTD,SP0002658
WANDSWORTH COUNCIL,NGF HTS,ENVIRONMENT & COMMUNITY,Revenue,SERVICES,SUBCONTRACTORS,597096,474135080,19-Feb-15,53.33,ALLSTAR BUSINESS SOLUTIONS LTD,SP0002658
WANDSWORTH COUNCIL,NGF HTS,ENVIRONMENT & COMMUNITY,Revenue,SERVICES,SUBCONTRACTORS,597096,474135080,19-Feb-15,33.25,ALLSTAR BUSINESS SOLUTIONS LTD,SP0002658
WANDSWORTH COUNCIL,NGF HTS,ENVIRONMENT & COMMUNITY,Revenue,SERVICES,SUBCONTRACTORS,597096,474135080,19-Feb-15,49.04,ALLSTAR BUSINESS SOLUTIONS LTD,SP0002658
WANDSWORTH COUNCIL,NGF HTS,ENVIRONMENT & COMMUNITY,Revenue,SERVICES,SUBCONTRACTORS,597096,474135080,19-Feb-15,11.40,ALLSTAR BUSINESS SOLUTIONS LTD,SP0002658
WANDSWORTH COUNCIL,NGF HTS,ENVIRONMENT & COMMUNITY,Revenue,SERVICES,SUBCONTRACTORS,597096,474135080,19-Feb-15,40.00,ALLSTAR BUSINESS SOLUTIONS LTD,SP0002658
WANDSWORTH COUNCIL,CES,CHILDREN'S,Revenue,GRANTS & SUBSCRIPTIONS,GRANTS EARLY YRS PROVIDRS 3YR+,7015007,220037530,04-Feb-15,"12,540.00",ALPHABET NURSERY SCHOOL,2006628
WANDSWORTH COUNCIL,CES,CHILDREN'S,Revenue,GRANTS & SUBSCRIPTIONS,GRANTS EARLY YRS PROVIDRS 4YR+,7015007,220037540,04-Feb-15,"5,280.00",ALPHABET NURSERY SCHOOL,2006628
WANDSWORTH COUNCIL,CES,CHILDREN'S,Revenue,GRANTS & SUBSCRIPTIONS,GRANTS EARLY YRS PROVIDRS 3YR+,7015104,220037530,09-Feb-15,"12,231.19",AL-RISAALA SCHOOL,2004611
WANDSWORTH COUNCIL,CES,CHILDREN'S,Revenue,GRANTS & SUBSCRIPTIONS,GRANTS EARLY YRS PROVIDRS 4YR+,7015104,220037540,09-Feb-15,"4,815.50",AL-RISAALA SCHOOL,2004611
WANDSWORTH COUNCIL,CES,CHILDREN'S,Revenue,SERVICES,2 YR NURSERY PLACES,7015210,220034000,18-Feb-15,"20,740.01",ALTON COMMUNITY PLAY SCHOOL,2004663
WANDSWORTH COUNCIL,CES,CHILDREN'S,Revenue,GRANTS & SUBSCRIPTIONS,GRANTS EARLY YRS PROVIDRS 3YR+,7015210,220037530,18-Feb-15,"3,138.33",ALTON COMMUNITY PLAY SCHOOL,2004663
WANDSWORTH COUNCIL,CES,CHILDREN'S,Revenue,GRANTS & SUBSCRIPTIONS,GRANTS EARLY YRS PROVIDRS 4YR+,7015210,220037540,18-Feb-15,239.97,ALTON COMMUNITY PLAY SCHOOL,2004663
WANDSWORTH COUNCIL,PS,ENVIRONMENT & COMMUNITY,Revenue,CATERING,FOOD & CONSUMABLES,591299,38303104K03953,16-Feb-15,"1,418.15",AM & PM CATERING (COUNTY) LTD,SP0009143
WANDSWORTH COUNCIL,NGF HTS,ENVIRONMENT & COMMUNITY,Revenue,"EQUIPMENT, FURNITURE & MATS","EQUIPMENT, FURNITURE & MATS",599970,471030000,25-Feb-15,"1,027.00",AMARI PLASTICS PLC,SP0003063
WANDSWORTH COUNCIL,BS,HOUSING,CAPITAL,COUNCIL DWELLINGS,HRA REPAIRS & IMPROVEMENTS,583247,7004C001J6243D,03-Feb-15,"146,109.76",AMBER CONSTRUCTION SERVICES LTD,SP0001369
WANDSWORTH COUNCIL,PH,ADMINISTRATION,Revenue,HEALTH,PRESCRIBING SERVICES,20300998,106340550,20-Feb-15,72.00,AMICHEM LTD FT016,2015447
WANDSWORTH COUNCIL,PH,ADMINISTRATION,Revenue,HEALTH,PRESCRIBING SERVICES,20300998,106340550,20-Feb-15,612.12,AMICHEM LTD FT016,2015447
WANDSWORTH COUNCIL,PH,ADMINISTRATION,Revenue,HEALTH,PRESCRIBING SERVICES,20300999,106340550,20-Feb-15,458.68,AMICHEM LTD FT016,2015447
WANDSWORTH COUNCIL,PH,ADMINISTRATION,Revenue,HEALTH,PRESCRIBING SERVICES,20300999,106340550,20-Feb-15,48.00,AMICHEM LTD FT016,2015447
WANDSWORTH COUNCIL,ASC,SOCIAL SERVICES,Revenue,PRIVATE,EXTERNAL RESIDENTIAL CARE,593277,152645330,16-Feb-15,"2,254.96",ANCHOR TRUST,SP0001560
WANDSWORTH COUNCIL,ASC,SOCIAL SERVICES,Revenue,CUSTOMER & CLIENT RECPTS - EXT,CL CONT EXTERNAL RESIDENTIAL,593277,152680720,16-Feb-15,-495.80,ANCHOR TRUST,SP0001560
WANDSWORTH COUNCIL,ASC,SOCIAL SERVICES,Revenue,PRIVATE,EXTERNAL RESIDENTIAL CARE,591587,152245330,12-Feb-15,"2,255.00",ANCHOR TRUST - SILK COURT RESIDENTIAL,SP0001713
WANDSWORTH COUNCIL,CRS,ENVIRONMENT & COMMUNITY,Revenue,SERVICES,PROJECT WORK,584168,441134800,04-Feb-15,500.00,ANDY HARPER,SP0009060
WANDSWORTH COUNCIL,CRS,ENVIRONMENT & COMMUNITY,Revenue,SERVICES,PROJECT WORK,584210,441134800,04-Feb-15,"1,000.00",ANGELA KINGSTON,SP0008133
WANDSWORTH COUNCIL,ASC,SOCIAL SERVICES,Revenue,PRIVATE,EXTERNAL NURSING CARE,596225,152245310,19-Feb-15,"3,006.24",ANS HOMES LTD,SP0000029
WANDSWORTH COUNCIL,ASC,SOCIAL SERVICES,Revenue,CUSTOMER & CLIENT RECPTS - EXT,RNCC,596225,152284120,19-Feb-15,-443.56,ANS HOMES LTD,SP0000029
WANDSWORTH COUNCIL,ASC,SOCIAL SERVICES,Revenue,PRIVATE,EXTERNAL NURSING CARE,596224,152645310,19-Feb-15,"3,237.52",ANS HOMES LTD,SP0000029
WANDSWORTH COUNCIL,ASC,SOCIAL SERVICES,Revenue,PRIVATE,EXTERNAL NURSING CARE,596226,152645310,19-Feb-15,"2,940.08",ANS HOMES LTD,SP0000029
WANDSWORTH COUNCIL,ASC,SOCIAL SERVICES,Revenue,PRIVATE,EXTERNAL NURSING CARE,596229,152645310,19-Feb-15,"3,004.00",ANS HOMES LTD,SP0000029
WANDSWORTH COUNCIL,ASC,SOCIAL SERVICES,Revenue,CUSTOMER & CLIENT RECPTS - EXT,CLIENT CONTS EXTERNAL NURSING,596226,152680820,19-Feb-15,-732.72,ANS HOMES LTD,SP0000029
WANDSWORTH COUNCIL,ASC,SOCIAL SERVICES,Revenue,CUSTOMER & CLIENT RECPTS - EXT,CLIENT CONTS EXTERNAL NURSING,596229,152680820,19-Feb-15,-495.80,ANS HOMES LTD,SP0000029
WANDSWORTH COUNCIL,ASC,SOCIAL SERVICES,Revenue,CUSTOMER & CLIENT RECPTS - EXT,RNCC,596224,152684120,19-Feb-15,-443.56,ANS HOMES LTD,SP0000029
WANDSWORTH COUNCIL,ASC,SOCIAL SERVICES,Revenue,CUSTOMER & CLIENT RECPTS - EXT,RNCC,596226,152684120,19-Feb-15,-443.56,ANS HOMES LTD,SP0000029
WANDSWORTH COUNCIL,ASC,SOCIAL SERVICES,Revenue,CUSTOMER & CLIENT RECPTS - EXT,RNCC,596229,152684120,19-Feb-15,-443.56,ANS HOMES LTD,SP0000029
WANDSWORTH COUNCIL,ASC,SOCIAL SERVICES,Revenue,PRIVATE,EXTERNAL NURSING CARE,596222,152845310,19-Feb-15,"3,212.20",ANS HOMES LTD,SP0000029
WANDSWORTH COUNCIL,ASC,SOCIAL SERVICES,Revenue,PRIVATE,EXTERNAL NURSING CARE,596223,152845310,19-Feb-15,"3,000.44",ANS HOMES LTD,SP0000029
WANDSWORTH COUNCIL,ASC,SOCIAL SERVICES,Revenue,PRIVATE,EXTERNAL NURSING CARE,596227,152845310,19-Feb-15,"2,800.00",ANS HOMES LTD,SP0000029
WANDSWORTH COUNCIL,ASC,SOCIAL SERVICES,Revenue,CUSTOMER & CLIENT RECPTS - EXT,CLIENT CONTS EXTERNAL NURSING,596223,152880820,19-Feb-15,-755.36,ANS HOMES LTD,SP0000029
WANDSWORTH COUNCIL,ASC,SOCIAL SERVICES,Revenue,CUSTOMER & CLIENT RECPTS - EXT,CLIENT CONTS EXTERNAL NURSING,596227,152880820,19-Feb-15,-613.24,ANS HOMES LTD,SP0000029
WANDSWORTH COUNCIL,ASC,SOCIAL SERVICES,Revenue,CUSTOMER & CLIENT RECPTS - EXT,RNCC,596222,152884120,19-Feb-15,-443.56,ANS HOMES LTD,SP0000029
WANDSWORTH COUNCIL,ASC,SOCIAL SERVICES,Revenue,CUSTOMER & CLIENT RECPTS - EXT,RNCC,596223,152884120,19-Feb-15,-443.56,ANS HOMES LTD,SP0000029
WANDSWORTH COUNCIL,ASC,SOCIAL SERVICES,Revenue,CUSTOMER & CLIENT RECPTS - EXT,RNCC,596227,152884120,19-Feb-15,-443.56,ANS HOMES LTD,SP0000029
WANDSWORTH COUNCIL,ASC,SOCIAL SERVICES,Revenue,HEALTH,EXT RES S28A OLD LONG STAY,598802,130241110,24-Feb-15,"4,351.72",ANTHONY TOBY HOMES TRUST,SP0000755
WANDSWORTH COUNCIL,ASC,SOCIAL SERVICES,Revenue,HEALTH,EXT RES S28A OLD LONG STAY,600462,130241110,25-Feb-15,"4,351.72",ANTHONY TOBY HOMES TRUST,SP0000755
WANDSWORTH COUNCIL,ASC,SOCIAL SERVICES,Revenue,PRIVATE,EXTERNAL DAYCARE,591676,130245290,12-Feb-15,"1,094.60",ANTHONY TOBY HOMES TRUST,SP0000755
WANDSWORTH COUNCIL,CES,CHILDREN'S,Revenue,GRANTS & SUBSCRIPTIONS,GRANTS EARLY YRS PROVIDRS 3YR+,7015028,220037530,04-Feb-15,"3,121.80",APPLE & HONEY NURSERY SCHOOL,2005322
WANDSWORTH COUNCIL,CES,CHILDREN'S,Revenue,GRANTS & SUBSCRIPTIONS,GRANTS EARLY YRS PROVIDRS 4YR+,7015028,220037540,04-Feb-15,"1,446.79",APPLE & HONEY NURSERY SCHOOL,2005322
WANDSWORTH COUNCIL,BS,CHILDREN'S,CAPITAL,OTHER LAND & BUILDINGS,SCHOOLS SPECIAL BLDNGS - OLAB,20300698,7004C017J1052D,12-Feb-15,"40,630.00",ARK BUILD PLC,2018164
WANDSWORTH COUNCIL,ERS,ENVIRONMENT & COMMUNITY,Revenue,PRIVATE,GENERAL CONTRACT WORK,586825,462845370,20-Feb-15,880.00,ARK ENVIRONMENTAL SERVICES UK LLP,SP0006250
WANDSWORTH COUNCIL,ERS,ENVIRONMENT & COMMUNITY,Revenue,PRIVATE,GENERAL CONTRACT WORK,587406,462845370,20-Feb-15,532.00,ARK ENVIRONMENTAL SERVICES UK LLP,SP0006250
WANDSWORTH COUNCIL,ASC,SOCIAL SERVICES,Revenue,PRIVATE,EXTERNAL HOMECARE,585327,152445300,05-Feb-15,"2,181.32",ARK HOME HEALTHCARE LIMITED,SP0000801
WANDSWORTH COUNCIL,ASC,SOCIAL SERVICES,Revenue,PRIVATE,EXTERNAL HOMECARE,585329,152445300,05-Feb-15,"2,111.76",ARK HOME HEALTHCARE LIMITED,SP0000801
WANDSWORTH COUNCIL,ASC,SOCIAL SERVICES,Revenue,PRIVATE,EXTERNAL HOMECARE,585324,152845300,05-Feb-15,"1,684.83",ARK HOME HEALTHCARE LIMITED,SP0000801
WANDSWORTH COUNCIL,ASC,SOCIAL SERVICES,Revenue,PRIVATE,EXTERNAL HOMECARE,585326,162845300,05-Feb-15,"1,357.55",ARK HOME HEALTHCARE LIMITED,SP0000801
WANDSWORTH COUNCIL,CES,CHILDREN'S,Revenue,"EQUIPMENT, FURNITURE & MATS","EQUIPMENT, FURNITURE & MATS",4010622,222930000,02-Feb-15,"26,282.00",ARK PUTNEY ACADEMY,2016565
WANDSWORTH COUNCIL,BS,CHILDREN'S,CAPITAL,OTHER LAND & BUILDINGS,SCHOOLS 2NDARY BLDNGS - OLAB,20300573,7006C013J1343F,10-Feb-15,"105,592.19",ARK SCHOOLS,2015846
WANDSWORTH COUNCIL,CES,CHILDREN'S,Revenue,PRIVATE,EXTERNAL RESIDENTIAL CARE,588383,376345330,10-Feb-15,"15,616.00",ARNFFIELD CARE LTD,SP0008510
WANDSWORTH COUNCIL,CS,ENVIRONMENT & COMMUNITY,Revenue,HEALTH,THIRD PARTY PYMT - HEALTH,593950,128041130,18-Feb-15,763.00,ASDA STORES LTD ASDA PHARMACY FKF82,SP0007211
WANDSWORTH COUNCIL,CS,ENVIRONMENT & COMMUNITY,Revenue,HEALTH,THIRD PARTY PYMT - HEALTH,593951,128041130,18-Feb-15,693.00,ASDA STORES LTD ASDA PHARMACY FKF82,SP0007211
WANDSWORTH COUNCIL,CES,CHILDREN'S,Revenue,GRANTS & SUBSCRIPTIONS,GRANTS EARLY YRS PROVIDRS 3YR+,7015020,220037530,04-Feb-15,736.13,ASHA AHMED,2017264
WANDSWORTH COUNCIL,CES,CHILDREN'S,Revenue,SERVICES,2 YR NURSERY PLACES,7015174,220034000,13-Feb-15,"1,739.51",ASHBURTON UNDER 5�S PLAYGROUP,2005149
WANDSWORTH COUNCIL,CES,CHILDREN'S,Revenue,GRANTS & SUBSCRIPTIONS,GRANTS EARLY YRS PROVIDRS 3YR+,7015174,220037530,13-Feb-15,"1,318.72",ASHBURTON UNDER 5�S PLAYGROUP,2005149
WANDSWORTH COUNCIL,ASC,SOCIAL SERVICES,Revenue,PRIVATE,EXTERNAL RESIDENTIAL CARE,593295,130245330,16-Feb-15,"10,216.60",ASHCROFT CARE SERVICES,SP0000872
WANDSWORTH COUNCIL,ASC,SOCIAL SERVICES,Revenue,CUSTOMER & CLIENT RECPTS - EXT,CL CONT EXTERNAL RESIDENTIAL,593295,130280720,16-Feb-15,-319.40,ASHCROFT CARE SERVICES,SP0000872
WANDSWORTH COUNCIL,ASC,SOCIAL SERVICES,Revenue,PRIVATE,EXTERNAL NURSING CARE,593296,152845310,16-Feb-15,"1,887.56",ASHDOWN HURSING HOME T/A NEWCARE HOMES L,SP0006639
WANDSWORTH COUNCIL,ASC,SOCIAL SERVICES,Revenue,CUSTOMER & CLIENT RECPTS - EXT,RNCC,593296,152884120,16-Feb-15,-443.56,ASHDOWN HURSING HOME T/A NEWCARE HOMES L,SP0006639
WANDSWORTH COUNCIL,ASC,SOCIAL SERVICES,Revenue,PRIVATE,EXTERNAL DAYCARE,595140,130245290,18-Feb-15,870.60,ASHFIELD CARE HOMES LTD,SP0000590
WANDSWORTH COUNCIL,ASC,SOCIAL SERVICES,Revenue,HEALTH,EXT RES S28A OLD LONG STAY,591581,130241110,12-Feb-15,"2,690.16",ASHTON CARE,SP0000695
WANDSWORTH COUNCIL,ASC,SOCIAL SERVICES,Revenue,CUSTOMER & CLIENT RECPTS - EXT,CL CONT EXT RESIDEN S28A 100%,591581,130280680,12-Feb-15,-495.80,ASHTON CARE,SP0000695
WANDSWORTH COUNCIL,ASC,SOCIAL SERVICES,Revenue,PRIVATE,EXTERNAL DAYCARE,595158,152245290,18-Feb-15,653.12,ASIAN ELDERS SUPPORT SCHEME,SP0000190
WANDSWORTH COUNCIL,ASC,SOCIAL SERVICES,Revenue,PRIVATE,EXTERNAL DAYCARE,595172,152445290,18-Feb-15,816.40,ASIAN ELDERS SUPPORT SCHEME,SP0000190
WANDSWORTH COUNCIL,ASC,SOCIAL SERVICES,Revenue,PRIVATE,EXTERNAL DAYCARE,595165,152845290,18-Feb-15,653.12,ASIAN ELDERS SUPPORT SCHEME,SP0000190
WANDSWORTH COUNCIL,ASC,SOCIAL SERVICES,Revenue,PRIVATE,EXTERNAL HOMECARE,600070,152845300,25-Feb-15,"1,212.10",ASIAN ELDERS SUPPORT SCHEME,SP0000190
WANDSWORTH COUNCIL,CES,CHILDREN'S,Revenue,GRANTS & SUBSCRIPTIONS,GRANTS EARLY YRS PROVIDRS 3YR+,7015021,220037530,04-Feb-15,"2,436.79",ASQUITH DAY NURSERIES,2002899
WANDSWORTH COUNCIL,CES,CHILDREN'S,Revenue,GRANTS & SUBSCRIPTIONS,GRANTS EARLY YRS PROVIDRS 4YR+,7015021,220037540,04-Feb-15,990.00,ASQUITH DAY NURSERIES,2002899
WANDSWORTH COUNCIL,NGF HS,HOUSING,Revenue,"REPAIRS, ALTERATIONS & MTCE",GENERAL REPS BLOCK SC (AREAS),594817,4AKT49920,17-Feb-15,"1,595.00",ASRS YEOVIL LTD,SP0005266
WANDSWORTH COUNCIL,HS,HOUSING,Revenue,PRIVATE,B&B PAYMENTS,20300405,411745080,10-Feb-15,"2,015.00",ASSETGROVE,2018235
WANDSWORTH COUNCIL,HS,HOUSING,Revenue,PRIVATE,B&B PAYMENTS,20300406,411745080,10-Feb-15,"1,550.00",ASSETGROVE,2018235
WANDSWORTH COUNCIL,HS,HOUSING,Revenue,PRIVATE,B&B PAYMENTS,20300407,411745080,10-Feb-15,"1,395.00",ASSETGROVE,2018235
WANDSWORTH COUNCIL,HS,HOUSING,Revenue,PRIVATE,B&B PAYMENTS,20300409,411745080,10-Feb-15,"2,015.00",ASSETGROVE,2018235
WANDSWORTH COUNCIL,HS,HOUSING,Revenue,PRIVATE,B&B PAYMENTS,20300410,411745080,10-Feb-15,"1,891.00",ASSETGROVE,2018235
WANDSWORTH COUNCIL,HS,HOUSING,Revenue,PRIVATE,B&B PAYMENTS,20300411,411745080,10-Feb-15,616.00,ASSETGROVE,2018235
WANDSWORTH COUNCIL,HS,HOUSING,Revenue,PRIVATE,B&B PAYMENTS,20300412,411745080,10-Feb-15,930.00,ASSETGROVE,2018235
WANDSWORTH COUNCIL,HS,HOUSING,Revenue,PRIVATE,B&B PAYMENTS,20300512,411745080,10-Feb-15,550.00,ASSETGROVE,2018235
WANDSWORTH COUNCIL,ASC,HOUSING,Revenue,PRIVATE,B&B-OTHER DESTITUTE,20300472,411945090,13-Feb-15,"1,705.00",ASSETGROVE,2018235
WANDSWORTH COUNCIL,CRS,HOUSING,Revenue,PRIVATE,B&B PAYMENTS,20300408,441745080,10-Feb-15,"2,015.00",ASSETGROVE,2018235
WANDSWORTH COUNCIL,NGF CES,ENVIRONMENT & COMMUNITY,Revenue,SERVICES,SERVICES - GENERAL,586800,260534870,09-Feb-15,"2,789.50",ASSOCIATED BOARD OF THE ROYAL SCHOOLS MU,SP0006849
WANDSWORTH COUNCIL,NGF HS,HOUSING,Revenue,OTHER AGENCIES,ARCH COSTS,20301334,405143750,26-Feb-15,"1,630.00",ASSOCIATION OF RETAINED COUNCIL HOUSING LTD,2014971
WANDSWORTH COUNCIL,NGF HS,HOUSING,Revenue,OTHER AGENCIES,ARCH COSTS,20301335,405143750,26-Feb-15,625.00,ASSOCIATION OF RETAINED COUNCIL HOUSING LTD,2014971
WANDSWORTH COUNCIL,CRS,ENVIRONMENT & COMMUNITY,Revenue,GRANTS & SUBSCRIPTIONS,SUBSCRIPTIONS,591280,383337640,16-Feb-15,995.00,ASSOCIATION OF TOWN CENTRE MANAGEMENT(AT,SP0006495
WANDSWORTH COUNCIL,ASC,SOCIAL SERVICES,Revenue,PRIVATE,EXTERNAL RESIDENTIAL CARE,585129,142545330,05-Feb-15,"3,400.04",ASSURANCE CARE SERVICES LTD,SP0006652
WANDSWORTH COUNCIL,ASC,SOCIAL SERVICES,Revenue,PRIVATE,EXTERNAL RESIDENTIAL CARE,585130,142545330,05-Feb-15,"3,319.96",ASSURANCE CARE SERVICES LTD,SP0006652
WANDSWORTH COUNCIL,ASC,SOCIAL SERVICES,Revenue,PRIVATE,EXTERNAL RESIDENTIAL CARE,591554,142045330,12-Feb-15,"2,249.48",ASTRA HOMES LTD,SP0000374
WANDSWORTH COUNCIL,ASC,SOCIAL SERVICES,Revenue,PRIVATE,EXTERNAL RESIDENTIAL CARE,591555,142045330,12-Feb-15,"2,249.48",ASTRA HOMES LTD,SP0000374
WANDSWORTH COUNCIL,ASC,SOCIAL SERVICES,Revenue,PRIVATE,EXTERNAL RESIDENTIAL CARE,591556,142045330,12-Feb-15,"2,525.00",ASTRA HOMES LTD,SP0000374
WANDSWORTH COUNCIL,ASC,SOCIAL SERVICES,Revenue,VOL ASS,SUPPORTED HOUSING PROGRAMME,592678,142048030,16-Feb-15,961.20,ASTRA HOMES LTD,SP0000374
WANDSWORTH COUNCIL,ASC,SOCIAL SERVICES,Revenue,CUSTOMER & CLIENT RECPTS - EXT,CL CONT EXTERNAL RESIDENTIAL,591556,142080720,12-Feb-15,-495.80,ASTRA HOMES LTD,SP0000374
WANDSWORTH COUNCIL,ASC,SOCIAL SERVICES,Revenue,PRIVATE,EXTERNAL RESIDENTIAL CARE,591557,142545330,12-Feb-15,"2,763.76",ASTRA HOMES LTD,SP0000374
WANDSWORTH COUNCIL,ASC,SOCIAL SERVICES,Revenue,PRIVATE,EXTERNAL RESIDENTIAL CARE,591553,142645330,12-Feb-15,"2,249.48",ASTRA HOMES LTD,SP0000374
WANDSWORTH COUNCIL,ASC,SOCIAL SERVICES,Revenue,CUSTOMER & CLIENT RECPTS - EXT,CL CONT EXTERNAL RESIDENTIAL,591553,142680720,12-Feb-15,-315.20,ASTRA HOMES LTD,SP0000374
WANDSWORTH COUNCIL,NGF HTS,ENVIRONMENT & COMMUNITY,Revenue,DIRECT,PURCHASE OF VEHICLE PARTS,589818,474120250,11-Feb-15,"1,111.32",ATS EUROMASTER LTD,SP0003284
WANDSWORTH COUNCIL,NGF HTS,ENVIRONMENT & COMMUNITY,Revenue,DIRECT,PURCHASE OF VEHICLE PARTS,600004,474120250,25-Feb-15,437.73,ATS EUROMASTER LTD,SP0003284
WANDSWORTH COUNCIL,NGF HTS,ENVIRONMENT & COMMUNITY,Revenue,DIRECT,PURCHASE OF VEHICLE PARTS,600005,474120250,25-Feb-15,437.73,ATS EUROMASTER LTD,SP0003284
WANDSWORTH COUNCIL,NGF HTS,ENVIRONMENT & COMMUNITY,Revenue,SERVICES,SUBCONTRACTORS,599987,474135080,25-Feb-15,"1,223.07",ATS EUROMASTER LTD,SP0003284
WANDSWORTH COUNCIL,BS,HOUSING,CAPITAL,COUNCIL DWELLINGS,HRA REPAIRS & IMPROVEMENTS,596825,7004C001J6441D,19-Feb-15,"1,764.65",ATTIVO TECHNOLOGY UK LTD,SP0005485
WANDSWORTH COUNCIL,NGF CS,ENVIRONMENT & COMMUNITY,Revenue,COMMUNICATIONS & COMP,I.T. EQUIPMENT & MAINTENANCE,595729,126036210,19-Feb-15,685.00,AUTODATA PRODUCTS LTD,SP0002789
WANDSWORTH COUNCIL,NGF HTS,ENVIRONMENT & COMMUNITY,Revenue,SERVICES,SUBCONTRACTORS,589838,474135080,11-Feb-15,"1,700.00",AUTOTECH RECRUIT LTD,SP0008383
WANDSWORTH COUNCIL,NGF HTS,ENVIRONMENT & COMMUNITY,Revenue,SERVICES,SUBCONTRACTORS,597065,474135080,19-Feb-15,"1,700.00",AUTOTECH RECRUIT LTD,SP0008383
WANDSWORTH COUNCIL,NGF HS,HOUSING,Revenue,"REPAIRS, ALTERATIONS & MTCE",PVCU WINDOWS,591867,4VVW49330,13-Feb-15,510.00,B & B WINDOWS & METALWORK LTD,SP0001649
WANDSWORTH COUNCIL,NGF HS,HOUSING,Revenue,"REPAIRS, ALTERATIONS & MTCE",GENERAL REPS BLOCK SC (AREAS),587825,4VWK49920,09-Feb-15,"7,850.00",B & B WINDOWS & METALWORK LTD,SP0001649
WANDSWORTH COUNCIL,ASC,SOCIAL SERVICES,Revenue,PRIVATE,EXTERNAL RESIDENTIAL CARE,585091,152245330,05-Feb-15,"2,222.00",B&M HEMEL LLP,SP0001565
WANDSWORTH COUNCIL,ASC,SOCIAL SERVICES,Revenue,PRIVATE,EXTERNAL RESIDENTIAL CARE,597117,152245330,19-Feb-15,"2,460.07",B&M HEMEL LLP,SP0001565
WANDSWORTH COUNCIL,CES,CHILDREN'S,Revenue,SERVICES,2 YR NURSERY PLACES,7015069,220034000,09-Feb-15,"1,500.40",BABY ROOM NURSERIES LTD,2007466
WANDSWORTH COUNCIL,CES,CHILDREN'S,Revenue,SERVICES,2 YR NURSERY PLACES,7015070,220034000,09-Feb-15,985.66,BABY ROOM NURSERIES LTD,2007466
WANDSWORTH COUNCIL,CES,CHILDREN'S,Revenue,GRANTS & SUBSCRIPTIONS,GRANTS EARLY YRS PROVIDRS 3YR+,7015062,220037530,09-Feb-15,"1,601.10",BABY ROOM NURSERIES LTD,2007466
WANDSWORTH COUNCIL,CES,CHILDREN'S,Revenue,GRANTS & SUBSCRIPTIONS,GRANTS EARLY YRS PROVIDRS 3YR+,7015069,220037530,09-Feb-15,"1,194.35",BABY ROOM NURSERIES LTD,2007466
WANDSWORTH COUNCIL,CES,CHILDREN'S,Revenue,GRANTS & SUBSCRIPTIONS,GRANTS EARLY YRS PROVIDRS 3YR+,7015070,220037530,09-Feb-15,418.14,BABY ROOM NURSERIES LTD,2007466
WANDSWORTH COUNCIL,CES,CHILDREN'S,Revenue,GRANTS & SUBSCRIPTIONS,GRANTS EARLY YRS PROVIDRS 4YR+,7015062,220037540,09-Feb-15,182.02,BABY ROOM NURSERIES LTD,2007466
WANDSWORTH COUNCIL,CES,CHILDREN'S,Revenue,GRANTS & SUBSCRIPTIONS,GRANTS EARLY YRS PROVIDRS 4YR+,7015069,220037540,09-Feb-15,364.04,BABY ROOM NURSERIES LTD,2007466
WANDSWORTH COUNCIL,NGF CS,ENVIRONMENT & COMMUNITY,Revenue,COMMUNICATIONS & COMP,IT SUPPORT SERVICES SLA,591302,127236360,12-Feb-15,"5,647.50",BACKUP TECHNOLOGY LTD,SP0003672
WANDSWORTH COUNCIL,NGF CS,ENVIRONMENT & COMMUNITY,Revenue,COMMUNICATIONS & COMP,IT SUPPORT SERVICES SLA,591306,127236360,12-Feb-15,"5,647.50",BACKUP TECHNOLOGY LTD,SP0003672
WANDSWORTH COUNCIL,NGF CS,ENVIRONMENT & COMMUNITY,Revenue,COMMUNICATIONS & COMP,IT SUPPORT SERVICES SLA,592206,127236360,18-Feb-15,"4,037.50",BACKUP TECHNOLOGY LTD,SP0003672
WANDSWORTH COUNCIL,NGF CS,ENVIRONMENT & COMMUNITY,Revenue,COMMUNICATIONS & COMP,IT SUPPORT SERVICES SLA,592207,127236360,18-Feb-15,"4,037.50",BACKUP TECHNOLOGY LTD,SP0003672
WANDSWORTH COUNCIL,NGF HS,HOUSING,Revenue,"REPAIRS, ALTERATIONS & MTCE",EX DECS (HOTPS),592196,4VG749770,13-Feb-15,676.12,BAILEY PARTNERSHIP,SP0000732
WANDSWORTH COUNCIL,NGF HS,HOUSING,Revenue,"REPAIRS, ALTERATIONS & MTCE",EX DECS (HOTPS),583246,4XMN49770,03-Feb-15,465.99,BAILEY PARTNERSHIP,SP0000732
WANDSWORTH COUNCIL,CS,ENVIRONMENT & COMMUNITY,Revenue,PRINTING STAT & GEN OFFICE EXP,PRINTING AND STATIONERY,586819,381233420,06-Feb-15,"3,388.77",BANNER MANAGED COMMUNICATION,SP0003555
WANDSWORTH COUNCIL,NGF CS,ENVIRONMENT & COMMUNITY,Revenue,PRINTING STAT & GEN OFFICE EXP,PRINTING AND STATIONERY,586812,390833420,10-Feb-15,571.31,BANNER MANAGED COMMUNICATION,SP0003555
WANDSWORTH COUNCIL,NGF PF,ENVIRONMENT & COMMUNITY,Revenue,PRINTING STAT & GEN OFFICE EXP,PRINTING AND STATIONERY,588266,393133420,10-Feb-15,"1,806.34",BANNER MANAGED COMMUNICATION,SP0003555
WANDSWORTH COUNCIL,NGF PF,ENVIRONMENT & COMMUNITY,Revenue,PRINTING STAT & GEN OFFICE EXP,PRINTING AND STATIONERY,588323,393133420,10-Feb-15,658.11,BANNER MANAGED COMMUNICATION,SP0003555
WANDSWORTH COUNCIL,HTS,ENVIRONMENT & COMMUNITY,Revenue,PRINTING STAT & GEN OFFICE EXP,PRINTING AND STATIONERY,581822,456033420,03-Feb-15,488.65,BANNER MANAGED COMMUNICATION,SP0003555
WANDSWORTH COUNCIL,HTS,ENVIRONMENT & COMMUNITY,Revenue,PRINTING STAT & GEN OFFICE EXP,PRINTING AND STATIONERY,581823,456033420,03-Feb-15,608.96,BANNER MANAGED COMMUNICATION,SP0003555
WANDSWORTH COUNCIL,HTS,ENVIRONMENT & COMMUNITY,Revenue,PRINTING STAT & GEN OFFICE EXP,PRINTING AND STATIONERY,587443,456033420,10-Feb-15,735.76,BANNER MANAGED COMMUNICATION,SP0003555
WANDSWORTH COUNCIL,CES,CHILDREN'S,Revenue,OTHER AGENCIES,EXTERNAL PERMANENCY,588384,376343340,10-Feb-15,"3,246.63",BANYA FAMILY PLACEMENT AGENCY,SP0000710
WANDSWORTH COUNCIL,NGF CRS,ENVIRONMENT & COMMUNITY,Revenue,GROUNDS MAINTENANCE,"REPS, ALTS & MTCE-GROUNDS",584221,423112210,05-Feb-15,438.00,BARCHAM TREES,SP0002053
WANDSWORTH COUNCIL,CES,CHILDREN'S,Revenue,GRANTS & SUBSCRIPTIONS,GRANTS EARLY YRS PROVIDRS 3YR+,7015002,220037530,04-Feb-15,"1,865.38",BARN OWLS NURSURY SCHOOL,2017569
WANDSWORTH COUNCIL,CES,CHILDREN'S,Revenue,GRANTS & SUBSCRIPTIONS,GRANTS EARLY YRS PROVIDRS 4YR+,7015002,220037540,04-Feb-15,311.51,BARN OWLS NURSURY SCHOOL,2017569
WANDSWORTH COUNCIL,CES,CHILDREN'S,Revenue,GRANTS & SUBSCRIPTIONS,GRANTS EARLY YRS PROVIDRS 3YR+,7015023,220037530,04-Feb-15,"2,436.79",BARNABY BRIGHT NURSERY,2003368
WANDSWORTH COUNCIL,CES,CHILDREN'S,Revenue,GRANTS & SUBSCRIPTIONS,GRANTS EARLY YRS PROVIDRS 4YR+,7015023,220037540,04-Feb-15,990.00,BARNABY BRIGHT NURSERY,2003368
WANDSWORTH COUNCIL,CES,ENVIRONMENT & COMMUNITY,Revenue,SERVICES,PROJECT WORK,584241,346034800,04-Feb-15,"9,000.00",BARNARDO SERVICES LTD,SP0002831
WANDSWORTH COUNCIL,CES,ENVIRONMENT & COMMUNITY,Revenue,MISC,CONTINGENCIES,581836,364038550,12-Feb-15,"10,500.00",BARNARDO SERVICES LTD,SP0002831
WANDSWORTH COUNCIL,CES,ENVIRONMENT & COMMUNITY,Revenue,STUDENTS,GRANTS-YOUNG PEOPLE,588330,352251010,10-Feb-15,"1,375.00",BATTERSEA ARTS CENTRE TRUST LTD,SP0003082
WANDSWORTH COUNCIL,CS,ENVIRONMENT & COMMUNITY,Revenue,HEALTH,THIRD PARTY PYMT - HEALTH,591293,128041130,12-Feb-15,"3,871.60",BATTERSEA FIELDS PRACTICE,SP0000844
WANDSWORTH COUNCIL,NGF HS,ENVIRONMENT & COMMUNITY,Revenue,OTHER AGENCIES,CO-OP INTEREST ALLOWANCE,588011,405243680,10-Feb-15,"1,749.06",BATTERSEA FIELDS RESIDENTS ORGANISATION,SP0002018
WANDSWORTH COUNCIL,CS,ENVIRONMENT & COMMUNITY,Revenue,HEALTH,THIRD PARTY PYMT - HEALTH,592250,128041130,18-Feb-15,783.00,BATTERSEA PHARMACY FDL04,SP0008144
WANDSWORTH COUNCIL,CES,ENVIRONMENT & COMMUNITY,Revenue,SERVICES,PROJECT WORK,597855,354134800,20-Feb-15,"12,905.96",BEACON EDUCATION PARTNERSHIP LTD,SP0004363
WANDSWORTH COUNCIL,CES,ENVIRONMENT & COMMUNITY,Revenue,SERVICES,PROJECT WORK,597857,354134800,20-Feb-15,"7,870.12",BEACON EDUCATION PARTNERSHIP LTD,SP0004363
WANDSWORTH COUNCIL,CES,CHILDREN'S,Revenue,HIRE,HIRE - TRANSPORT,20300561,301320410,11-Feb-15,"2,396.40",BECKETT CORPORATION LTD T/A TINA�S CARS,2005608
WANDSWORTH COUNCIL,CES,CHILDREN'S,Revenue,HIRE,HIRE - TRANSPORT,20300562,301320410,11-Feb-15,"3,172.00",BECKETT CORPORATION LTD T/A TINA�S CARS,2005608
WANDSWORTH COUNCIL,CES,CHILDREN'S,Revenue,HIRE,HIRE - TRANSPORT,20300563,301320410,11-Feb-15,"2,272.76",BECKETT CORPORATION LTD T/A TINA�S CARS,2005608
WANDSWORTH COUNCIL,CES,CHILDREN'S,Revenue,HIRE,HIRE - TRANSPORT,20300564,301320410,11-Feb-15,"3,109.00",BECKETT CORPORATION LTD T/A TINA�S CARS,2005608
WANDSWORTH COUNCIL,CES,CHILDREN'S,Revenue,HIRE,HIRE - TRANSPORT,20300565,301320410,11-Feb-15,"2,449.16",BECKETT CORPORATION LTD T/A TINA�S CARS,2005608
WANDSWORTH COUNCIL,CES,CHILDREN'S,Revenue,HIRE,HIRE - TRANSPORT,20300566,301320410,11-Feb-15,"3,187.00",BECKETT CORPORATION LTD T/A TINA�S CARS,2005608
WANDSWORTH COUNCIL,CES,CHILDREN'S,Revenue,HIRE,HIRE - TRANSPORT,585878,367020410,05-Feb-15,"1,807.02",BECKETT CORPORATION LTD T/A TINAS CARS,SP0000729
WANDSWORTH COUNCIL,CES,CHILDREN'S,Revenue,HIRE,HIRE - TRANSPORT,585879,367020410,05-Feb-15,"1,210.00",BECKETT CORPORATION LTD T/A TINAS CARS,SP0000729
WANDSWORTH COUNCIL,CES,CHILDREN'S,Revenue,HIRE,HIRE - TRANSPORT,600652,367020410,25-Feb-15,"2,380.12",BECKETT CORPORATION LTD T/A TINAS CARS,SP0000729
WANDSWORTH COUNCIL,CES,CHILDREN'S,Revenue,HIRE,HIRE - TRANSPORT,602008,367020410,27-Feb-15,"1,650.00",BECKETT CORPORATION LTD T/A TINAS CARS,SP0000729
WANDSWORTH COUNCIL,CES,CHILDREN'S,Revenue,SERVICES,2 YR NURSERY PLACES,7015000,220034000,04-Feb-15,840.63,BEECHCROFT DAY NURSERY,2019344
WANDSWORTH COUNCIL,CES,CHILDREN'S,Revenue,GRANTS & SUBSCRIPTIONS,GRANTS EARLY YRS PROVIDRS 3YR+,7015000,220037530,04-Feb-15,907.58,BEECHCROFT DAY NURSERY,2019344
WANDSWORTH COUNCIL,CES,CHILDREN'S,Revenue,GRANTS & SUBSCRIPTIONS,SUBSCRIPTIONS,4010642,221137640,13-Feb-15,"33,220.00",BELLEVILLE SCHOOL (ACADEMY),2008158
WANDSWORTH COUNCIL,CES,CHILDREN'S,Revenue,"EQUIPMENT, FURNITURE & MATS","EQUIPMENT, FURNITURE & MATS",4010642,222830000,13-Feb-15,"52,544.00",BELLEVILLE SCHOOL (ACADEMY),2008158
WANDSWORTH COUNCIL,CES,CHILDREN'S,Revenue,"EQUIPMENT, FURNITURE & MATS","EQUIPMENT, FURNITURE & MATS",4010642,222930000,13-Feb-15,"24,014.00",BELLEVILLE SCHOOL (ACADEMY),2008158
WANDSWORTH COUNCIL,NGF HS,ENVIRONMENT & COMMUNITY,Revenue,"EQUIPMENT, FURNITURE & MATS","EQUIPMENT, FURNITURE & MATS",590007,470230000,11-Feb-15,9.08,BELTON & SLADE,SP0000699
WANDSWORTH COUNCIL,NGF HS,ENVIRONMENT & COMMUNITY,Revenue,"EQUIPMENT, FURNITURE & MATS","EQUIPMENT, FURNITURE & MATS",590007,470230000,11-Feb-15,21.17,BELTON & SLADE,SP0000699
WANDSWORTH COUNCIL,NGF HS,ENVIRONMENT & COMMUNITY,Revenue,"EQUIPMENT, FURNITURE & MATS","EQUIPMENT, FURNITURE & MATS",590007,470230000,11-Feb-15,90.15,BELTON & SLADE,SP0000699
WANDSWORTH COUNCIL,NGF HS,ENVIRONMENT & COMMUNITY,Revenue,"EQUIPMENT, FURNITURE & MATS","EQUIPMENT, FURNITURE & MATS",590007,470230000,11-Feb-15,320.29,BELTON & SLADE,SP0000699
WANDSWORTH COUNCIL,NGF HS,ENVIRONMENT & COMMUNITY,Revenue,"EQUIPMENT, FURNITURE & MATS","EQUIPMENT, FURNITURE & MATS",590007,470230000,11-Feb-15,252.00,BELTON & SLADE,SP0000699
WANDSWORTH COUNCIL,NGF HTS,ENVIRONMENT & COMMUNITY,Revenue,"EQUIPMENT, FURNITURE & MATS","EQUIPMENT, FURNITURE & MATS",590007,471030000,11-Feb-15,4.93,BELTON & SLADE,SP0000699
WANDSWORTH COUNCIL,NGF HTS,ENVIRONMENT & COMMUNITY,Revenue,"EQUIPMENT, FURNITURE & MATS","EQUIPMENT, FURNITURE & MATS",590007,471030000,11-Feb-15,9.45,BELTON & SLADE,SP0000699
WANDSWORTH COUNCIL,NGF HTS,ENVIRONMENT & COMMUNITY,Revenue,"EQUIPMENT, FURNITURE & MATS","EQUIPMENT, FURNITURE & MATS",590007,471030000,11-Feb-15,48.55,BELTON & SLADE,SP0000699
WANDSWORTH COUNCIL,NGF HS,ENVIRONMENT & COMMUNITY,Revenue,"EQUIPMENT, FURNITURE & MATS","EQUIPMENT, FURNITURE & MATS",583384,470230000,03-Feb-15,437.00,BERNARD EXTON (SALES) LTD,SP0002169
WANDSWORTH COUNCIL,ASC,HOUSING,Revenue,PRIVATE,ACCOMMODATION- OTHER DESTITUTE,20300119,411945020,06-Feb-15,"1,200.00",BERTRAM THOMAS,2019439
WANDSWORTH COUNCIL,CES,CHILDREN'S,Revenue,GRANTS & SUBSCRIPTIONS,GRANTS EARLY YRS PROVIDRS 3YR+,7015013,220037530,04-Feb-15,"5,129.56",BERTRUM HOUSE & LITTLE WANDSWORTH SCHOOL,2004614
WANDSWORTH COUNCIL,CES,CHILDREN'S,Revenue,GRANTS & SUBSCRIPTIONS,GRANTS EARLY YRS PROVIDRS 4YR+,7015013,220037540,04-Feb-15,"4,461.48",BERTRUM HOUSE & LITTLE WANDSWORTH SCHOOL,2004614
WANDSWORTH COUNCIL,NGF HTS,ENVIRONMENT & COMMUNITY,Revenue,COMMUNICATIONS & COMP,I.T. EQUIPMENT & MAINTENANCE,596184,476036210,19-Feb-15,410.00,BESPOKE PLANS LTD,SP0008576
WANDSWORTH COUNCIL,NGF HTS,ENVIRONMENT & COMMUNITY,Revenue,COMMUNICATIONS & COMP,I.T. EQUIPMENT & MAINTENANCE,596184,476036210,19-Feb-15,200.00,BESPOKE PLANS LTD,SP0008576
WANDSWORTH COUNCIL,HS,HOUSING,Revenue,PRIVATE,B&B PAYMENTS,20300511,411745080,10-Feb-15,"2,945.00",BEULAH PROPERTIES LTD,2018463
WANDSWORTH COUNCIL,BS,ADMINISTRATION,Revenue,PROVISIONS,GENERAL PROVISIONS ACCOUNT,20300249,6011B831L06019,05-Feb-15,"2,222.50",Bevan Brittan LLP Client Account,2991000
WANDSWORTH COUNCIL,NGF CS,ENVIRONMENT & COMMUNITY,Revenue,INDIRECT,TRAINING - APPROVED QUALS,601839,393500760,27-Feb-15,904.00,BHBI CONSULTANCY LTD,SP0009230
WANDSWORTH COUNCIL,NGF HTS,ENVIRONMENT & COMMUNITY,Revenue,SERVICES,SUBCONTRACTORS,589864,474135080,11-Feb-15,420.00,BICKFORD TRUCK HIRE LTD,SP0005623
WANDSWORTH COUNCIL,NGF HTS,ENVIRONMENT & COMMUNITY,Revenue,SERVICES,SUBCONTRACTORS,597072,474135080,19-Feb-15,"3,432.00",BICKFORD TRUCK HIRE LTD,SP0005623
WANDSWORTH COUNCIL,NGF HTS,ENVIRONMENT & COMMUNITY,Revenue,SERVICES,SUBCONTRACTORS,597073,474135080,19-Feb-15,"3,432.00",BICKFORD TRUCK HIRE LTD,SP0005623
WANDSWORTH COUNCIL,CRS,ENVIRONMENT & COMMUNITY,Revenue,PRIVATE,REFUSE COLLECTN & PEST CONTROL,590801,439745500,11-Feb-15,585.75,BIFFA WASTE SERVICES LTD,SP0002818
WANDSWORTH COUNCIL,CES,CHILDREN'S,Revenue,SERVICES,2 YR NURSERY PLACES,7015198,220034000,18-Feb-15,563.11,BLACKSHAW NURSERY CENTRE,2000122
WANDSWORTH COUNCIL,CES,CHILDREN'S,Revenue,GRANTS & SUBSCRIPTIONS,GRANTS EARLY YRS PROVIDRS 3YR+,7015198,220037530,18-Feb-15,"1,788.56",BLACKSHAW NURSERY CENTRE,2000122
WANDSWORTH COUNCIL,CES,CHILDREN'S,Revenue,GRANTS & SUBSCRIPTIONS,GRANTS EARLY YRS PROVIDRS 4YR+,7015198,220037540,18-Feb-15,559.22,BLACKSHAW NURSERY CENTRE,2000122
WANDSWORTH COUNCIL,BS,ADMINISTRATION,Revenue,SUNDRY CREDITORS - OTHER,PORTABLE DISC-RETENTION MONIES,7015238,6002B6840,24-Feb-15,"2,000.00",Blake Morgan,2991000
WANDSWORTH COUNCIL,BS,ADMINISTRATION,Revenue,SUNDRY CREDITORS - OTHER,PORTABLE DISC-RETENTION MONIES,7015052,6502B6840,04-Feb-15,"-2,000.00",Blake Morgan,2991000
WANDSWORTH COUNCIL,BS,ADMINISTRATION,CAPITAL,SUSPENSE ACCOUNTS,HRA PORTABLE DISCOUNTS,7015052,7005C209L0333P,04-Feb-15,"1,000.00",Blake Morgan,2991000
WANDSWORTH COUNCIL,BS,ADMINISTRATION,CAPITAL,SUSPENSE ACCOUNTS,HRA PORTABLE DISCOUNTS,7015052,7005C209L0333P,04-Feb-15,"59,000.00",Blake Morgan,2991000
WANDSWORTH COUNCIL,BS,ADMINISTRATION,CAPITAL,SUSPENSE ACCOUNTS,HRA PORTABLE DISCOUNTS,7015052,7005C209L0333P,04-Feb-15,"1,000.00",Blake Morgan,2991000
WANDSWORTH COUNCIL,BS,HOUSING,CAPITAL,COUNCIL DWELLINGS,HRA REPAIRS & IMPROVEMENTS,596823,7004C001J6260D,19-Feb-15,"137,214.21",BLAKEDOWN LANDSCAPES (SE) LTD,SP0004593
WANDSWORTH COUNCIL,PH,ENVIRONMENT & COMMUNITY,Revenue,HEALTH,THIRD PARTY PYMT - HEALTH,583234,178941130,04-Feb-15,"30,000.00",BLENHEIM CDP,SP0002898
WANDSWORTH COUNCIL,HS,HOUSING,Revenue,OTHER AGENCIES,PSL PAYMENTS TO LANDLORDS,20301302,411643720,25-Feb-15,"1,430.76",BLUE GARDENS LTD,2019419
WANDSWORTH COUNCIL,NGF CES,ENVIRONMENT & COMMUNITY,Revenue,DIRECT2,AGENCY STAFF,586834,251400510,09-Feb-15,"5,850.00",BLUE8 PROJECTS LTD,SP0008399
WANDSWORTH COUNCIL,ASC,SOCIAL SERVICES,Revenue,PRIVATE,EXTERNAL HOMECARE,600488,152645300,25-Feb-15,"1,781.28",BLUEBIRD CARE (WANDSWORTH),SP0001810
WANDSWORTH COUNCIL,ASC,ENVIRONMENT & COMMUNITY,Revenue,PRIVATE,EXTERNAL NURSING CARE,590375,155345310,12-Feb-15,"13,172.40",BLUEBIRD CARE (WANDSWORTH),SP0001810
WANDSWORTH COUNCIL,ASC,ENVIRONMENT & COMMUNITY,Revenue,PRIVATE,EXTERNAL NURSING CARE,601851,155345310,27-Feb-15,"15,309.00",BLUEBIRD CARE (WANDSWORTH),SP0001810
WANDSWORTH COUNCIL,CES,CHILDREN'S,Revenue,SERVICES,2 YR NURSERY PLACES,7015019,220034000,04-Feb-15,"7,553.88",BLUNDELLS DAY NURSERY,2004675
WANDSWORTH COUNCIL,CES,CHILDREN'S,Revenue,GRANTS & SUBSCRIPTIONS,GRANTS EARLY YRS PROVIDRS 3YR+,7015019,220037530,04-Feb-15,"7,811.04",BLUNDELLS DAY NURSERY,2004675
WANDSWORTH COUNCIL,CES,CHILDREN'S,Revenue,GRANTS & SUBSCRIPTIONS,GRANTS EARLY YRS PROVIDRS 4YR+,7015019,220037540,04-Feb-15,"1,318.11",BLUNDELLS DAY NURSERY,2004675
WANDSWORTH COUNCIL,CES,ENVIRONMENT & COMMUNITY,Revenue,SERVICES,FLLN - OTHER PROVIDERS,582824,354134410,03-Feb-15,"1,998.75",BLUNDELLS DAY NURSERY,SP0007103
WANDSWORTH COUNCIL,CRS,ENVIRONMENT & COMMUNITY,Revenue,PRINTING STAT & GEN OFFICE EXP,PHOTOCOPYING,583216,383333380,04-Feb-15,289.44,BNP PARIBAS LEASE GROUP (RENTALS),SP0001953
WANDSWORTH COUNCIL,PS,ENVIRONMENT & COMMUNITY,Revenue,PRINTING STAT & GEN OFFICE EXP,PHOTOCOPYING,583216,383633380,04-Feb-15,289.43,BNP PARIBAS LEASE GROUP (RENTALS),SP0001953
WANDSWORTH COUNCIL,PS,ENVIRONMENT & COMMUNITY,Revenue,SERVICES,CONSULTANTS FEES,581838,460534200,03-Feb-15,"4,500.00",BNP PARIBAS REAL ESTATE ADVISORY & PROPE,SP0003715
WANDSWORTH COUNCIL,CES,CHILDREN'S,Revenue,PRIVATE,INDEPENDENT - DAY & BOARDING,602013,221445400,27-Feb-15,"2,642.00",BOLINGBROKE ACADEMY T/A BOLINGBROKE ACAD,SP0005444
WANDSWORTH COUNCIL,CES,CHILDREN'S,Revenue,PRIVATE,INDEPENDENT - DAY & BOARDING,602014,221445400,27-Feb-15,"3,518.00",BOLINGBROKE ACADEMY T/A BOLINGBROKE ACAD,SP0005444
WANDSWORTH COUNCIL,CES,CHILDREN'S,Revenue,PRIVATE,INDEPENDENT - DAY & BOARDING,602015,221445400,27-Feb-15,"6,000.00",BOLINGBROKE ACADEMY T/A BOLINGBROKE ACAD,SP0005444
WANDSWORTH COUNCIL,CES,CHILDREN'S,Revenue,PRIVATE,INDEPENDENT - DAY & BOARDING,602016,221445400,27-Feb-15,"4,294.00",BOLINGBROKE ACADEMY T/A BOLINGBROKE ACAD,SP0005444
WANDSWORTH COUNCIL,CES,CHILDREN'S,Revenue,PRIVATE,INDEPENDENT - DAY & BOARDING,602017,221445400,27-Feb-15,"1,396.00",BOLINGBROKE ACADEMY T/A BOLINGBROKE ACAD,SP0005444
WANDSWORTH COUNCIL,CES,CHILDREN'S,Revenue,PRIVATE,INDEPENDENT - DAY & BOARDING,602018,221445400,27-Feb-15,"1,396.00",BOLINGBROKE ACADEMY T/A BOLINGBROKE ACAD,SP0005444
WANDSWORTH COUNCIL,CES,CHILDREN'S,Revenue,PRIVATE,INDEPENDENT - DAY & BOARDING,602019,221445400,27-Feb-15,"3,518.00",BOLINGBROKE ACADEMY T/A BOLINGBROKE ACAD,SP0005444
WANDSWORTH COUNCIL,CES,CHILDREN'S,Revenue,PRIVATE,INDEPENDENT - DAY & BOARDING,602020,221445400,27-Feb-15,"1,627.00",BOLINGBROKE ACADEMY T/A BOLINGBROKE ACAD,SP0005444
WANDSWORTH COUNCIL,CES,CHILDREN'S,Revenue,PRIVATE,INDEPENDENT - DAY & BOARDING,602021,221445400,27-Feb-15,"1,410.00",BOLINGBROKE ACADEMY T/A BOLINGBROKE ACAD,SP0005444
WANDSWORTH COUNCIL,CES,CHILDREN'S,Revenue,PRIVATE,INDEPENDENT - DAY & BOARDING,602023,221445400,27-Feb-15,"1,396.00",BOLINGBROKE ACADEMY T/A BOLINGBROKE ACAD,SP0005444
WANDSWORTH COUNCIL,CES,CHILDREN'S,Revenue,PRIVATE,INDEPENDENT - DAY & BOARDING,602024,221445400,27-Feb-15,"2,642.00",BOLINGBROKE ACADEMY T/A BOLINGBROKE ACAD,SP0005444
WANDSWORTH COUNCIL,CES,CHILDREN'S,Revenue,PRIVATE,INDEPENDENT - DAY & BOARDING,602025,221445400,27-Feb-15,"2,245.00",BOLINGBROKE ACADEMY T/A BOLINGBROKE ACAD,SP0005444
WANDSWORTH COUNCIL,BS,CHILDREN'S,CAPITAL,OTHER LAND & BUILDINGS,EARLY YEARS - OLAB,20300584,7004C020J1375D,10-Feb-15,"87,779.33",BOLT & HEEKS LTD,2015172
WANDSWORTH COUNCIL,BS,CHILDREN'S,CAPITAL,OTHER LAND & BUILDINGS,EARLY YEARS - OLAB,20300747,7004C020J1375D,13-Feb-15,"92,877.57",BOLT & HEEKS LTD,2015172
WANDSWORTH COUNCIL,CS,ENVIRONMENT & COMMUNITY,Revenue,HEALTH,THIRD PARTY PYMT - HEALTH,584153,128041130,05-Feb-15,"1,562.00",BOOTS THE CHEMISTS LTD,SP0006952
WANDSWORTH COUNCIL,CS,ENVIRONMENT & COMMUNITY,Revenue,HEALTH,THIRD PARTY PYMT - HEALTH,593953,128041130,18-Feb-15,641.00,BOOTS UK LTD FD303,SP0008385
WANDSWORTH COUNCIL,CS,ENVIRONMENT & COMMUNITY,Revenue,HEALTH,THIRD PARTY PYMT - HEALTH,586848,128041130,09-Feb-15,939.00,BOOTS UK LTD FDN74 T/A BOOTS THE CHEMIST,SP0008394
WANDSWORTH COUNCIL,CS,ENVIRONMENT & COMMUNITY,Revenue,HEALTH,THIRD PARTY PYMT - HEALTH,593954,128041130,18-Feb-15,"3,020.00",BOOTS UK LTD FR560,SP0008387
WANDSWORTH COUNCIL,BS,ENVIRONMENT & COMMUNITY,Revenue,INVENTORIES,BUILDING WORKS STORES,589791,6004B0020,11-Feb-15,"1,476.40",BRETT LANDSCAPING & BUILDING PRODUCTS,SP0005159
WANDSWORTH COUNCIL,BS,ENVIRONMENT & COMMUNITY,Revenue,INVENTORIES,BUILDING WORKS STORES,589792,6004B0020,11-Feb-15,"1,324.47",BRETT LANDSCAPING & BUILDING PRODUCTS,SP0005159
WANDSWORTH COUNCIL,BS,ENVIRONMENT & COMMUNITY,Revenue,INVENTORIES,BUILDING WORKS STORES,589793,6004B0020,11-Feb-15,"1,476.40",BRETT LANDSCAPING & BUILDING PRODUCTS,SP0005159
WANDSWORTH COUNCIL,BS,ENVIRONMENT & COMMUNITY,Revenue,INVENTORIES,BUILDING WORKS STORES,594113,6004B0020,17-Feb-15,"1,476.40",BRETT LANDSCAPING & BUILDING PRODUCTS,SP0005159
WANDSWORTH COUNCIL,CES,CHILDREN'S,Revenue,GRANTS & SUBSCRIPTIONS,GRANTS EARLY YRS PROVIDRS 3YR+,7015071,220037530,09-Feb-15,"1,984.52",BRIDGE LANE NURSERY LTD,2002309
WANDSWORTH COUNCIL,CES,CHILDREN'S,Revenue,GRANTS & SUBSCRIPTIONS,GRANTS EARLY YRS PROVIDRS 4YR+,7015071,220037540,09-Feb-15,547.31,BRIDGE LANE NURSERY LTD,2002309
WANDSWORTH COUNCIL,NGF ERS,ENVIRONMENT & COMMUNITY,Revenue,INDIRECT,TRAINING - INTERNAL COURSES,583215,463900780,17-Feb-15,550.00,BRIDGEBUILDERS STG LTD,SP0007140
WANDSWORTH COUNCIL,CES,CHILDREN'S,Revenue,SERVICES,2 YR NURSERY PLACES,7015098,220034000,09-Feb-15,"2,969.28",BRIGHT HORIZONS FAMILY SOLUTIONS,2011852
WANDSWORTH COUNCIL,CES,CHILDREN'S,Revenue,SERVICES,2 YR NURSERY PLACES,7015170,220034000,13-Feb-15,"5,138.40",BRIGHT HORIZONS FAMILY SOLUTIONS,2011852
WANDSWORTH COUNCIL,CES,CHILDREN'S,Revenue,GRANTS & SUBSCRIPTIONS,GRANTS EARLY YRS PROVIDRS 3YR+,7015098,220037530,09-Feb-15,"5,336.03",BRIGHT HORIZONS FAMILY SOLUTIONS,2011852
WANDSWORTH COUNCIL,CES,CHILDREN'S,Revenue,GRANTS & SUBSCRIPTIONS,GRANTS EARLY YRS PROVIDRS 3YR+,7015170,220037530,13-Feb-15,"7,169.45",BRIGHT HORIZONS FAMILY SOLUTIONS,2011852
WANDSWORTH COUNCIL,CES,CHILDREN'S,Revenue,GRANTS & SUBSCRIPTIONS,GRANTS EARLY YRS PROVIDRS 4YR+,7015098,220037540,09-Feb-15,674.24,BRIGHT HORIZONS FAMILY SOLUTIONS,2011852
WANDSWORTH COUNCIL,CES,CHILDREN'S,Revenue,GRANTS & SUBSCRIPTIONS,GRANTS EARLY YRS PROVIDRS 4YR+,7015170,220037540,13-Feb-15,853.75,BRIGHT HORIZONS FAMILY SOLUTIONS,2011852
WANDSWORTH COUNCIL,CES,CHILDREN'S,Revenue,PRIVATE,INDEPENDENT - DAY & BOARDING,595690,221445400,18-Feb-15,"2,643.00",BRIT SCHOOL PRODUCTIONS,SP0000602
WANDSWORTH COUNCIL,BS,ADMINISTRATION,Revenue,SUNDRY CREDITORS - OTHER,PORTABLE DISC-RETENTION MONIES,7015056,6002B6840,10-Feb-15,"2,000.00",Broadway Solicitors,2991000
WANDSWORTH COUNCIL,CES,CHILDREN'S,Revenue,SERVICES,2 YR NURSERY PLACES,7015063,220034000,09-Feb-15,"3,675.04",BROCKLEBANK (NURSERY PLAYGROUP & AFTER SCHOOL CARE,2002470
WANDSWORTH COUNCIL,CES,CHILDREN'S,Revenue,SERVICES,2 YR NURSERY PLACES,7015189,220034000,20-Feb-15,718.58,BROCKLEBANK (NURSERY PLAYGROUP & AFTER SCHOOL CARE,2002470
WANDSWORTH COUNCIL,CES,CHILDREN'S,Revenue,GRANTS & SUBSCRIPTIONS,GRANTS EARLY YRS PROVIDRS 3YR+,7015063,220037530,09-Feb-15,899.89,BROCKLEBANK (NURSERY PLAYGROUP & AFTER SCHOOL CARE,2002470
WANDSWORTH COUNCIL,CES,CHILDREN'S,Revenue,GRANTS & SUBSCRIPTIONS,GRANTS EARLY YRS PROVIDRS 3YR+,7015189,220037530,20-Feb-15,400.18,BROCKLEBANK (NURSERY PLAYGROUP & AFTER SCHOOL CARE,2002470
WANDSWORTH COUNCIL,CES,CHILDREN'S,Revenue,GRANTS & SUBSCRIPTIONS,GRANTS EARLY YRS PROVIDRS 4YR+,7015063,220037540,09-Feb-15,698.33,BROCKLEBANK (NURSERY PLAYGROUP & AFTER SCHOOL CARE,2002470
WANDSWORTH COUNCIL,CS,ENVIRONMENT & COMMUNITY,Revenue,HEALTH,THIRD PARTY PYMT - HEALTH,591865,128041130,18-Feb-15,"4,092.66",BROCKLEBANK GROUP PRACTICE,SP0007967
WANDSWORTH COUNCIL,NGF HS,HOUSING,Revenue,"REPAIRS, ALTERATIONS & MTCE",EX DECS (HOTPS),592802,4VLJ49770,16-Feb-15,"1,343.55",BRODIE PLANT & GODDARD,SP0000277
WANDSWORTH COUNCIL,NGF HS,HOUSING,Revenue,"REPAIRS, ALTERATIONS & MTCE",EX DECS (HOTPS),592801,4YAR49770,16-Feb-15,"1,836.19",BRODIE PLANT & GODDARD,SP0000277
WANDSWORTH COUNCIL,BS,HOUSING,CAPITAL,COUNCIL DWELLINGS,HRA REPAIRS & IMPROVEMENTS,592798,7003C001J6247C,16-Feb-15,"2,230.94",BRODIE PLANT & GODDARD,SP0000277
WANDSWORTH COUNCIL,BS,HOUSING,CAPITAL,COUNCIL DWELLINGS,HRA REPAIRS & IMPROVEMENTS,592799,7003C001J6274C,16-Feb-15,"4,555.50",BRODIE PLANT & GODDARD,SP0000277
WANDSWORTH COUNCIL,BS,HOUSING,CAPITAL,COUNCIL DWELLINGS,HRA REPAIRS & IMPROVEMENTS,592800,7003C001J6274C,16-Feb-15,"10,304.00",BRODIE PLANT & GODDARD,SP0000277
WANDSWORTH COUNCIL,ASC,SOCIAL SERVICES,Revenue,PRIVATE,EXTERNAL RESIDENTIAL CARE,591572,130245330,12-Feb-15,"7,267.88",BROOKDALE CARE,SP0000282
WANDSWORTH COUNCIL,ASC,SOCIAL SERVICES,Revenue,CUSTOMER & CLIENT RECPTS - EXT,CL CONT EXTERNAL RESIDENTIAL,591572,130280720,12-Feb-15,-362.80,BROOKDALE CARE,SP0000282
WANDSWORTH COUNCIL,ASC,SOCIAL SERVICES,Revenue,PRIVATE,EXTERNAL RESIDENTIAL CARE,589239,152645330,11-Feb-15,"1,726.76",BROOKLANDS CARE HOME,SP0001803
WANDSWORTH COUNCIL,ASC,SOCIAL SERVICES,Revenue,CUSTOMER & CLIENT RECPTS - EXT,CL CONT EXTERNAL RESIDENTIAL,589239,152680720,11-Feb-15,-495.80,BROOKLANDS CARE HOME,SP0001803
WANDSWORTH COUNCIL,NGF PS,ENVIRONMENT & COMMUNITY,Revenue,DIRECT2,AGENCY STAFF,599329,461200510,24-Feb-15,"1,600.00",BROOKSON ENGINEERING (5618i) LTD,SP0002675
WANDSWORTH COUNCIL,NGF PS,ENVIRONMENT & COMMUNITY,Revenue,DIRECT2,AGENCY STAFF,601014,461200510,26-Feb-15,"1,640.00",BROOKSON ENGINEERING (5618i) LTD,SP0002675
WANDSWORTH COUNCIL,CES,CHILDREN'S,Revenue,GRANTS & SUBSCRIPTIONS,GRANTS EARLY YRS PROVIDRS 4YR+,7015027,220037540,04-Feb-15,"6,552.96",BROOMWOOD HALL SCHOOL,2001175
WANDSWORTH COUNCIL,CES,CHILDREN'S,Revenue,GRANTS & SUBSCRIPTIONS,GRANTS EARLY YRS PROVIDRS 3YR+,7015006,220037530,04-Feb-15,"1,360.80",BROOMWOOD MONTESSORI NURSERY,2008716
WANDSWORTH COUNCIL,CES,CHILDREN'S,Revenue,GRANTS & SUBSCRIPTIONS,GRANTS EARLY YRS PROVIDRS 4YR+,7015006,220037540,04-Feb-15,194.40,BROOMWOOD MONTESSORI NURSERY,2008716
WANDSWORTH COUNCIL,BS,ADMINISTRATION,Revenue,SUNDRY CREDITORS - OTHER,PORTABLE DISC-RETENTION MONIES,7015268,6002B6840,26-Feb-15,"2,000.00",Browns Solicitors,2991000
WANDSWORTH COUNCIL,BS,ADMINISTRATION,Revenue,SUNDRY CREDITORS - OTHER,PORTABLE DISC-RETENTION MONIES,7015054,6502B6840,05-Feb-15,"-2,000.00",Browns Solicitors,2991000
WANDSWORTH COUNCIL,BS,ADMINISTRATION,CAPITAL,SUSPENSE ACCOUNTS,HRA PORTABLE DISCOUNTS,7015054,7005C209L0333Q,05-Feb-15,"1,000.00",Browns Solicitors,2991000
WANDSWORTH COUNCIL,BS,ADMINISTRATION,CAPITAL,SUSPENSE ACCOUNTS,HRA PORTABLE DISCOUNTS,7015054,7005C209L0333Q,05-Feb-15,"59,000.00",Browns Solicitors,2991000
WANDSWORTH COUNCIL,BS,ADMINISTRATION,CAPITAL,SUSPENSE ACCOUNTS,HRA PORTABLE DISCOUNTS,7015054,7005C209L0333Q,05-Feb-15,"1,000.00",Browns Solicitors,2991000
WANDSWORTH COUNCIL,NGF HS,ENVIRONMENT & COMMUNITY,Revenue,"EQUIPMENT, FURNITURE & MATS","EQUIPMENT, FURNITURE & MATS",583394,470130000,03-Feb-15,"4,134.32",BROXAP LTD,SP0002238
WANDSWORTH COUNCIL,CES,ENVIRONMENT & COMMUNITY,Revenue,DIRECT2,AGENCY STAFF,583181,368000510,04-Feb-15,690.46,BS PROJECT SERVICES LTD,SP0001051
WANDSWORTH COUNCIL,CES,ENVIRONMENT & COMMUNITY,Revenue,DIRECT2,AGENCY STAFF,583183,368000510,03-Feb-15,830.93,BS PROJECT SERVICES LTD,SP0001051
WANDSWORTH COUNCIL,CES,ENVIRONMENT & COMMUNITY,Revenue,DIRECT2,AGENCY STAFF,587534,368000510,09-Feb-15,630.54,BS PROJECT SERVICES LTD,SP0001051
WANDSWORTH COUNCIL,CES,ENVIRONMENT & COMMUNITY,Revenue,DIRECT2,AGENCY STAFF,591250,368000510,13-Feb-15,803.43,BS PROJECT SERVICES LTD,SP0001051
WANDSWORTH COUNCIL,NGF HTS,ENVIRONMENT & COMMUNITY,Revenue,"EQUIPMENT, FURNITURE & MATS","EQUIPMENT, FURNITURE & MATS",589986,471030000,11-Feb-15,"1,145.00",BSI MANAGEMENT SYSTEMS,SP0000280
WANDSWORTH COUNCIL,NGF HTS,ENVIRONMENT & COMMUNITY,Revenue,"EQUIPMENT, FURNITURE & MATS","EQUIPMENT, FURNITURE & MATS",589987,472330000,11-Feb-15,551.00,BSI MANAGEMENT SYSTEMS,SP0000280
WANDSWORTH COUNCIL,CES,ADMINISTRATION,Revenue,SERVICES,LEGAL & COURT COSTS,20301432,364034600,26-Feb-15,427.25,BT CONFERENCING,2011058
WANDSWORTH COUNCIL,CES,CHILDREN'S,Revenue,COMMUNICATIONS & COMP,COMMUNICATIONS - TELEPHONES,20300611,337136020,16-Feb-15,438.45,BT PAYMENT SERVICES LTD,2009138
WANDSWORTH COUNCIL,CES,CHILDREN'S,Revenue,COMMUNICATIONS & COMP,COMMUNICATIONS - TELEPHONES,20300818,337136020,18-Feb-15,582.06,BT PAYMENT SERVICES LTD,2009138
WANDSWORTH COUNCIL,NGF HS,HOUSING,Revenue,"REPAIRS, ALTERATIONS & MTCE",PHONE LINES - EMU LINKS,20300461,4FBF49730,09-Feb-15,951.71,BT PAYMENT SERVICES LTD,2009138
WANDSWORTH COUNCIL,NGF HS,HOUSING,Revenue,"REPAIRS, ALTERATIONS & MTCE",PHONE LINES - EMU LINKS,20300744,4FBF49730,13-Feb-15,"1,210.95",BT PAYMENT SERVICES LTD,2009138
WANDSWORTH COUNCIL,BS,FINANCE,CAPITAL,SUSPENSE ACCOUNTS,REGEN ECONOMIC DEV BUILDINGS,20300467,7006C028J0050F,11-Feb-15,848.81,BT PAYMENT SERVICES LTD,2009138
WANDSWORTH COUNCIL,CES,CHILDREN'S,Revenue,SERVICES,2 YR NURSERY PLACES,7015081,220034000,09-Feb-15,"8,140.23",BUMBLEBEE LTD,2001167
WANDSWORTH COUNCIL,CES,CHILDREN'S,Revenue,GRANTS & SUBSCRIPTIONS,GRANTS EARLY YRS PROVIDRS 3YR+,7015025,220037530,04-Feb-15,"1,946.16",BUMBLEBEE LTD,2001167
WANDSWORTH COUNCIL,CES,CHILDREN'S,Revenue,GRANTS & SUBSCRIPTIONS,GRANTS EARLY YRS PROVIDRS 3YR+,7015066,220037530,09-Feb-15,"3,699.82",BUMBLEBEE LTD,2001167
WANDSWORTH COUNCIL,CES,CHILDREN'S,Revenue,GRANTS & SUBSCRIPTIONS,GRANTS EARLY YRS PROVIDRS 3YR+,7015081,220037530,09-Feb-15,"1,426.24",BUMBLEBEE LTD,2001167
WANDSWORTH COUNCIL,CES,CHILDREN'S,Revenue,GRANTS & SUBSCRIPTIONS,GRANTS EARLY YRS PROVIDRS 4YR+,7015025,220037540,04-Feb-15,"1,121.25",BUMBLEBEE LTD,2001167
WANDSWORTH COUNCIL,CES,CHILDREN'S,Revenue,GRANTS & SUBSCRIPTIONS,GRANTS EARLY YRS PROVIDRS 4YR+,7015066,220037540,09-Feb-15,"1,950.53",BUMBLEBEE LTD,2001167
WANDSWORTH COUNCIL,CES,CHILDREN'S,Revenue,GRANTS & SUBSCRIPTIONS,GRANTS EARLY YRS PROVIDRS 4YR+,7015081,220037540,09-Feb-15,583.00,BUMBLEBEE LTD,2001167
WANDSWORTH COUNCIL,ASC,SOCIAL SERVICES,Revenue,PRIVATE,EXTERNAL RESIDENTIAL CARE,586058,152245330,05-Feb-15,"4,956.21",BUPA CARE SERVICES BACS RECEIPTS,SP0000644
WANDSWORTH COUNCIL,ASC,SOCIAL SERVICES,Revenue,CUSTOMER & CLIENT RECPTS - EXT,CL CONT EXTERNAL RESIDENTIAL,586058,152280720,05-Feb-15,"-1,009.31",BUPA CARE SERVICES BACS RECEIPTS,SP0000644
WANDSWORTH COUNCIL,ASC,SOCIAL SERVICES,Revenue,PRIVATE,EXTERNAL NURSING CARE,586029,152445310,05-Feb-15,"2,980.60",BUPA CARE SERVICES BACS RECEIPTS,SP0000644
WANDSWORTH COUNCIL,ASC,SOCIAL SERVICES,Revenue,PRIVATE,EXTERNAL RESIDENTIAL CARE,586027,152445330,05-Feb-15,"2,358.76",BUPA CARE SERVICES BACS RECEIPTS,SP0000644
WANDSWORTH COUNCIL,ASC,SOCIAL SERVICES,Revenue,PRIVATE,EXTERNAL RESIDENTIAL CARE,586046,152445330,05-Feb-15,"2,401.20",BUPA CARE SERVICES BACS RECEIPTS,SP0000644
WANDSWORTH COUNCIL,ASC,SOCIAL SERVICES,Revenue,PRIVATE,EXTERNAL RESIDENTIAL CARE,586051,152445330,05-Feb-15,"2,354.12",BUPA CARE SERVICES BACS RECEIPTS,SP0000644
WANDSWORTH COUNCIL,ASC,SOCIAL SERVICES,Revenue,PRIVATE,EXTERNAL RESIDENTIAL CARE,586059,152445330,05-Feb-15,"3,601.80",BUPA CARE SERVICES BACS RECEIPTS,SP0000644
WANDSWORTH COUNCIL,ASC,SOCIAL SERVICES,Revenue,CUSTOMER & CLIENT RECPTS - EXT,CL CONT EXTERNAL RESIDENTIAL,586046,152480720,05-Feb-15,-495.80,BUPA CARE SERVICES BACS RECEIPTS,SP0000644
WANDSWORTH COUNCIL,ASC,SOCIAL SERVICES,Revenue,CUSTOMER & CLIENT RECPTS - EXT,CL CONT EXTERNAL RESIDENTIAL,586051,152480720,05-Feb-15,-495.80,BUPA CARE SERVICES BACS RECEIPTS,SP0000644
WANDSWORTH COUNCIL,ASC,SOCIAL SERVICES,Revenue,CUSTOMER & CLIENT RECPTS - EXT,CLIENT CONTS EXTERNAL NURSING,586029,152480820,05-Feb-15,-495.80,BUPA CARE SERVICES BACS RECEIPTS,SP0000644
WANDSWORTH COUNCIL,ASC,SOCIAL SERVICES,Revenue,CUSTOMER & CLIENT RECPTS - EXT,RNCC,586029,152484120,05-Feb-15,-443.56,BUPA CARE SERVICES BACS RECEIPTS,SP0000644
WANDSWORTH COUNCIL,ASC,SOCIAL SERVICES,Revenue,PRIVATE,EXTERNAL NURSING CARE,586018,152645310,05-Feb-15,"8,302.43",BUPA CARE SERVICES BACS RECEIPTS,SP0000644
WANDSWORTH COUNCIL,ASC,SOCIAL SERVICES,Revenue,PRIVATE,EXTERNAL NURSING CARE,586021,152645310,05-Feb-15,"2,980.60",BUPA CARE SERVICES BACS RECEIPTS,SP0000644
WANDSWORTH COUNCIL,ASC,SOCIAL SERVICES,Revenue,PRIVATE,EXTERNAL NURSING CARE,586022,152645310,05-Feb-15,"2,946.96",BUPA CARE SERVICES BACS RECEIPTS,SP0000644
WANDSWORTH COUNCIL,ASC,SOCIAL SERVICES,Revenue,PRIVATE,EXTERNAL NURSING CARE,586023,152645310,05-Feb-15,"2,946.96",BUPA CARE SERVICES BACS RECEIPTS,SP0000644
WANDSWORTH COUNCIL,ASC,SOCIAL SERVICES,Revenue,PRIVATE,EXTERNAL NURSING CARE,586024,152645310,05-Feb-15,"2,941.56",BUPA CARE SERVICES BACS RECEIPTS,SP0000644
WANDSWORTH COUNCIL,ASC,SOCIAL SERVICES,Revenue,PRIVATE,EXTERNAL NURSING CARE,586026,152645310,05-Feb-15,"2,946.96",BUPA CARE SERVICES BACS RECEIPTS,SP0000644
WANDSWORTH COUNCIL,ASC,SOCIAL SERVICES,Revenue,PRIVATE,EXTERNAL NURSING CARE,586031,152645310,05-Feb-15,"2,980.60",BUPA CARE SERVICES BACS RECEIPTS,SP0000644
WANDSWORTH COUNCIL,ASC,SOCIAL SERVICES,Revenue,PRIVATE,EXTERNAL NURSING CARE,586032,152645310,05-Feb-15,"2,980.60",BUPA CARE SERVICES BACS RECEIPTS,SP0000644
WANDSWORTH COUNCIL,ASC,SOCIAL SERVICES,Revenue,PRIVATE,EXTERNAL NURSING CARE,586036,152645310,05-Feb-15,"2,980.60",BUPA CARE SERVICES BACS RECEIPTS,SP0000644
WANDSWORTH COUNCIL,ASC,SOCIAL SERVICES,Revenue,PRIVATE,EXTERNAL NURSING CARE,586038,152645310,05-Feb-15,"2,927.64",BUPA CARE SERVICES BACS RECEIPTS,SP0000644
WANDSWORTH COUNCIL,ASC,SOCIAL SERVICES,Revenue,PRIVATE,EXTERNAL NURSING CARE,586039,152645310,05-Feb-15,"2,980.60",BUPA CARE SERVICES BACS RECEIPTS,SP0000644
WANDSWORTH COUNCIL,ASC,SOCIAL SERVICES,Revenue,PRIVATE,EXTERNAL NURSING CARE,586041,152645310,05-Feb-15,"2,980.60",BUPA CARE SERVICES BACS RECEIPTS,SP0000644
WANDSWORTH COUNCIL,ASC,SOCIAL SERVICES,Revenue,PRIVATE,EXTERNAL NURSING CARE,586042,152645310,05-Feb-15,"2,980.60",BUPA CARE SERVICES BACS RECEIPTS,SP0000644
WANDSWORTH COUNCIL,ASC,SOCIAL SERVICES,Revenue,PRIVATE,EXTERNAL NURSING CARE,586043,152645310,05-Feb-15,"2,980.72",BUPA CARE SERVICES BACS RECEIPTS,SP0000644
WANDSWORTH COUNCIL,ASC,SOCIAL SERVICES,Revenue,PRIVATE,EXTERNAL NURSING CARE,586044,152645310,05-Feb-15,"2,980.60",BUPA CARE SERVICES BACS RECEIPTS,SP0000644
WANDSWORTH COUNCIL,ASC,SOCIAL SERVICES,Revenue,PRIVATE,EXTERNAL NURSING CARE,586048,152645310,05-Feb-15,"2,980.60",BUPA CARE SERVICES BACS RECEIPTS,SP0000644
WANDSWORTH COUNCIL,ASC,SOCIAL SERVICES,Revenue,PRIVATE,EXTERNAL NURSING CARE,586050,152645310,05-Feb-15,"2,922.16",BUPA CARE SERVICES BACS RECEIPTS,SP0000644
WANDSWORTH COUNCIL,ASC,SOCIAL SERVICES,Revenue,PRIVATE,EXTERNAL NURSING CARE,586052,152645310,05-Feb-15,"2,980.60",BUPA CARE SERVICES BACS RECEIPTS,SP0000644
WANDSWORTH COUNCIL,ASC,SOCIAL SERVICES,Revenue,PRIVATE,EXTERNAL NURSING CARE,586054,152645310,05-Feb-15,"2,922.16",BUPA CARE SERVICES BACS RECEIPTS,SP0000644
WANDSWORTH COUNCIL,ASC,SOCIAL SERVICES,Revenue,PRIVATE,EXTERNAL NURSING CARE,586055,152645310,05-Feb-15,"2,922.16",BUPA CARE SERVICES BACS RECEIPTS,SP0000644
WANDSWORTH COUNCIL,ASC,SOCIAL SERVICES,Revenue,PRIVATE,EXTERNAL NURSING CARE,586056,152645310,05-Feb-15,"2,980.60",BUPA CARE SERVICES BACS RECEIPTS,SP0000644
WANDSWORTH COUNCIL,ASC,SOCIAL SERVICES,Revenue,PRIVATE,EXTERNAL NURSING CARE,592660,152645310,16-Feb-15,"2,643.34",BUPA CARE SERVICES BACS RECEIPTS,SP0000644
WANDSWORTH COUNCIL,ASC,SOCIAL SERVICES,Revenue,PRIVATE,EXTERNAL RESIDENTIAL CARE,586020,152645330,05-Feb-15,"2,401.20",BUPA CARE SERVICES BACS RECEIPTS,SP0000644
WANDSWORTH COUNCIL,ASC,SOCIAL SERVICES,Revenue,PRIVATE,EXTERNAL RESIDENTIAL CARE,586028,152645330,05-Feb-15,"2,360.32",BUPA CARE SERVICES BACS RECEIPTS,SP0000644
WANDSWORTH COUNCIL,ASC,SOCIAL SERVICES,Revenue,PRIVATE,EXTERNAL RESIDENTIAL CARE,586030,152645330,05-Feb-15,"2,401.20",BUPA CARE SERVICES BACS RECEIPTS,SP0000644
WANDSWORTH COUNCIL,ASC,SOCIAL SERVICES,Revenue,PRIVATE,EXTERNAL RESIDENTIAL CARE,586034,152645330,05-Feb-15,"2,359.16",BUPA CARE SERVICES BACS RECEIPTS,SP0000644
WANDSWORTH COUNCIL,ASC,SOCIAL SERVICES,Revenue,PRIVATE,EXTERNAL RESIDENTIAL CARE,586035,152645330,05-Feb-15,"2,401.20",BUPA CARE SERVICES BACS RECEIPTS,SP0000644
WANDSWORTH COUNCIL,ASC,SOCIAL SERVICES,Revenue,PRIVATE,EXTERNAL RESIDENTIAL CARE,586037,152645330,05-Feb-15,"2,335.80",BUPA CARE SERVICES BACS RECEIPTS,SP0000644
WANDSWORTH COUNCIL,ASC,SOCIAL SERVICES,Revenue,PRIVATE,EXTERNAL RESIDENTIAL CARE,586045,152645330,05-Feb-15,"2,401.20",BUPA CARE SERVICES BACS RECEIPTS,SP0000644
WANDSWORTH COUNCIL,ASC,SOCIAL SERVICES,Revenue,PRIVATE,EXTERNAL RESIDENTIAL CARE,586049,152645330,05-Feb-15,"2,354.12",BUPA CARE SERVICES BACS RECEIPTS,SP0000644
WANDSWORTH COUNCIL,ASC,SOCIAL SERVICES,Revenue,PRIVATE,EXTERNAL RESIDENTIAL CARE,586053,152645330,05-Feb-15,"2,401.20",BUPA CARE SERVICES BACS RECEIPTS,SP0000644
WANDSWORTH COUNCIL,ASC,SOCIAL SERVICES,Revenue,CUSTOMER & CLIENT RECPTS - EXT,CL CONT EXTERNAL RESIDENTIAL,586020,152680720,05-Feb-15,-717.04,BUPA CARE SERVICES BACS RECEIPTS,SP0000644
WANDSWORTH COUNCIL,ASC,SOCIAL SERVICES,Revenue,CUSTOMER & CLIENT RECPTS - EXT,CL CONT EXTERNAL RESIDENTIAL,586028,152680720,05-Feb-15,-495.80,BUPA CARE SERVICES BACS RECEIPTS,SP0000644
WANDSWORTH COUNCIL,ASC,SOCIAL SERVICES,Revenue,CUSTOMER & CLIENT RECPTS - EXT,CL CONT EXTERNAL RESIDENTIAL,586030,152680720,05-Feb-15,-980.24,BUPA CARE SERVICES BACS RECEIPTS,SP0000644
WANDSWORTH COUNCIL,ASC,SOCIAL SERVICES,Revenue,CUSTOMER & CLIENT RECPTS - EXT,CL CONT EXTERNAL RESIDENTIAL,586035,152680720,05-Feb-15,"-1,011.76",BUPA CARE SERVICES BACS RECEIPTS,SP0000644
WANDSWORTH COUNCIL,ASC,SOCIAL SERVICES,Revenue,CUSTOMER & CLIENT RECPTS - EXT,CL CONT EXTERNAL RESIDENTIAL,586049,152680720,05-Feb-15,-639.80,BUPA CARE SERVICES BACS RECEIPTS,SP0000644
WANDSWORTH COUNCIL,ASC,SOCIAL SERVICES,Revenue,CUSTOMER & CLIENT RECPTS - EXT,CL CONT EXTERNAL RESIDENTIAL,586053,152680720,05-Feb-15,-626.20,BUPA CARE SERVICES BACS RECEIPTS,SP0000644
WANDSWORTH COUNCIL,ASC,SOCIAL SERVICES,Revenue,CUSTOMER & CLIENT RECPTS - EXT,CL CONTS INTERNAL RESIDENTIAL,586045,152680760,05-Feb-15,-577.12,BUPA CARE SERVICES BACS RECEIPTS,SP0000644
WANDSWORTH COUNCIL,ASC,SOCIAL SERVICES,Revenue,CUSTOMER & CLIENT RECPTS - EXT,CLIENT CONTS EXTERNAL NURSING,586022,152680820,05-Feb-15,-525.00,BUPA CARE SERVICES BACS RECEIPTS,SP0000644
WANDSWORTH COUNCIL,ASC,SOCIAL SERVICES,Revenue,CUSTOMER & CLIENT RECPTS - EXT,CLIENT CONTS EXTERNAL NURSING,586024,152680820,05-Feb-15,-798.12,BUPA CARE SERVICES BACS RECEIPTS,SP0000644
WANDSWORTH COUNCIL,ASC,SOCIAL SERVICES,Revenue,CUSTOMER & CLIENT RECPTS - EXT,CLIENT CONTS EXTERNAL NURSING,586026,152680820,05-Feb-15,"-1,076.00",BUPA CARE SERVICES BACS RECEIPTS,SP0000644
WANDSWORTH COUNCIL,ASC,SOCIAL SERVICES,Revenue,CUSTOMER & CLIENT RECPTS - EXT,CLIENT CONTS EXTERNAL NURSING,586032,152680820,05-Feb-15,-639.72,BUPA CARE SERVICES BACS RECEIPTS,SP0000644
WANDSWORTH COUNCIL,ASC,SOCIAL SERVICES,Revenue,CUSTOMER & CLIENT RECPTS - EXT,CLIENT CONTS EXTERNAL NURSING,586036,152680820,05-Feb-15,-685.00,BUPA CARE SERVICES BACS RECEIPTS,SP0000644
WANDSWORTH COUNCIL,ASC,SOCIAL SERVICES,Revenue,CUSTOMER & CLIENT RECPTS - EXT,CLIENT CONTS EXTERNAL NURSING,586038,152680820,05-Feb-15,-495.80,BUPA CARE SERVICES BACS RECEIPTS,SP0000644
WANDSWORTH COUNCIL,ASC,SOCIAL SERVICES,Revenue,CUSTOMER & CLIENT RECPTS - EXT,CLIENT CONTS EXTERNAL NURSING,586039,152680820,05-Feb-15,-495.80,BUPA CARE SERVICES BACS RECEIPTS,SP0000644
WANDSWORTH COUNCIL,ASC,SOCIAL SERVICES,Revenue,CUSTOMER & CLIENT RECPTS - EXT,CLIENT CONTS EXTERNAL NURSING,586041,152680820,05-Feb-15,-760.88,BUPA CARE SERVICES BACS RECEIPTS,SP0000644
WANDSWORTH COUNCIL,ASC,SOCIAL SERVICES,Revenue,CUSTOMER & CLIENT RECPTS - EXT,CLIENT CONTS EXTERNAL NURSING,586042,152680820,05-Feb-15,-567.28,BUPA CARE SERVICES BACS RECEIPTS,SP0000644
WANDSWORTH COUNCIL,ASC,SOCIAL SERVICES,Revenue,CUSTOMER & CLIENT RECPTS - EXT,CLIENT CONTS EXTERNAL NURSING,586043,152680820,05-Feb-15,-495.80,BUPA CARE SERVICES BACS RECEIPTS,SP0000644
WANDSWORTH COUNCIL,ASC,SOCIAL SERVICES,Revenue,CUSTOMER & CLIENT RECPTS - EXT,CLIENT CONTS EXTERNAL NURSING,586044,152680820,05-Feb-15,-544.84,BUPA CARE SERVICES BACS RECEIPTS,SP0000644
WANDSWORTH COUNCIL,ASC,SOCIAL SERVICES,Revenue,CUSTOMER & CLIENT RECPTS - EXT,CLIENT CONTS EXTERNAL NURSING,586048,152680820,05-Feb-15,-495.80,BUPA CARE SERVICES BACS RECEIPTS,SP0000644
WANDSWORTH COUNCIL,ASC,SOCIAL SERVICES,Revenue,CUSTOMER & CLIENT RECPTS - EXT,CLIENT CONTS EXTERNAL NURSING,586050,152680820,05-Feb-15,-836.84,BUPA CARE SERVICES BACS RECEIPTS,SP0000644
WANDSWORTH COUNCIL,ASC,SOCIAL SERVICES,Revenue,CUSTOMER & CLIENT RECPTS - EXT,CLIENT CONTS EXTERNAL NURSING,586052,152680820,05-Feb-15,-583.52,BUPA CARE SERVICES BACS RECEIPTS,SP0000644
WANDSWORTH COUNCIL,ASC,SOCIAL SERVICES,Revenue,CUSTOMER & CLIENT RECPTS - EXT,CLIENT CONTS EXTERNAL NURSING,586054,152680820,05-Feb-15,-495.80,BUPA CARE SERVICES BACS RECEIPTS,SP0000644
WANDSWORTH COUNCIL,ASC,SOCIAL SERVICES,Revenue,CUSTOMER & CLIENT RECPTS - EXT,CLIENT CONTS EXTERNAL NURSING,586055,152680820,05-Feb-15,-495.80,BUPA CARE SERVICES BACS RECEIPTS,SP0000644
WANDSWORTH COUNCIL,ASC,SOCIAL SERVICES,Revenue,CUSTOMER & CLIENT RECPTS - EXT,CLIENT CONTS EXTERNAL NURSING,586056,152680820,05-Feb-15,-495.80,BUPA CARE SERVICES BACS RECEIPTS,SP0000644
WANDSWORTH COUNCIL,ASC,SOCIAL SERVICES,Revenue,CUSTOMER & CLIENT RECPTS - EXT,RNCC,586021,152684120,05-Feb-15,-443.56,BUPA CARE SERVICES BACS RECEIPTS,SP0000644
WANDSWORTH COUNCIL,ASC,SOCIAL SERVICES,Revenue,CUSTOMER & CLIENT RECPTS - EXT,RNCC,586022,152684120,05-Feb-15,-443.56,BUPA CARE SERVICES BACS RECEIPTS,SP0000644
WANDSWORTH COUNCIL,ASC,SOCIAL SERVICES,Revenue,CUSTOMER & CLIENT RECPTS - EXT,RNCC,586023,152684120,05-Feb-15,-443.56,BUPA CARE SERVICES BACS RECEIPTS,SP0000644
WANDSWORTH COUNCIL,ASC,SOCIAL SERVICES,Revenue,CUSTOMER & CLIENT RECPTS - EXT,RNCC,586024,152684120,05-Feb-15,-443.56,BUPA CARE SERVICES BACS RECEIPTS,SP0000644
WANDSWORTH COUNCIL,ASC,SOCIAL SERVICES,Revenue,CUSTOMER & CLIENT RECPTS - EXT,RNCC,586026,152684120,05-Feb-15,-443.56,BUPA CARE SERVICES BACS RECEIPTS,SP0000644
WANDSWORTH COUNCIL,ASC,SOCIAL SERVICES,Revenue,CUSTOMER & CLIENT RECPTS - EXT,RNCC,586031,152684120,05-Feb-15,-443.56,BUPA CARE SERVICES BACS RECEIPTS,SP0000644
WANDSWORTH COUNCIL,ASC,SOCIAL SERVICES,Revenue,CUSTOMER & CLIENT RECPTS - EXT,RNCC,586032,152684120,05-Feb-15,-443.56,BUPA CARE SERVICES BACS RECEIPTS,SP0000644
WANDSWORTH COUNCIL,ASC,SOCIAL SERVICES,Revenue,CUSTOMER & CLIENT RECPTS - EXT,RNCC,586036,152684120,05-Feb-15,-443.56,BUPA CARE SERVICES BACS RECEIPTS,SP0000644
WANDSWORTH COUNCIL,ASC,SOCIAL SERVICES,Revenue,CUSTOMER & CLIENT RECPTS - EXT,RNCC,586038,152684120,05-Feb-15,-443.56,BUPA CARE SERVICES BACS RECEIPTS,SP0000644
WANDSWORTH COUNCIL,ASC,SOCIAL SERVICES,Revenue,CUSTOMER & CLIENT RECPTS - EXT,RNCC,586039,152684120,05-Feb-15,-443.56,BUPA CARE SERVICES BACS RECEIPTS,SP0000644
WANDSWORTH COUNCIL,ASC,SOCIAL SERVICES,Revenue,CUSTOMER & CLIENT RECPTS - EXT,RNCC,586041,152684120,05-Feb-15,-443.56,BUPA CARE SERVICES BACS RECEIPTS,SP0000644
WANDSWORTH COUNCIL,ASC,SOCIAL SERVICES,Revenue,CUSTOMER & CLIENT RECPTS - EXT,RNCC,586042,152684120,05-Feb-15,-443.56,BUPA CARE SERVICES BACS RECEIPTS,SP0000644
WANDSWORTH COUNCIL,ASC,SOCIAL SERVICES,Revenue,CUSTOMER & CLIENT RECPTS - EXT,RNCC,586043,152684120,05-Feb-15,-443.56,BUPA CARE SERVICES BACS RECEIPTS,SP0000644
WANDSWORTH COUNCIL,ASC,SOCIAL SERVICES,Revenue,CUSTOMER & CLIENT RECPTS - EXT,RNCC,586044,152684120,05-Feb-15,-443.56,BUPA CARE SERVICES BACS RECEIPTS,SP0000644
WANDSWORTH COUNCIL,ASC,SOCIAL SERVICES,Revenue,CUSTOMER & CLIENT RECPTS - EXT,RNCC,586048,152684120,05-Feb-15,-443.56,BUPA CARE SERVICES BACS RECEIPTS,SP0000644
WANDSWORTH COUNCIL,ASC,SOCIAL SERVICES,Revenue,CUSTOMER & CLIENT RECPTS - EXT,RNCC,586050,152684120,05-Feb-15,-443.56,BUPA CARE SERVICES BACS RECEIPTS,SP0000644
WANDSWORTH COUNCIL,ASC,SOCIAL SERVICES,Revenue,CUSTOMER & CLIENT RECPTS - EXT,RNCC,586052,152684120,05-Feb-15,-443.56,BUPA CARE SERVICES BACS RECEIPTS,SP0000644
WANDSWORTH COUNCIL,ASC,SOCIAL SERVICES,Revenue,CUSTOMER & CLIENT RECPTS - EXT,RNCC,586054,152684120,05-Feb-15,-443.56,BUPA CARE SERVICES BACS RECEIPTS,SP0000644
WANDSWORTH COUNCIL,ASC,SOCIAL SERVICES,Revenue,CUSTOMER & CLIENT RECPTS - EXT,RNCC,586055,152684120,05-Feb-15,-443.56,BUPA CARE SERVICES BACS RECEIPTS,SP0000644
WANDSWORTH COUNCIL,ASC,SOCIAL SERVICES,Revenue,CUSTOMER & CLIENT RECPTS - EXT,RNCC,586056,152684120,05-Feb-15,-443.56,BUPA CARE SERVICES BACS RECEIPTS,SP0000644
WANDSWORTH COUNCIL,ASC,SOCIAL SERVICES,Revenue,CUSTOMER & CLIENT RECPTS - EXT,RNCC,592660,152684120,16-Feb-15,-573.69,BUPA CARE SERVICES BACS RECEIPTS,SP0000644
WANDSWORTH COUNCIL,ASC,SOCIAL SERVICES,Revenue,PRIVATE,EXTERNAL NURSING CARE,586040,152845310,05-Feb-15,"2,980.60",BUPA CARE SERVICES BACS RECEIPTS,SP0000644
WANDSWORTH COUNCIL,ASC,SOCIAL SERVICES,Revenue,PRIVATE,EXTERNAL NURSING CARE,586047,152845310,05-Feb-15,"2,980.60",BUPA CARE SERVICES BACS RECEIPTS,SP0000644
WANDSWORTH COUNCIL,ASC,SOCIAL SERVICES,Revenue,PRIVATE,EXTERNAL RESIDENTIAL CARE,586033,152845330,05-Feb-15,"2,401.20",BUPA CARE SERVICES BACS RECEIPTS,SP0000644
WANDSWORTH COUNCIL,ASC,SOCIAL SERVICES,Revenue,CUSTOMER & CLIENT RECPTS - EXT,CL CONT EXTERNAL RESIDENTIAL,586033,152880720,05-Feb-15,-621.84,BUPA CARE SERVICES BACS RECEIPTS,SP0000644
WANDSWORTH COUNCIL,ASC,SOCIAL SERVICES,Revenue,CUSTOMER & CLIENT RECPTS - EXT,CLIENT CONTS EXTERNAL NURSING,586040,152880820,05-Feb-15,-603.56,BUPA CARE SERVICES BACS RECEIPTS,SP0000644
WANDSWORTH COUNCIL,ASC,SOCIAL SERVICES,Revenue,CUSTOMER & CLIENT RECPTS - EXT,RNCC,586040,152884120,05-Feb-15,-443.56,BUPA CARE SERVICES BACS RECEIPTS,SP0000644
WANDSWORTH COUNCIL,ASC,SOCIAL SERVICES,Revenue,CUSTOMER & CLIENT RECPTS - EXT,RNCC,586047,152884120,05-Feb-15,-443.56,BUPA CARE SERVICES BACS RECEIPTS,SP0000644
WANDSWORTH COUNCIL,ASC,SOCIAL SERVICES,Revenue,PRIVATE,EXTERNAL NURSING CARE,586019,162645310,05-Feb-15,"2,980.60",BUPA CARE SERVICES BACS RECEIPTS,SP0000644
WANDSWORTH COUNCIL,ASC,SOCIAL SERVICES,Revenue,PRIVATE,EXTERNAL NURSING CARE,586057,162645310,05-Feb-15,989.37,BUPA CARE SERVICES BACS RECEIPTS,SP0000644
WANDSWORTH COUNCIL,ASC,SOCIAL SERVICES,Revenue,CUSTOMER & CLIENT RECPTS - EXT,CLIENT CONTS EXTERNAL NURSING,586019,162680820,05-Feb-15,"-1,001.44",BUPA CARE SERVICES BACS RECEIPTS,SP0000644
WANDSWORTH COUNCIL,ASC,SOCIAL SERVICES,Revenue,CUSTOMER & CLIENT RECPTS - EXT,CLIENT CONTS EXTERNAL NURSING,586057,162680820,05-Feb-15,-141.16,BUPA CARE SERVICES BACS RECEIPTS,SP0000644
WANDSWORTH COUNCIL,ASC,SOCIAL SERVICES,Revenue,CUSTOMER & CLIENT RECPTS - EXT,RNCC,586019,162684120,05-Feb-15,-443.56,BUPA CARE SERVICES BACS RECEIPTS,SP0000644
WANDSWORTH COUNCIL,CRS,ENVIRONMENT & COMMUNITY,Revenue,PRINTING STAT & GEN OFFICE EXP,WANDSWORTH ART FESTIVAL,596178,442833540,25-Feb-15,690.00,BUREAU OF SILLY IDEAS LTD,SP0004493
WANDSWORTH COUNCIL,CES,CHILDREN'S,Revenue,"EQUIPMENT, FURNITURE & MATS","EQUIPMENT, FURNITURE & MATS",4010623,222930000,02-Feb-15,"22,136.00",BURNTWOOD ACADEMY,2017258
WANDSWORTH COUNCIL,CES,ENVIRONMENT & COMMUNITY,Revenue,"EQUIPMENT, FURNITURE & MATS",PURCHASE OF GOODS,597905,354130350,23-Feb-15,"23,757.85",BUSINESS AND EDUCATION LONDON SOUTH,SP0004874
WANDSWORTH COUNCIL,CES,ENVIRONMENT & COMMUNITY,Revenue,SERVICES,PROJECT WORK,581849,358034800,04-Feb-15,"3,000.00",BUSINESS AND EDUCATION LONDON SOUTH,SP0004874
WANDSWORTH COUNCIL,CES,CHILDREN'S,Revenue,SERVICES,2 YR NURSERY PLACES,7015079,220034000,09-Feb-15,"2,994.70",BUSY BEES DAY NURSERIES LTD,2000698
WANDSWORTH COUNCIL,CES,CHILDREN'S,Revenue,GRANTS & SUBSCRIPTIONS,GRANTS EARLY YRS PROVIDRS 3YR+,7015079,220037530,09-Feb-15,"6,759.74",BUSY BEES DAY NURSERIES LTD,2000698
WANDSWORTH COUNCIL,CES,CHILDREN'S,Revenue,GRANTS & SUBSCRIPTIONS,GRANTS EARLY YRS PROVIDRS 4YR+,7015079,220037540,09-Feb-15,"1,157.31",BUSY BEES DAY NURSERIES LTD,2000698
WANDSWORTH COUNCIL,ASC,SOCIAL SERVICES,Revenue,PRIVATE,EXTERNAL RESIDENTIAL CARE,600475,140545330,25-Feb-15,"10,511.04",BUTTERFLYS CARE HOMES LTD,SP0008006
WANDSWORTH COUNCIL,ASC,SOCIAL SERVICES,Revenue,PRIVATE,EXTERNAL RESIDENTIAL CARE,600476,140545330,25-Feb-15,"10,511.04",BUTTERFLYS CARE HOMES LTD,SP0008006
WANDSWORTH COUNCIL,CES,CHILDREN'S,Revenue,OTHER AGENCIES,EXTERNAL FOSTERING,588372,360743310,10-Feb-15,"7,003.00",BY THE BRIDGE,SP0008502
WANDSWORTH COUNCIL,CES,CHILDREN'S,Revenue,OTHER AGENCIES,EXTERNAL FOSTERING,588373,360743310,10-Feb-15,"6,652.85",BY THE BRIDGE,SP0008502
WANDSWORTH COUNCIL,ASC,SOCIAL SERVICES,Revenue,OTHER AGENCIES,EXTERNAL OUTREACH,589352,130243330,11-Feb-15,936.00,C M CARE LTD,SP0000455
WANDSWORTH COUNCIL,ASC,SOCIAL SERVICES,Revenue,OTHER AGENCIES,EXTERNAL OUTREACH,589353,130243330,11-Feb-15,"1,287.20",C M CARE LTD,SP0000455
WANDSWORTH COUNCIL,ASC,SOCIAL SERVICES,Revenue,OTHER AGENCIES,EXTERNAL OUTREACH,599018,130243330,24-Feb-15,"2,185.32",C M CARE LTD,SP0000455
WANDSWORTH COUNCIL,ASC,SOCIAL SERVICES,Revenue,OTHER AGENCIES,EXTERNAL OUTREACH,599021,130243330,24-Feb-15,"1,540.00",C M CARE LTD,SP0000455
WANDSWORTH COUNCIL,ASC,SOCIAL SERVICES,Revenue,VOL ASS,SUPPORTED HOUSING PROGRAMME,599020,130248030,24-Feb-15,"1,687.76",C M CARE LTD,SP0000455
WANDSWORTH COUNCIL,ASC,SOCIAL SERVICES,Revenue,VOL ASS,SUPPORTED HOUSING PROGRAMME,598787,142048030,24-Feb-15,"1,218.40",C M CARE LTD,SP0000455
WANDSWORTH COUNCIL,ASC,SOCIAL SERVICES,Revenue,VOL ASS,SUPPORTED HOUSING PROGRAMME,598788,142048030,24-Feb-15,473.20,C M CARE LTD,SP0000455
WANDSWORTH COUNCIL,ASC,SOCIAL SERVICES,Revenue,VOL ASS,SUPPORTED HOUSING PROGRAMME,598791,142048030,24-Feb-15,432.00,C M CARE LTD,SP0000455
WANDSWORTH COUNCIL,ASC,SOCIAL SERVICES,Revenue,VOL ASS,SUPPORTED HOUSING PROGRAMME,589259,142148030,11-Feb-15,"1,896.36",C M CARE LTD,SP0000455
WANDSWORTH COUNCIL,ASC,SOCIAL SERVICES,Revenue,VOL ASS,SUPPORTED HOUSING PROGRAMME,589255,142248030,11-Feb-15,"1,516.56",C M CARE LTD,SP0000455
WANDSWORTH COUNCIL,ASC,SOCIAL SERVICES,Revenue,VOL ASS,SUPPORTED HOUSING PROGRAMME,589257,142248030,11-Feb-15,"1,516.56",C M CARE LTD,SP0000455
WANDSWORTH COUNCIL,ASC,SOCIAL SERVICES,Revenue,VOL ASS,SUPPORTED HOUSING PROGRAMME,589260,142248030,11-Feb-15,"1,516.56",C M CARE LTD,SP0000455
WANDSWORTH COUNCIL,ASC,SOCIAL SERVICES,Revenue,VOL ASS,SUPPORTED HOUSING PROGRAMME,589256,142548030,11-Feb-15,"1,583.16",C M CARE LTD,SP0000455
WANDSWORTH COUNCIL,ASC,SOCIAL SERVICES,Revenue,VOL ASS,SUPPORTED HOUSING PROGRAMME,589261,142548030,11-Feb-15,"2,281.64",C M CARE LTD,SP0000455
WANDSWORTH COUNCIL,ASC,SOCIAL SERVICES,Revenue,VOL ASS,SUPPORTED HOUSING PROGRAMME,589262,142548030,11-Feb-15,"1,692.00",C M CARE LTD,SP0000455
WANDSWORTH COUNCIL,ASC,SOCIAL SERVICES,Revenue,VOL ASS,SUPPORTED HOUSING PROGRAMME,598792,142548030,24-Feb-15,"1,692.00",C M CARE LTD,SP0000455
WANDSWORTH COUNCIL,ASC,SOCIAL SERVICES,Revenue,VOL ASS,SUPPORTED HOUSING PROGRAMME,589254,142648030,11-Feb-15,"1,516.56",C M CARE LTD,SP0000455
WANDSWORTH COUNCIL,NGF CS,ADMINISTRATION,Revenue,COMMUNICATIONS & COMP,CALLS USAGE,20301066,126236050,26-Feb-15,"2,081.70",CABLE & WIRELESS COMMUNICATIONS,2009023
WANDSWORTH COUNCIL,NGF CS,ADMINISTRATION,Revenue,"EQUIPMENT, FURNITURE & MATS","EQUIPMENT, FURNITURE & MATS",20300182,126330000,04-Feb-15,"1,005.00",CABLE & WIRELESS COMMUNICATIONS,2009023
WANDSWORTH COUNCIL,NGF CS,ADMINISTRATION,Revenue,"EQUIPMENT, FURNITURE & MATS","EQUIPMENT, FURNITURE & MATS",20301060,126330000,26-Feb-15,"1,055.25",CABLE & WIRELESS COMMUNICATIONS,2009023
WANDSWORTH COUNCIL,NGF CS,ADMINISTRATION,Revenue,"EQUIPMENT, FURNITURE & MATS","EQUIPMENT, FURNITURE & MATS",20301066,126330000,26-Feb-15,385.50,CABLE & WIRELESS COMMUNICATIONS,2009023
WANDSWORTH COUNCIL,NGF CS,ADMINISTRATION,Revenue,"EQUIPMENT, FURNITURE & MATS","EQUIPMENT, FURNITURE & MATS",20300647,126530000,11-Feb-15,"12,350.00",CACI LTD,2008593
WANDSWORTH COUNCIL,CES,ENVIRONMENT & COMMUNITY,Revenue,STUDENTS,MAINTENANCE GRANTS,587777,349051040,09-Feb-15,"2,247.00",CAIUS HOUSE,SP0002262
WANDSWORTH COUNCIL,CES,ENVIRONMENT & COMMUNITY,Revenue,DIRECT,SMALL GRANTS,602157,352250460,27-Feb-15,"3,750.00",CAIUS HOUSE,SP0002262
WANDSWORTH COUNCIL,NGF HTS,ENVIRONMENT & COMMUNITY,Revenue,"EQUIPMENT, FURNITURE & MATS","EQUIPMENT, FURNITURE & MATS",590008,471030000,11-Feb-15,792.82,CALOR GAS LIMITED,SP0002695
WANDSWORTH COUNCIL,NGF HTS,ENVIRONMENT & COMMUNITY,Revenue,SERVICES,SUBCONTRACTORS,589857,474135080,11-Feb-15,668.50,CAMBRIDGE MOTOR REPAIRS,SP0003385
WANDSWORTH COUNCIL,NGF HS,HOUSING,Revenue,"REPAIRS, ALTERATIONS & MTCE",GENERAL REPS BLOCK SC (AREAS),596400,4WGK49920,19-Feb-15,680.00,CAN LONDON LTD,SP0001478
WANDSWORTH COUNCIL,NGF HS,HOUSING,Revenue,"REPAIRS, ALTERATIONS & MTCE",GENERAL REPS BLOCK SC (AREAS),589389,4YCD49920,11-Feb-15,667.35,CAN STRUCTURES LTD,SP0001098
WANDSWORTH COUNCIL,NGF CS,ENVIRONMENT & COMMUNITY,Revenue,PRINTING STAT & GEN OFFICE EXP,PAPER - QUICKPRINT,592214,121433370,20-Feb-15,160.80,CANON,SP0002304
WANDSWORTH COUNCIL,NGF CS,ENVIRONMENT & COMMUNITY,Revenue,PRINTING STAT & GEN OFFICE EXP,PAPER - QUICKPRINT,592214,121433370,20-Feb-15,180.60,CANON,SP0002304
WANDSWORTH COUNCIL,NGF CS,ENVIRONMENT & COMMUNITY,Revenue,PRINTING STAT & GEN OFFICE EXP,PAPER - QUICKPRINT,592214,121433370,20-Feb-15,153.60,CANON,SP0002304
WANDSWORTH COUNCIL,NGF CS,ENVIRONMENT & COMMUNITY,Revenue,PRINTING STAT & GEN OFFICE EXP,PAPER - QUICKPRINT,592214,121433370,20-Feb-15,66.24,CANON,SP0002304
WANDSWORTH COUNCIL,NGF CS,ENVIRONMENT & COMMUNITY,Revenue,PRINTING STAT & GEN OFFICE EXP,PAPER - QUICKPRINT,592214,121433370,20-Feb-15,81.04,CANON,SP0002304
WANDSWORTH COUNCIL,NGF CS,ENVIRONMENT & COMMUNITY,Revenue,PRINTING STAT & GEN OFFICE EXP,PAPER - QUICKPRINT,592214,121433370,20-Feb-15,72.10,CANON,SP0002304
WANDSWORTH COUNCIL,NGF CS,ENVIRONMENT & COMMUNITY,Revenue,PRINTING STAT & GEN OFFICE EXP,PAPER - QUICKPRINT,592214,121433370,20-Feb-15,76.80,CANON,SP0002304
WANDSWORTH COUNCIL,NGF CS,ENVIRONMENT & COMMUNITY,Revenue,PRINTING STAT & GEN OFFICE EXP,PAPER - QUICKPRINT,592214,121433370,20-Feb-15,116.64,CANON,SP0002304
WANDSWORTH COUNCIL,NGF CS,ENVIRONMENT & COMMUNITY,Revenue,PRINTING STAT & GEN OFFICE EXP,PAPER - QUICKPRINT,592214,121433370,20-Feb-15,156.40,CANON,SP0002304
WANDSWORTH COUNCIL,NGF CS,ENVIRONMENT & COMMUNITY,Revenue,PRINTING STAT & GEN OFFICE EXP,PAPER - QUICKPRINT,592214,121433370,20-Feb-15,66.88,CANON,SP0002304
WANDSWORTH COUNCIL,NGF CS,ENVIRONMENT & COMMUNITY,Revenue,PRINTING STAT & GEN OFFICE EXP,PAPER - QUICKPRINT,550487,121433370,17-Feb-15,"1,100.80",CANON (UK) LTD,SP0000262
WANDSWORTH COUNCIL,NGF CS,ENVIRONMENT & COMMUNITY,Revenue,PRINTING STAT & GEN OFFICE EXP,PAPER - QUICKPRINT,550487,121433370,17-Feb-15,133.12,CANON (UK) LTD,SP0000262
WANDSWORTH COUNCIL,NGF CS,ENVIRONMENT & COMMUNITY,Revenue,PRINTING STAT & GEN OFFICE EXP,PAPER - QUICKPRINT,550487,121433370,17-Feb-15,135.40,CANON (UK) LTD,SP0000262
WANDSWORTH COUNCIL,NGF CS,ENVIRONMENT & COMMUNITY,Revenue,PRINTING STAT & GEN OFFICE EXP,PAPER - QUICKPRINT,550487,121433370,17-Feb-15,159.40,CANON (UK) LTD,SP0000262
WANDSWORTH COUNCIL,NGF CS,ENVIRONMENT & COMMUNITY,Revenue,PRINTING STAT & GEN OFFICE EXP,PAPER - QUICKPRINT,550487,121433370,17-Feb-15,29.00,CANON (UK) LTD,SP0000262
WANDSWORTH COUNCIL,NGF CS,ENVIRONMENT & COMMUNITY,Revenue,PRINTING STAT & GEN OFFICE EXP,PAPER - QUICKPRINT,550487,121433370,17-Feb-15,58.00,CANON (UK) LTD,SP0000262
WANDSWORTH COUNCIL,NGF HS,ENVIRONMENT & COMMUNITY,Revenue,COMMUNICATIONS & COMP,I.T. EQUIPMENT & MAINTENANCE,599785,408636210,25-Feb-15,859.42,CANON (UK) LTD,SP0000262
WANDSWORTH COUNCIL,CS,ENVIRONMENT & COMMUNITY,Revenue,HEALTH,THIRD PARTY PYMT - HEALTH,587402,128041130,09-Feb-15,"1,028.00",CANTERBURY PHARMACIES LTD,SP0007593
WANDSWORTH COUNCIL,HS,HOUSING,Revenue,OTHER AGENCIES,PSL PAYMENTS TO LANDLORDS,20301145,411643720,24-Feb-15,538.48,CAPHALL LTD,2013660
WANDSWORTH COUNCIL,HS,HOUSING,Revenue,OTHER AGENCIES,PSL PAYMENTS TO LANDLORDS,20301146,411643720,24-Feb-15,538.48,CAPHALL LTD,2013660
WANDSWORTH COUNCIL,HS,HOUSING,Revenue,OTHER AGENCIES,PSL PAYMENTS TO LANDLORDS,20301147,411643720,24-Feb-15,538.48,CAPHALL LTD,2013660
WANDSWORTH COUNCIL,HS,HOUSING,Revenue,OTHER AGENCIES,PSL PAYMENTS TO LANDLORDS,20301148,411643720,24-Feb-15,538.48,CAPHALL LTD,2013660
WANDSWORTH COUNCIL,HS,HOUSING,Revenue,OTHER AGENCIES,PSL PAYMENTS TO LANDLORDS,20301149,411643720,24-Feb-15,538.48,CAPHALL LTD,2013660
WANDSWORTH COUNCIL,HS,HOUSING,Revenue,OTHER AGENCIES,PSL PAYMENTS TO LANDLORDS,20301150,411643720,24-Feb-15,969.24,CAPHALL LTD,2013660
WANDSWORTH COUNCIL,HS,HOUSING,Revenue,OTHER AGENCIES,PSL PAYMENTS TO LANDLORDS,20301151,411643720,24-Feb-15,538.48,CAPHALL LTD,2013660
WANDSWORTH COUNCIL,HS,HOUSING,Revenue,OTHER AGENCIES,PSL PAYMENTS TO LANDLORDS,20301152,411643720,24-Feb-15,538.48,CAPHALL LTD,2013660
WANDSWORTH COUNCIL,HS,HOUSING,Revenue,OTHER AGENCIES,PSL PAYMENTS TO LANDLORDS,20301153,411643720,24-Feb-15,538.48,CAPHALL LTD,2013660
WANDSWORTH COUNCIL,HS,HOUSING,Revenue,OTHER AGENCIES,PSL PAYMENTS TO LANDLORDS,20301154,411643720,24-Feb-15,538.48,CAPHALL LTD,2013660
WANDSWORTH COUNCIL,HS,HOUSING,Revenue,OTHER AGENCIES,PSL PAYMENTS TO LANDLORDS,20301155,411643720,24-Feb-15,538.48,CAPHALL LTD,2013660
WANDSWORTH COUNCIL,HS,HOUSING,Revenue,OTHER AGENCIES,PSL PAYMENTS TO LANDLORDS,20301156,411643720,24-Feb-15,976.24,CAPHALL LTD,2013660
WANDSWORTH COUNCIL,HS,HOUSING,Revenue,OTHER AGENCIES,PSL PAYMENTS TO LANDLORDS,20301157,411643720,24-Feb-15,538.48,CAPHALL LTD,2013660
WANDSWORTH COUNCIL,HS,HOUSING,Revenue,OTHER AGENCIES,PSL PAYMENTS TO LANDLORDS,20301158,411643720,24-Feb-15,"1,279.36",CAPHALL LTD,2013660
WANDSWORTH COUNCIL,HS,HOUSING,Revenue,OTHER AGENCIES,PSL PAYMENTS TO LANDLORDS,20301159,411643720,24-Feb-15,999.68,CAPHALL LTD,2013660
WANDSWORTH COUNCIL,HS,HOUSING,Revenue,OTHER AGENCIES,PSL PAYMENTS TO LANDLORDS,20301160,411643720,24-Feb-15,"1,093.60",CAPHALL LTD,2013660
WANDSWORTH COUNCIL,HS,HOUSING,Revenue,OTHER AGENCIES,PSL PAYMENTS TO LANDLORDS,20301161,411643720,24-Feb-15,538.48,CAPHALL LTD,2013660
WANDSWORTH COUNCIL,HS,HOUSING,Revenue,OTHER AGENCIES,PSL PAYMENTS TO LANDLORDS,20301222,411643720,25-Feb-15,538.48,CAPHALL LTD,2013660
WANDSWORTH COUNCIL,HS,HOUSING,Revenue,OTHER AGENCIES,PSL PAYMENTS TO LANDLORDS,20301223,411643720,25-Feb-15,"1,180.00",CAPHALL LTD,2013660
WANDSWORTH COUNCIL,HS,HOUSING,Revenue,OTHER AGENCIES,PSL PAYMENTS TO LANDLORDS,20301224,411643720,25-Feb-15,538.48,CAPHALL LTD,2013660
WANDSWORTH COUNCIL,HS,HOUSING,Revenue,OTHER AGENCIES,PSL PAYMENTS TO LANDLORDS,20301225,411643720,25-Feb-15,538.48,CAPHALL LTD,2013660
WANDSWORTH COUNCIL,HS,HOUSING,Revenue,OTHER AGENCIES,PSL PAYMENTS TO LANDLORDS,20301226,411643720,25-Feb-15,538.48,CAPHALL LTD,2013660
WANDSWORTH COUNCIL,HS,HOUSING,Revenue,OTHER AGENCIES,PSL PAYMENTS TO LANDLORDS,20301227,411643720,25-Feb-15,"1,120.00",CAPHALL LTD,2013660
WANDSWORTH COUNCIL,HS,HOUSING,Revenue,OTHER AGENCIES,PSL PAYMENTS TO LANDLORDS,20301228,411643720,25-Feb-15,"1,093.60",CAPHALL LTD,2013660
WANDSWORTH COUNCIL,HS,HOUSING,Revenue,OTHER AGENCIES,PSL PAYMENTS TO LANDLORDS,20301229,411643720,25-Feb-15,"1,116.00",CAPHALL LTD,2013660
WANDSWORTH COUNCIL,HS,HOUSING,Revenue,OTHER AGENCIES,PSL PAYMENTS TO LANDLORDS,20301230,411643720,25-Feb-15,538.48,CAPHALL LTD,2013660
WANDSWORTH COUNCIL,HS,HOUSING,Revenue,OTHER AGENCIES,PSL PAYMENTS TO LANDLORDS,20301231,411643720,25-Feb-15,538.48,CAPHALL LTD,2013660
WANDSWORTH COUNCIL,HS,HOUSING,Revenue,OTHER AGENCIES,PSL PAYMENTS TO LANDLORDS,20301232,411643720,25-Feb-15,538.48,CAPHALL LTD,2013660
WANDSWORTH COUNCIL,HS,HOUSING,Revenue,OTHER AGENCIES,PSL PAYMENTS TO LANDLORDS,20301233,411643720,25-Feb-15,538.48,CAPHALL LTD,2013660
WANDSWORTH COUNCIL,ASC,HOUSING,Revenue,PRIVATE,ACCOMMODATION- OTHER DESTITUTE,20300123,411945020,06-Feb-15,850.00,CAPHALL LTD,2013660
WANDSWORTH COUNCIL,CES,ENVIRONMENT & COMMUNITY,Revenue,INDIRECT,TRAINING - EXTERNAL COURSES,597806,337100770,20-Feb-15,"1,038.40",CAPITA BUSINESS SERVICES LTD,SP0000082
WANDSWORTH COUNCIL,CES,CHILDREN'S,Revenue,OTHER AGENCIES,EXTERNAL FOSTERING,601970,360743310,27-Feb-15,"3,279.92",CAPITAL CARE & FORSTER LTD,SP0005618
WANDSWORTH COUNCIL,NGF HS,HOUSING,Revenue,"REPAIRS, ALTERATIONS & MTCE",GENERAL REPS BLOCK SC (AREAS),586292,4VJD49920,05-Feb-15,"1,360.00",CAPITAL ROOFING LTD,SP0000775
WANDSWORTH COUNCIL,NGF HTS,ENVIRONMENT & COMMUNITY,Revenue,"EQUIPMENT, FURNITURE & MATS","EQUIPMENT, FURNITURE & MATS",583410,471030000,03-Feb-15,"1,675.00",CAPPAGH PUBLIC WORKS LTD,SP0002211
WANDSWORTH COUNCIL,NGF HTS,ENVIRONMENT & COMMUNITY,Revenue,"EQUIPMENT, FURNITURE & MATS","EQUIPMENT, FURNITURE & MATS",583411,471030000,03-Feb-15,435.00,CAPPAGH PUBLIC WORKS LTD,SP0002211
WANDSWORTH COUNCIL,NGF HTS,ENVIRONMENT & COMMUNITY,Revenue,"EQUIPMENT, FURNITURE & MATS","EQUIPMENT, FURNITURE & MATS",583413,471030000,03-Feb-15,500.00,CAPPAGH PUBLIC WORKS LTD,SP0002211
WANDSWORTH COUNCIL,NGF HTS,ENVIRONMENT & COMMUNITY,Revenue,"EQUIPMENT, FURNITURE & MATS","EQUIPMENT, FURNITURE & MATS",583414,471030000,03-Feb-15,"1,425.00",CAPPAGH PUBLIC WORKS LTD,SP0002211
WANDSWORTH COUNCIL,NGF HTS,ENVIRONMENT & COMMUNITY,Revenue,"EQUIPMENT, FURNITURE & MATS","EQUIPMENT, FURNITURE & MATS",583415,471030000,03-Feb-15,725.00,CAPPAGH PUBLIC WORKS LTD,SP0002211
WANDSWORTH COUNCIL,NGF HTS,ENVIRONMENT & COMMUNITY,Revenue,"EQUIPMENT, FURNITURE & MATS","EQUIPMENT, FURNITURE & MATS",594173,471030000,17-Feb-15,"1,550.00",CAPPAGH PUBLIC WORKS LTD,SP0002211
WANDSWORTH COUNCIL,NGF HTS,ENVIRONMENT & COMMUNITY,Revenue,"EQUIPMENT, FURNITURE & MATS","EQUIPMENT, FURNITURE & MATS",594174,471030000,17-Feb-15,875.00,CAPPAGH PUBLIC WORKS LTD,SP0002211
WANDSWORTH COUNCIL,BS,ENVIRONMENT & COMMUNITY,Revenue,INVENTORIES,BUILDING WORKS STORES,589766,6004B0020,11-Feb-15,614.25,CAPPAGH PUBLIC WORKS LTD,SP0002211
WANDSWORTH COUNCIL,BS,ENVIRONMENT & COMMUNITY,Revenue,INVENTORIES,BUILDING WORKS STORES,589769,6004B0020,11-Feb-15,315.00,CAPPAGH PUBLIC WORKS LTD,SP0002211
WANDSWORTH COUNCIL,BS,ENVIRONMENT & COMMUNITY,Revenue,INVENTORIES,BUILDING WORKS STORES,589769,6004B0020,11-Feb-15,309.65,CAPPAGH PUBLIC WORKS LTD,SP0002211
WANDSWORTH COUNCIL,BS,ENVIRONMENT & COMMUNITY,Revenue,INVENTORIES,BUILDING WORKS STORES,589769,6004B0020,11-Feb-15,315.00,CAPPAGH PUBLIC WORKS LTD,SP0002211
WANDSWORTH COUNCIL,BS,ENVIRONMENT & COMMUNITY,Revenue,INVENTORIES,BUILDING WORKS STORES,589769,6004B0020,11-Feb-15,315.00,CAPPAGH PUBLIC WORKS LTD,SP0002211
WANDSWORTH COUNCIL,BS,ENVIRONMENT & COMMUNITY,Revenue,INVENTORIES,BUILDING WORKS STORES,589770,6004B0020,11-Feb-15,299.25,CAPPAGH PUBLIC WORKS LTD,SP0002211
WANDSWORTH COUNCIL,BS,ENVIRONMENT & COMMUNITY,Revenue,INVENTORIES,BUILDING WORKS STORES,589770,6004B0020,11-Feb-15,299.25,CAPPAGH PUBLIC WORKS LTD,SP0002211
WANDSWORTH COUNCIL,BS,ENVIRONMENT & COMMUNITY,Revenue,INVENTORIES,BUILDING WORKS STORES,589771,6004B0020,11-Feb-15,603.54,CAPPAGH PUBLIC WORKS LTD,SP0002211
WANDSWORTH COUNCIL,BS,ENVIRONMENT & COMMUNITY,Revenue,INVENTORIES,BUILDING WORKS STORES,589771,6004B0020,11-Feb-15,299.25,CAPPAGH PUBLIC WORKS LTD,SP0002211
WANDSWORTH COUNCIL,CES,CHILDREN'S,Revenue,OTHER AGENCIES,EXTERNAL PERMANENCY,588385,360743340,10-Feb-15,"3,400.04",CAPSTONE FOSTER CARE,SP0000892
WANDSWORTH COUNCIL,NGF ASC,ENVIRONMENT & COMMUNITY,Revenue,INDIRECT,TRAINING - EXTERNAL COURSES,596174,196700770,19-Feb-15,"3,600.00",CARE AND HEALTH LAW,SP0007431
WANDSWORTH COUNCIL,NGF ASC,ENVIRONMENT & COMMUNITY,Revenue,INDIRECT,TRAINING - EXTERNAL COURSES,596175,196700770,19-Feb-15,900.00,CARE AND HEALTH LAW,SP0007431
WANDSWORTH COUNCIL,NGF ASC,ENVIRONMENT & COMMUNITY,Revenue,INDIRECT,TRAINING - EXTERNAL COURSES,596176,196700770,19-Feb-15,450.00,CARE AND HEALTH LAW,SP0007431
WANDSWORTH COUNCIL,NGF ASC,ENVIRONMENT & COMMUNITY,Revenue,COMMUNICATIONS & COMP,I.T. DEVELOPMENTS,585065,196536200,05-Feb-15,"9,268.30",CARE MONITORING 2000 LTD,SP0005061
WANDSWORTH COUNCIL,NGF ASC,ENVIRONMENT & COMMUNITY,Revenue,COMMUNICATIONS & COMP,I.T. DEVELOPMENTS,587430,196536200,10-Feb-15,"9,742.60",CARE MONITORING 2000 LTD,SP0005061
WANDSWORTH COUNCIL,ASC,SOCIAL SERVICES,Revenue,PRIVATE,EXTERNAL HOMECARE,20300834,152245300,18-Feb-15,"14,726.55",CARE OUTLOOK LTD,2013805
WANDSWORTH COUNCIL,ASC,SOCIAL SERVICES,Revenue,PRIVATE,EXTERNAL HOMECARE,20300834,152445300,18-Feb-15,"14,726.55",CARE OUTLOOK LTD,2013805
WANDSWORTH COUNCIL,ASC,SOCIAL SERVICES,Revenue,PRIVATE,EXTERNAL HOMECARE,20300834,152645300,18-Feb-15,"14,726.55",CARE OUTLOOK LTD,2013805
WANDSWORTH COUNCIL,ASC,SOCIAL SERVICES,Revenue,PRIVATE,EXTERNAL HOMECARE,582019,152645300,02-Feb-15,733.73,CARE OUTLOOK LTD,SP0001545
WANDSWORTH COUNCIL,ASC,SOCIAL SERVICES,Revenue,PRIVATE,EXTERNAL HOMECARE,586883,152645300,06-Feb-15,727.29,CARE OUTLOOK LTD,SP0001545
WANDSWORTH COUNCIL,ASC,SOCIAL SERVICES,Revenue,PRIVATE,EXTERNAL HOMECARE,586884,152645300,06-Feb-15,802.73,CARE OUTLOOK LTD,SP0001545
WANDSWORTH COUNCIL,ASC,SOCIAL SERVICES,Revenue,PRIVATE,EXTERNAL HOMECARE,586885,152645300,06-Feb-15,"1,750.67",CARE OUTLOOK LTD,SP0001545
WANDSWORTH COUNCIL,ASC,SOCIAL SERVICES,Revenue,PRIVATE,EXTERNAL HOMECARE,598938,152645300,24-Feb-15,"1,041.39",CARE OUTLOOK LTD,SP0001545
WANDSWORTH COUNCIL,ASC,SOCIAL SERVICES,Revenue,"CLOTHING, UNIFORM & LAUNDRY",EXTERNAL LAUNDRY,586901,152831520,06-Feb-15,826.00,CARE OUTLOOK LTD,SP0001545
WANDSWORTH COUNCIL,ASC,SOCIAL SERVICES,Revenue,PRIVATE,EXTERNAL HOMECARE,20300834,152845300,18-Feb-15,"14,726.54",CARE OUTLOOK LTD,2013805
WANDSWORTH COUNCIL,ASC,SOCIAL SERVICES,Revenue,PRIVATE,EXTERNAL NURSING CARE,595086,152245310,18-Feb-15,"1,244.61",CARE UK COMMUNITY PARTNERSHIP,SP0001022
WANDSWORTH COUNCIL,ASC,SOCIAL SERVICES,Revenue,PRIVATE,EXTERNAL NURSING CARE,595088,152245310,18-Feb-15,"2,423.83",CARE UK COMMUNITY PARTNERSHIP,SP0001022
WANDSWORTH COUNCIL,ASC,SOCIAL SERVICES,Revenue,CUSTOMER & CLIENT RECPTS - EXT,CLIENT CONTS EXTERNAL NURSING,595088,152280820,18-Feb-15,-713.36,CARE UK COMMUNITY PARTNERSHIP,SP0001022
WANDSWORTH COUNCIL,ASC,SOCIAL SERVICES,Revenue,CUSTOMER & CLIENT RECPTS - EXT,RNCC,595088,152284120,18-Feb-15,-470.53,CARE UK COMMUNITY PARTNERSHIP,SP0001022
WANDSWORTH COUNCIL,ASC,SOCIAL SERVICES,Revenue,PRIVATE,EXTERNAL NURSING CARE,595076,152845310,18-Feb-15,0.24,CARE UK COMMUNITY PARTNERSHIP,SP0001022
WANDSWORTH COUNCIL,ASC,SOCIAL SERVICES,Revenue,PRIVATE,EXTERNAL NURSING CARE,595077,152845310,18-Feb-15,-0.06,CARE UK COMMUNITY PARTNERSHIP,SP0001022
WANDSWORTH COUNCIL,ASC,SOCIAL SERVICES,Revenue,PRIVATE,EXTERNAL NURSING CARE,595078,152845310,18-Feb-15,0.07,CARE UK COMMUNITY PARTNERSHIP,SP0001022
WANDSWORTH COUNCIL,ASC,SOCIAL SERVICES,Revenue,PRIVATE,EXTERNAL NURSING CARE,595081,152845310,18-Feb-15,"2,798.57",CARE UK COMMUNITY PARTNERSHIP,SP0001022
WANDSWORTH COUNCIL,ASC,SOCIAL SERVICES,Revenue,PRIVATE,EXTERNAL NURSING CARE,595082,152845310,18-Feb-15,"2,891.86",CARE UK COMMUNITY PARTNERSHIP,SP0001022
WANDSWORTH COUNCIL,ASC,SOCIAL SERVICES,Revenue,PRIVATE,EXTERNAL NURSING CARE,595083,152845310,18-Feb-15,"2,798.57",CARE UK COMMUNITY PARTNERSHIP,SP0001022
WANDSWORTH COUNCIL,ASC,SOCIAL SERVICES,Revenue,PRIVATE,EXTERNAL NURSING CARE,595084,152845310,18-Feb-15,"2,891.85",CARE UK COMMUNITY PARTNERSHIP,SP0001022
WANDSWORTH COUNCIL,ASC,SOCIAL SERVICES,Revenue,PRIVATE,EXTERNAL NURSING CARE,595085,152845310,18-Feb-15,"2,891.86",CARE UK COMMUNITY PARTNERSHIP,SP0001022
WANDSWORTH COUNCIL,ASC,SOCIAL SERVICES,Revenue,CUSTOMER & CLIENT RECPTS - EXT,CLIENT CONTS EXTERNAL NURSING,595076,152880820,18-Feb-15,"2,276.16",CARE UK COMMUNITY PARTNERSHIP,SP0001022
WANDSWORTH COUNCIL,ASC,SOCIAL SERVICES,Revenue,CUSTOMER & CLIENT RECPTS - EXT,CLIENT CONTS EXTERNAL NURSING,595077,152880820,18-Feb-15,"3,724.86",CARE UK COMMUNITY PARTNERSHIP,SP0001022
WANDSWORTH COUNCIL,ASC,SOCIAL SERVICES,Revenue,CUSTOMER & CLIENT RECPTS - EXT,CLIENT CONTS EXTERNAL NURSING,595078,152880820,18-Feb-15,677.43,CARE UK COMMUNITY PARTNERSHIP,SP0001022
WANDSWORTH COUNCIL,ASC,SOCIAL SERVICES,Revenue,CUSTOMER & CLIENT RECPTS - EXT,CLIENT CONTS EXTERNAL NURSING,595079,152880820,18-Feb-15,"2,345.15",CARE UK COMMUNITY PARTNERSHIP,SP0001022
WANDSWORTH COUNCIL,ASC,SOCIAL SERVICES,Revenue,CUSTOMER & CLIENT RECPTS - EXT,CLIENT CONTS EXTERNAL NURSING,595080,152880820,18-Feb-15,"1,710.58",CARE UK COMMUNITY PARTNERSHIP,SP0001022
WANDSWORTH COUNCIL,ASC,SOCIAL SERVICES,Revenue,CUSTOMER & CLIENT RECPTS - EXT,RNCC,595081,152884120,18-Feb-15,-475.24,CARE UK COMMUNITY PARTNERSHIP,SP0001022
WANDSWORTH COUNCIL,ASC,SOCIAL SERVICES,Revenue,CUSTOMER & CLIENT RECPTS - EXT,RNCC,595082,152884120,18-Feb-15,-491.09,CARE UK COMMUNITY PARTNERSHIP,SP0001022
WANDSWORTH COUNCIL,ASC,SOCIAL SERVICES,Revenue,CUSTOMER & CLIENT RECPTS - EXT,RNCC,595083,152884120,18-Feb-15,-475.24,CARE UK COMMUNITY PARTNERSHIP,SP0001022
WANDSWORTH COUNCIL,ASC,SOCIAL SERVICES,Revenue,CUSTOMER & CLIENT RECPTS - EXT,RNCC,595084,152884120,18-Feb-15,-491.08,CARE UK COMMUNITY PARTNERSHIP,SP0001022
WANDSWORTH COUNCIL,ASC,SOCIAL SERVICES,Revenue,CUSTOMER & CLIENT RECPTS - EXT,RNCC,595085,152884120,18-Feb-15,-491.09,CARE UK COMMUNITY PARTNERSHIP,SP0001022
WANDSWORTH COUNCIL,ASC,SOCIAL SERVICES,Revenue,PRIVATE,EXTERNAL HOMECARE,598904,142245300,24-Feb-15,542.64,CARE UK HOMECARE LTD,SP0000081
WANDSWORTH COUNCIL,ASC,SOCIAL SERVICES,Revenue,PRIVATE,EXTERNAL HOMECARE,598905,142245300,24-Feb-15,542.64,CARE UK HOMECARE LTD,SP0000081
WANDSWORTH COUNCIL,ASC,SOCIAL SERVICES,Revenue,PRIVATE,EXTERNAL HOMECARE,20300833,152245300,18-Feb-15,"5,303.15",CARE UK HOMECARE LTD,2000049
WANDSWORTH COUNCIL,ASC,SOCIAL SERVICES,Revenue,PRIVATE,EXTERNAL HOMECARE,20300833,152445300,18-Feb-15,"5,303.15",CARE UK HOMECARE LTD,2000049
WANDSWORTH COUNCIL,ASC,SOCIAL SERVICES,Revenue,PRIVATE,EXTERNAL HOMECARE,20300833,152645300,18-Feb-15,"5,303.15",CARE UK HOMECARE LTD,2000049
WANDSWORTH COUNCIL,ASC,SOCIAL SERVICES,Revenue,PRIVATE,EXTERNAL HOMECARE,585369,152645300,05-Feb-15,685.60,CARE UK HOMECARE LTD,SP0000081
WANDSWORTH COUNCIL,ASC,SOCIAL SERVICES,Revenue,PRIVATE,EXTERNAL HOMECARE,585371,152645300,05-Feb-15,759.52,CARE UK HOMECARE LTD,SP0000081
WANDSWORTH COUNCIL,ASC,SOCIAL SERVICES,Revenue,PRIVATE,EXTERNAL HOMECARE,585373,152645300,05-Feb-15,951.56,CARE UK HOMECARE LTD,SP0000081
WANDSWORTH COUNCIL,ASC,SOCIAL SERVICES,Revenue,PRIVATE,EXTERNAL HOMECARE,585376,152645300,05-Feb-15,516.80,CARE UK HOMECARE LTD,SP0000081
WANDSWORTH COUNCIL,ASC,SOCIAL SERVICES,Revenue,PRIVATE,EXTERNAL HOMECARE,585379,152645300,05-Feb-15,516.80,CARE UK HOMECARE LTD,SP0000081
WANDSWORTH COUNCIL,ASC,SOCIAL SERVICES,Revenue,PRIVATE,EXTERNAL HOMECARE,585384,152645300,05-Feb-15,550.11,CARE UK HOMECARE LTD,SP0000081
WANDSWORTH COUNCIL,ASC,SOCIAL SERVICES,Revenue,PRIVATE,EXTERNAL HOMECARE,585388,152645300,05-Feb-15,"1,381.22",CARE UK HOMECARE LTD,SP0000081
WANDSWORTH COUNCIL,ASC,SOCIAL SERVICES,Revenue,PRIVATE,EXTERNAL HOMECARE,585390,152645300,05-Feb-15,676.10,CARE UK HOMECARE LTD,SP0000081
WANDSWORTH COUNCIL,ASC,SOCIAL SERVICES,Revenue,PRIVATE,EXTERNAL HOMECARE,585391,152645300,05-Feb-15,"1,275.02",CARE UK HOMECARE LTD,SP0000081
WANDSWORTH COUNCIL,ASC,SOCIAL SERVICES,Revenue,PRIVATE,EXTERNAL HOMECARE,585392,152645300,05-Feb-15,740.76,CARE UK HOMECARE LTD,SP0000081
WANDSWORTH COUNCIL,ASC,SOCIAL SERVICES,Revenue,PRIVATE,EXTERNAL HOMECARE,585394,152645300,05-Feb-15,"1,913.14",CARE UK HOMECARE LTD,SP0000081
WANDSWORTH COUNCIL,ASC,SOCIAL SERVICES,Revenue,PRIVATE,EXTERNAL HOMECARE,585396,152645300,05-Feb-15,685.60,CARE UK HOMECARE LTD,SP0000081
WANDSWORTH COUNCIL,ASC,SOCIAL SERVICES,Revenue,PRIVATE,EXTERNAL HOMECARE,585399,152645300,05-Feb-15,542.64,CARE UK HOMECARE LTD,SP0000081
WANDSWORTH COUNCIL,ASC,SOCIAL SERVICES,Revenue,PRIVATE,EXTERNAL HOMECARE,585400,152645300,05-Feb-15,"1,944.48",CARE UK HOMECARE LTD,SP0000081
WANDSWORTH COUNCIL,ASC,SOCIAL SERVICES,Revenue,PRIVATE,EXTERNAL HOMECARE,585401,152645300,05-Feb-15,"6,201.44",CARE UK HOMECARE LTD,SP0000081
WANDSWORTH COUNCIL,ASC,SOCIAL SERVICES,Revenue,PRIVATE,EXTERNAL HOMECARE,585402,152645300,05-Feb-15,"1,598.86",CARE UK HOMECARE LTD,SP0000081
WANDSWORTH COUNCIL,ASC,SOCIAL SERVICES,Revenue,PRIVATE,EXTERNAL HOMECARE,598883,152645300,24-Feb-15,759.52,CARE UK HOMECARE LTD,SP0000081
WANDSWORTH COUNCIL,ASC,SOCIAL SERVICES,Revenue,PRIVATE,EXTERNAL HOMECARE,598886,152645300,24-Feb-15,759.52,CARE UK HOMECARE LTD,SP0000081
WANDSWORTH COUNCIL,ASC,SOCIAL SERVICES,Revenue,PRIVATE,EXTERNAL HOMECARE,598887,152645300,24-Feb-15,766.84,CARE UK HOMECARE LTD,SP0000081
WANDSWORTH COUNCIL,ASC,SOCIAL SERVICES,Revenue,PRIVATE,EXTERNAL HOMECARE,598888,152645300,24-Feb-15,620.16,CARE UK HOMECARE LTD,SP0000081
WANDSWORTH COUNCIL,ASC,SOCIAL SERVICES,Revenue,PRIVATE,EXTERNAL HOMECARE,598895,152645300,24-Feb-15,697.68,CARE UK HOMECARE LTD,SP0000081
WANDSWORTH COUNCIL,ASC,SOCIAL SERVICES,Revenue,PRIVATE,EXTERNAL HOMECARE,598896,152645300,24-Feb-15,574.94,CARE UK HOMECARE LTD,SP0000081
WANDSWORTH COUNCIL,ASC,SOCIAL SERVICES,Revenue,PRIVATE,EXTERNAL HOMECARE,598897,152645300,24-Feb-15,552.33,CARE UK HOMECARE LTD,SP0000081
WANDSWORTH COUNCIL,ASC,SOCIAL SERVICES,Revenue,PRIVATE,EXTERNAL HOMECARE,598900,152645300,24-Feb-15,737.20,CARE UK HOMECARE LTD,SP0000081
WANDSWORTH COUNCIL,ASC,SOCIAL SERVICES,Revenue,PRIVATE,EXTERNAL HOMECARE,598907,152645300,24-Feb-15,613.70,CARE UK HOMECARE LTD,SP0000081
WANDSWORTH COUNCIL,ASC,SOCIAL SERVICES,Revenue,PRIVATE,EXTERNAL HOMECARE,598912,152645300,24-Feb-15,528.09,CARE UK HOMECARE LTD,SP0000081
WANDSWORTH COUNCIL,ASC,SOCIAL SERVICES,Revenue,PRIVATE,RESPITE CARE AT HOME -VOUCHERS,585384,152645510,05-Feb-15,25.58,CARE UK HOMECARE LTD,SP0000081
WANDSWORTH COUNCIL,ASC,SOCIAL SERVICES,Revenue,PRIVATE,EXTERNAL HOMECARE,20300833,152845300,18-Feb-15,"5,303.15",CARE UK HOMECARE LTD,2000049
WANDSWORTH COUNCIL,ASC,SOCIAL SERVICES,Revenue,PRIVATE,EXTERNAL HOMECARE,585381,162645300,05-Feb-15,594.32,CARE UK HOMECARE LTD,SP0000081
WANDSWORTH COUNCIL,ASC,SOCIAL SERVICES,Revenue,PRIVATE,EXTERNAL RESIDENTIAL CARE,600460,130245330,25-Feb-15,"5,474.11",CARE UK LEARNING DISABILITIES SERVICES L,SP0001039
WANDSWORTH COUNCIL,NGF HS,ENVIRONMENT & COMMUNITY,Revenue,OTHER AGENCIES,CO-OP INTEREST ALLOWANCE,587784,405243680,09-Feb-15,"1,577.50",CAREY GARDENS COOPERATIVE,SP0002625
WANDSWORTH COUNCIL,BS,ENVIRONMENT & COMMUNITY,Revenue,"HSG RENTS, HEATING & HOT WATER",CAREY GARDENS CO-OP,596181,6017B6990,19-Feb-15,969.90,CAREY GARDENS COOPERATIVE,SP0002625
WANDSWORTH COUNCIL,CES,CHILDREN'S,Revenue,SERVICES,2 YR NURSERY PLACES,7015178,220034000,13-Feb-15,"4,866.52",CARMENA CHRISTIAN DAY NURSERY,2005414
WANDSWORTH COUNCIL,CES,CHILDREN'S,Revenue,GRANTS & SUBSCRIPTIONS,GRANTS EARLY YRS PROVIDRS 3YR+,7015178,220037530,13-Feb-15,"4,136.95",CARMENA CHRISTIAN DAY NURSERY,2005414
WANDSWORTH COUNCIL,CES,CHILDREN'S,Revenue,GRANTS & SUBSCRIPTIONS,GRANTS EARLY YRS PROVIDRS 4YR+,7015178,220037540,13-Feb-15,716.50,CARMENA CHRISTIAN DAY NURSERY,2005414
WANDSWORTH COUNCIL,CES,ENVIRONMENT & COMMUNITY,Revenue,SERVICES,OUT OF SCHOOL ACTIVITIES,594274,350434730,19-Feb-15,900.00,CARNEY'S COMMUNITY,SP0009190
WANDSWORTH COUNCIL,CES,CHILDREN'S,Revenue,GRANTS & SUBSCRIPTIONS,GRANTS EARLY YRS PROVIDRS 3YR+,7015003,220037530,04-Feb-15,"2,203.20",CAROL EVELEGH,2004708
WANDSWORTH COUNCIL,CES,CHILDREN'S,Revenue,GRANTS & SUBSCRIPTIONS,GRANTS EARLY YRS PROVIDRS 3YR+,7015010,220037530,04-Feb-15,"3,434.40",CAROL EVELEGH,2004708
WANDSWORTH COUNCIL,CES,CHILDREN'S,Revenue,GRANTS & SUBSCRIPTIONS,GRANTS EARLY YRS PROVIDRS 3YR+,7015064,220037530,09-Feb-15,"3,507.71",CAROL EVELEGH,2004708
WANDSWORTH COUNCIL,CES,CHILDREN'S,Revenue,GRANTS & SUBSCRIPTIONS,GRANTS EARLY YRS PROVIDRS 3YR+,7015107,220037530,09-Feb-15,"12,879.84",CAROL EVELEGH,2004708
WANDSWORTH COUNCIL,CES,CHILDREN'S,Revenue,GRANTS & SUBSCRIPTIONS,GRANTS EARLY YRS PROVIDRS 3YR+,7015143,220037530,11-Feb-15,"5,649.60",CAROL EVELEGH,2004708
WANDSWORTH COUNCIL,CES,CHILDREN'S,Revenue,GRANTS & SUBSCRIPTIONS,GRANTS EARLY YRS PROVIDRS 3YR+,7015155,220037530,11-Feb-15,"3,100.00",CAROL EVELEGH,2004708
WANDSWORTH COUNCIL,CES,CHILDREN'S,Revenue,GRANTS & SUBSCRIPTIONS,GRANTS EARLY YRS PROVIDRS 4YR+,7015003,220037540,04-Feb-15,194.40,CAROL EVELEGH,2004708
WANDSWORTH COUNCIL,CES,CHILDREN'S,Revenue,GRANTS & SUBSCRIPTIONS,GRANTS EARLY YRS PROVIDRS 4YR+,7015010,220037540,04-Feb-15,"1,031.68",CAROL EVELEGH,2004708
WANDSWORTH COUNCIL,CES,CHILDREN'S,Revenue,GRANTS & SUBSCRIPTIONS,GRANTS EARLY YRS PROVIDRS 4YR+,7015064,220037540,09-Feb-15,583.20,CAROL EVELEGH,2004708
WANDSWORTH COUNCIL,CES,CHILDREN'S,Revenue,GRANTS & SUBSCRIPTIONS,GRANTS EARLY YRS PROVIDRS 4YR+,7015107,220037540,09-Feb-15,"5,567.68",CAROL EVELEGH,2004708
WANDSWORTH COUNCIL,CES,CHILDREN'S,Revenue,GRANTS & SUBSCRIPTIONS,GRANTS EARLY YRS PROVIDRS 4YR+,7015143,220037540,11-Feb-15,"1,801.44",CAROL EVELEGH,2004708
WANDSWORTH COUNCIL,CES,CHILDREN'S,Revenue,GRANTS & SUBSCRIPTIONS,GRANTS EARLY YRS PROVIDRS 4YR+,7015155,220037540,11-Feb-15,"1,031.84",CAROL EVELEGH,2004708
WANDSWORTH COUNCIL,CES,ENVIRONMENT & COMMUNITY,Revenue,OTHER AGENCIES,THIRD PARTY PYMT - OTH AGENCIE,583214,346443800,03-Feb-15,"1,264.50",CAROLINE ELLIS,SP0009112
WANDSWORTH COUNCIL,CES,CHILDREN'S,Revenue,SERVICES,2 YR NURSERY PLACES,7015201,220034000,18-Feb-15,"4,202.85",CARROT CAKE NURSERY,2016303
WANDSWORTH COUNCIL,CES,CHILDREN'S,Revenue,GRANTS & SUBSCRIPTIONS,GRANTS EARLY YRS PROVIDRS 3YR+,7015201,220037530,18-Feb-15,"3,304.13",CARROT CAKE NURSERY,2016303
WANDSWORTH COUNCIL,CES,CHILDREN'S,Revenue,GRANTS & SUBSCRIPTIONS,GRANTS EARLY YRS PROVIDRS 4YR+,7015201,220037540,18-Feb-15,0.17,CARROT CAKE NURSERY,2016303
WANDSWORTH COUNCIL,ASC,SOCIAL SERVICES,Revenue,PRIVATE,EXTERNAL RESIDENTIAL CARE,585084,142045330,05-Feb-15,"4,635.96",CASCADE CARE LTD,SP0005872
WANDSWORTH COUNCIL,CES,ENVIRONMENT & COMMUNITY,Revenue,PRIVATE,GENERAL CONTRACT WORK,601899,346045370,27-Feb-15,"75,976.65",CATCH 22,SP0002841
WANDSWORTH COUNCIL,CES,ENVIRONMENT & COMMUNITY,Revenue,DIRECT,CARE LEAVER RELEVANT,601899,346050320,27-Feb-15,"99,322.95",CATCH 22,SP0002841
WANDSWORTH COUNCIL,CES,ENVIRONMENT & COMMUNITY,Revenue,SERVICES,SERVICES - GENERAL,590291,353934870,11-Feb-15,"3,839.00",CATCH 22,SP0002841
WANDSWORTH COUNCIL,CES,ENVIRONMENT & COMMUNITY,Revenue,SERVICES,SERVICES - GENERAL,590292,353934870,11-Feb-15,"2,321.00",CATCH 22,SP0002841
WANDSWORTH COUNCIL,CES,ENVIRONMENT & COMMUNITY,Revenue,DIRECT,CARE LEAVER FORMER RELEVANT,593939,346150310,18-Feb-15,"1,504.15",CATCH 22 WANDSWORTH INDEPENDENT LIVING S,SP0000947
WANDSWORTH COUNCIL,CES,ENVIRONMENT & COMMUNITY,Revenue,DIRECT,CARE LEAVER FORMER RELEVANT,593940,346150310,18-Feb-15,"5,440.53",CATCH 22 WANDSWORTH INDEPENDENT LIVING S,SP0000947
WANDSWORTH COUNCIL,CES,ENVIRONMENT & COMMUNITY,Revenue,DIRECT,CARE LEAVER FORMER RELEVANT,593941,346150310,18-Feb-15,"2,365.12",CATCH 22 WANDSWORTH INDEPENDENT LIVING S,SP0000947
WANDSWORTH COUNCIL,CES,ENVIRONMENT & COMMUNITY,Revenue,PRINTING STAT & GEN OFFICE EXP,PRINTING AND STATIONERY,597803,352133420,26-Feb-15,"1,107.28",CATCH 22 WANDSWORTH INDEPENDENT LIVING S,SP0000947
WANDSWORTH COUNCIL,CES,ENVIRONMENT & COMMUNITY,Revenue,PRINTING STAT & GEN OFFICE EXP,PRINTING AND STATIONERY,597804,352133420,26-Feb-15,728.10,CATCH 22 WANDSWORTH INDEPENDENT LIVING S,SP0000947
WANDSWORTH COUNCIL,CRS,ENVIRONMENT & COMMUNITY,Revenue,PRINTING STAT & GEN OFFICE EXP,WANDSWORTH ART FESTIVAL,587521,442833540,11-Feb-15,600.00,CATH MATTOS,SP0006063
WANDSWORTH COUNCIL,CES,CHILDREN'S,Revenue,HIRE,INDEPENDENT SCH - TRANSPORT,20300826,301320420,18-Feb-15,983.55,CATHERINE WALKER,2012686
WANDSWORTH COUNCIL,CES,CHILDREN'S,Revenue,SERVICES,2 YR NURSERY PLACES,7015123,220034000,09-Feb-15,-781.97,CBCS (CHILDCARE BUSINESS & CONSULTANCY SERVICES),2009127
WANDSWORTH COUNCIL,CES,CHILDREN'S,Revenue,SERVICES,2 YR NURSERY PLACES,7015203,220034000,18-Feb-15,959.86,CBCS (CHILDCARE BUSINESS & CONSULTANCY SERVICES),2009127
WANDSWORTH COUNCIL,CES,CHILDREN'S,Revenue,GRANTS & SUBSCRIPTIONS,GRANTS EARLY YRS PROVIDRS 3YR+,7015123,220037530,09-Feb-15,"1,502.56",CBCS (CHILDCARE BUSINESS & CONSULTANCY SERVICES),2009127
WANDSWORTH COUNCIL,CES,CHILDREN'S,Revenue,GRANTS & SUBSCRIPTIONS,GRANTS EARLY YRS PROVIDRS 3YR+,7015203,220037530,18-Feb-15,"1,927.62",CBCS (CHILDCARE BUSINESS & CONSULTANCY SERVICES),2009127
WANDSWORTH COUNCIL,CES,CHILDREN'S,Revenue,GRANTS & SUBSCRIPTIONS,GRANTS EARLY YRS PROVIDRS 4YR+,7015123,220037540,09-Feb-15,385.84,CBCS (CHILDCARE BUSINESS & CONSULTANCY SERVICES),2009127
WANDSWORTH COUNCIL,CES,CHILDREN'S,Revenue,GRANTS & SUBSCRIPTIONS,GRANTS EARLY YRS PROVIDRS 3YR+,7015004,220037530,04-Feb-15,"1,970.00",CBCSERVICES NO 2 A/C,2018109
WANDSWORTH COUNCIL,CES,CHILDREN'S,Revenue,GRANTS & SUBSCRIPTIONS,GRANTS EARLY YRS PROVIDRS 4YR+,7015004,220037540,04-Feb-15,184.49,CBCSERVICES NO 2 A/C,2018109
WANDSWORTH COUNCIL,ASC,SOCIAL SERVICES,Revenue,PRIVATE,EXTERNAL NURSING CARE,593301,152445310,16-Feb-15,"3,232.00",CEDAR COURT (CRANLEIGH) CARE LTD,SP0001274
WANDSWORTH COUNCIL,ASC,SOCIAL SERVICES,Revenue,CUSTOMER & CLIENT RECPTS - EXT,CLIENT CONTS EXTERNAL NURSING,593301,152480820,16-Feb-15,-495.80,CEDAR COURT (CRANLEIGH) CARE LTD,SP0001274
WANDSWORTH COUNCIL,ASC,SOCIAL SERVICES,Revenue,CUSTOMER & CLIENT RECPTS - EXT,RNCC,593301,152484120,16-Feb-15,-443.56,CEDAR COURT (CRANLEIGH) CARE LTD,SP0001274
WANDSWORTH COUNCIL,NGF HTS,ENVIRONMENT & COMMUNITY,Revenue,"EQUIPMENT, FURNITURE & MATS","EQUIPMENT, FURNITURE & MATS",583305,471030000,03-Feb-15,259.22,CEMEX UK OPERATIONS LTD,SP0002143
WANDSWORTH COUNCIL,NGF HTS,ENVIRONMENT & COMMUNITY,Revenue,"EQUIPMENT, FURNITURE & MATS","EQUIPMENT, FURNITURE & MATS",583305,471030000,03-Feb-15,201.05,CEMEX UK OPERATIONS LTD,SP0002143
WANDSWORTH COUNCIL,NGF HTS,ENVIRONMENT & COMMUNITY,Revenue,"EQUIPMENT, FURNITURE & MATS","EQUIPMENT, FURNITURE & MATS",583305,471030000,03-Feb-15,199.40,CEMEX UK OPERATIONS LTD,SP0002143
WANDSWORTH COUNCIL,PH,ENVIRONMENT & COMMUNITY,Revenue,HEALTH,GUM SERVICE - OTHER PROVIDERS,590352,179041730,11-Feb-15,"17,206.81",CENTRAL & NORTH WEST LONDON NHS FT,SP0001397
WANDSWORTH COUNCIL,ASC,SOCIAL SERVICES,Revenue,PRIVATE,EXTERNAL RESIDENTIAL CARE,593300,142245330,16-Feb-15,"2,555.40",CENTRAL AND CECIL HOUSING TRUST,SP0005413
WANDSWORTH COUNCIL,NGF HS,HOUSING,Revenue,"REPAIRS, ALTERATIONS & MTCE",LIGHTNING CONDUCTORS,598191,4YB649700,20-Feb-15,451.09,CENTRAL HIGH RISE LTD,SP0000471
WANDSWORTH COUNCIL,NGF HS,HOUSING,Revenue,"REPAIRS, ALTERATIONS & MTCE",LIGHTNING CONDUCTORS,598196,4YC549700,20-Feb-15,436.14,CENTRAL HIGH RISE LTD,SP0000471
WANDSWORTH COUNCIL,NGF HS,HOUSING,Revenue,"REPAIRS, ALTERATIONS & MTCE",LIGHTNING CONDUCTORS,598197,4YC649700,20-Feb-15,436.14,CENTRAL HIGH RISE LTD,SP0000471
WANDSWORTH COUNCIL,NGF HS,HOUSING,Revenue,"REPAIRS, ALTERATIONS & MTCE",LIGHTNING CONDUCTORS,598193,4YKL49700,20-Feb-15,"1,142.00",CENTRAL HIGH RISE LTD,SP0000471
WANDSWORTH COUNCIL,NGF HS,HOUSING,Revenue,"REPAIRS, ALTERATIONS & MTCE",LIGHTNING CONDUCTORS,598199,4YKM49700,20-Feb-15,770.12,CENTRAL HIGH RISE LTD,SP0000471
WANDSWORTH COUNCIL,NGF HS,HOUSING,Revenue,"REPAIRS, ALTERATIONS & MTCE",LIGHTNING CONDUCTORS,598200,4YKW49700,20-Feb-15,770.12,CENTRAL HIGH RISE LTD,SP0000471
WANDSWORTH COUNCIL,CES,CHILDREN'S,Revenue,PRIVATE,INDEPENDENT - DAY & BOARDING,582061,221445400,02-Feb-15,"1,080.00",CENTRAL LONDON COMMUNITY HEALTHCARE NHS,SP0005900
WANDSWORTH COUNCIL,CES,CHILDREN'S,Revenue,PRIVATE,INDEPENDENT - DAY & BOARDING,582062,221445400,02-Feb-15,"1,080.00",CENTRAL LONDON COMMUNITY HEALTHCARE NHS,SP0005900
WANDSWORTH COUNCIL,CES,CHILDREN'S,Revenue,PRIVATE,INDEPENDENT - DAY & BOARDING,590183,221445400,11-Feb-15,"1,182.00",CENTRAL LONDON COMMUNITY HEALTHCARE NHS,SP0005900
WANDSWORTH COUNCIL,CES,CHILDREN'S,Revenue,PRIVATE,INDEPENDENT - DAY & BOARDING,590184,221445400,11-Feb-15,"1,182.00",CENTRAL LONDON COMMUNITY HEALTHCARE NHS,SP0005900
WANDSWORTH COUNCIL,CRS,ENVIRONMENT & COMMUNITY,Revenue,PRIVATE,GENERAL CONTRACT WORK,591256,383345370,16-Feb-15,"13,750.00",CENTRAL MANAGEMENT SOLUTIONS LTD,SP0008224
WANDSWORTH COUNCIL,ASC,SOCIAL SERVICES,Revenue,PRIVATE,EXTERNAL RESIDENTIAL CARE,585126,130245330,05-Feb-15,"3,975.08",CENTRUST CARE HOMES LTD,SP0000141
WANDSWORTH COUNCIL,ASC,SOCIAL SERVICES,Revenue,PRIVATE,EXTERNAL RESIDENTIAL CARE,598780,130245330,24-Feb-15,"3,590.40",CENTRUST CARE HOMES LTD,SP0000141
WANDSWORTH COUNCIL,ASC,SOCIAL SERVICES,Revenue,CUSTOMER & CLIENT RECPTS - EXT,CL CONT EXTERNAL RESIDENTIAL,585126,130280720,05-Feb-15,-353.62,CENTRUST CARE HOMES LTD,SP0000141
WANDSWORTH COUNCIL,ASC,SOCIAL SERVICES,Revenue,CUSTOMER & CLIENT RECPTS - EXT,CL CONT EXTERNAL RESIDENTIAL,598780,130280720,24-Feb-15,-319.40,CENTRUST CARE HOMES LTD,SP0000141
WANDSWORTH COUNCIL,NGF HS,HOUSING,Revenue,"REPAIRS, ALTERATIONS & MTCE",ENTRYCALL RESP BREAKDOWN REPS,583687,4WLD49680,03-Feb-15,"4,333.00",CERTUS SECURITY (UK) LLP,SP0001381
WANDSWORTH COUNCIL,CS,FINANCE,Revenue,PRIVATE,BAILIFF SERVICES,20300190,381245100,04-Feb-15,"-2,890.35",CHANDLERS LTD,2001281
WANDSWORTH COUNCIL,CS,FINANCE,Revenue,PRIVATE,BAILIFF SERVICES,20300190,381245100,04-Feb-15,"2,890.35",CHANDLERS LTD,2001281
WANDSWORTH COUNCIL,NGF HTS,ENVIRONMENT & COMMUNITY,Revenue,"EQUIPMENT, FURNITURE & MATS","EQUIPMENT, FURNITURE & MATS",583527,470430000,03-Feb-15,895.00,CHANTON GROUP PLC,SP0003826
WANDSWORTH COUNCIL,CES,CHILDREN'S,Revenue,"EQUIPMENT, FURNITURE & MATS","EQUIPMENT, FURNITURE & MATS",4010644,222830000,13-Feb-15,"17,519.00",CHAPEL STREET COMMUNITY SCHOOL TRUST TA AS WESTBRIDGE PRIMARY,2019025
WANDSWORTH COUNCIL,CES,CHILDREN'S,Revenue,"EQUIPMENT, FURNITURE & MATS","EQUIPMENT, FURNITURE & MATS",4010644,222930000,13-Feb-15,"17,273.00",CHAPEL STREET COMMUNITY SCHOOL TRUST TA AS WESTBRIDGE PRIMARY,2019025
WANDSWORTH COUNCIL,BS,ENVIRONMENT & COMMUNITY,Revenue,INVENTORIES,BUILDING WORKS STORES,589794,6004B0020,11-Feb-15,764.15,CHARLES ENDIRECT LTD,SP0005632
WANDSWORTH COUNCIL,PH,ENVIRONMENT & COMMUNITY,Revenue,INDIRECT,TRAINING - EXTERNAL COURSES,600973,345800770,26-Feb-15,"1,800.00",CHARLINE WILSON,SP0006579
WANDSWORTH COUNCIL,BS,HOUSING,CAPITAL,COUNCIL DWELLINGS,HRA REPAIRS & IMPROVEMENTS,592794,7004C001J6661D,16-Feb-15,"2,940.60",CHARLWOOD ELECTRICAL LTD,SP0005351
WANDSWORTH COUNCIL,ASC,SOCIAL SERVICES,Revenue,PRIVATE,EXTERNAL DAYCARE,585646,130245290,05-Feb-15,851.05,CHATSWORTH CARE,SP0000831
WANDSWORTH COUNCIL,ASC,SOCIAL SERVICES,Revenue,PRIVATE,EXTERNAL RESIDENTIAL CARE,585070,130245330,05-Feb-15,"9,200.00",CHATSWORTH CARE,SP0000831
WANDSWORTH COUNCIL,ASC,SOCIAL SERVICES,Revenue,PRIVATE,EXTERNAL RESIDENTIAL CARE,585071,130245330,05-Feb-15,"9,200.00",CHATSWORTH CARE,SP0000831
WANDSWORTH COUNCIL,ASC,SOCIAL SERVICES,Revenue,PRIVATE,EXTERNAL RESIDENTIAL CARE,585072,130245330,05-Feb-15,"9,200.00",CHATSWORTH CARE,SP0000831
WANDSWORTH COUNCIL,ASC,SOCIAL SERVICES,Revenue,PRIVATE,EXTERNAL RESIDENTIAL CARE,585092,130245330,05-Feb-15,"7,189.00",CHATSWORTH CARE,SP0000831
WANDSWORTH COUNCIL,ASC,SOCIAL SERVICES,Revenue,CUSTOMER & CLIENT RECPTS - EXT,CL CONT EXTERNAL RESIDENTIAL,585070,130280720,05-Feb-15,-391.00,CHATSWORTH CARE,SP0000831
WANDSWORTH COUNCIL,ASC,SOCIAL SERVICES,Revenue,CUSTOMER & CLIENT RECPTS - EXT,CL CONT EXTERNAL RESIDENTIAL,585071,130280720,05-Feb-15,-391.00,CHATSWORTH CARE,SP0000831
WANDSWORTH COUNCIL,ASC,SOCIAL SERVICES,Revenue,CUSTOMER & CLIENT RECPTS - EXT,CL CONT EXTERNAL RESIDENTIAL,585072,130280720,05-Feb-15,-391.00,CHATSWORTH CARE,SP0000831
WANDSWORTH COUNCIL,ASC,SOCIAL SERVICES,Revenue,CUSTOMER & CLIENT RECPTS - EXT,CL CONT EXTERNAL RESIDENTIAL,585092,130280720,05-Feb-15,-362.80,CHATSWORTH CARE,SP0000831
WANDSWORTH COUNCIL,ASC,SOCIAL SERVICES,Revenue,PRIVATE,EXTERNAL RESIDENTIAL CARE,592685,152245330,16-Feb-15,"2,679.43",CHD CARE LTD,SP0008523
WANDSWORTH COUNCIL,ASC,SOCIAL SERVICES,Revenue,CUSTOMER & CLIENT RECPTS - EXT,CL CONT EXTERNAL RESIDENTIAL,592685,152280720,16-Feb-15,-531.00,CHD CARE LTD,SP0008523
WANDSWORTH COUNCIL,ASC,SOCIAL SERVICES,Revenue,PRIVATE,EXTERNAL NURSING CARE,593302,152245310,16-Feb-15,"2,787.60",CHEGWORTH NURSING HOME (BAYSWIFT LTD),SP0000667
WANDSWORTH COUNCIL,ASC,SOCIAL SERVICES,Revenue,PRIVATE,EXTERNAL NURSING CARE,593304,152245310,16-Feb-15,"2,787.60",CHEGWORTH NURSING HOME (BAYSWIFT LTD),SP0000667
WANDSWORTH COUNCIL,ASC,SOCIAL SERVICES,Revenue,CUSTOMER & CLIENT RECPTS - EXT,CLIENT CONTS EXTERNAL NURSING,593302,152280820,16-Feb-15,-507.00,CHEGWORTH NURSING HOME (BAYSWIFT LTD),SP0000667
WANDSWORTH COUNCIL,ASC,SOCIAL SERVICES,Revenue,CUSTOMER & CLIENT RECPTS - EXT,CLIENT CONTS EXTERNAL NURSING,593304,152280820,16-Feb-15,-881.56,CHEGWORTH NURSING HOME (BAYSWIFT LTD),SP0000667
WANDSWORTH COUNCIL,ASC,SOCIAL SERVICES,Revenue,CUSTOMER & CLIENT RECPTS - EXT,RNCC,593302,152284120,16-Feb-15,-443.56,CHEGWORTH NURSING HOME (BAYSWIFT LTD),SP0000667
WANDSWORTH COUNCIL,ASC,SOCIAL SERVICES,Revenue,CUSTOMER & CLIENT RECPTS - EXT,RNCC,593304,152284120,16-Feb-15,-443.56,CHEGWORTH NURSING HOME (BAYSWIFT LTD),SP0000667
WANDSWORTH COUNCIL,ASC,SOCIAL SERVICES,Revenue,PRIVATE,EXTERNAL NURSING CARE,593303,152845310,16-Feb-15,"2,787.60",CHEGWORTH NURSING HOME (BAYSWIFT LTD),SP0000667
WANDSWORTH COUNCIL,ASC,SOCIAL SERVICES,Revenue,CUSTOMER & CLIENT RECPTS - EXT,CLIENT CONTS EXTERNAL NURSING,593303,152880820,16-Feb-15,-652.44,CHEGWORTH NURSING HOME (BAYSWIFT LTD),SP0000667
WANDSWORTH COUNCIL,ASC,SOCIAL SERVICES,Revenue,CUSTOMER & CLIENT RECPTS - EXT,RNCC,593303,152884120,16-Feb-15,-443.56,CHEGWORTH NURSING HOME (BAYSWIFT LTD),SP0000667
WANDSWORTH COUNCIL,NGF ASC,SOCIAL SERVICES,Revenue,"EQUIPMENT, FURNITURE & MATS",PURCHASE OF EQUIP- SOCIAL CARE,20301500,190030500,25-Feb-15,58.40,CHELMACK LTD (FLL81),2015436
WANDSWORTH COUNCIL,NGF ASC,SOCIAL SERVICES,Revenue,SERVICES,ADAPTATIONS AT HOME- PRIVATE,20301500,190035050,25-Feb-15,45.79,CHELMACK LTD (FLL81),2015436
WANDSWORTH COUNCIL,NGF ASC,SOCIAL SERVICES,Revenue,SERVICES,ADAPTATIONS AT HOME- PRIVATE,20301500,190535050,25-Feb-15,323.00,CHELMACK LTD (FLL81),2015436
WANDSWORTH COUNCIL,NGF ASC,SOCIAL SERVICES,Revenue,"EQUIPMENT, FURNITURE & MATS",ADAPTATIONS - COUNCIL,20301500,191030020,25-Feb-15,36.36,CHELMACK LTD (FLL81),2015436
WANDSWORTH COUNCIL,NGF ASC,SOCIAL SERVICES,Revenue,"EQUIPMENT, FURNITURE & MATS",PURCHASE OF EQUIP- SOCIAL CARE,20301500,191030500,25-Feb-15,130.85,CHELMACK LTD (FLL81),2015436
WANDSWORTH COUNCIL,CES,CHILDREN'S,Revenue,OTH LA,FEES & CHARGES OTHER LA,20300427,221444570,13-Feb-15,"2,911.53",CHELSEA ACADEMY,2018137
WANDSWORTH COUNCIL,CES,CHILDREN'S,Revenue,OTH LA,FEES & CHARGES OTHER LA,20300428,221444570,13-Feb-15,"3,840.65",CHELSEA ACADEMY,2018137
WANDSWORTH COUNCIL,CES,CHILDREN'S,Revenue,OTH LA,FEES & CHARGES OTHER LA,20300429,221444570,13-Feb-15,529.20,CHELSEA ACADEMY,2018137
WANDSWORTH COUNCIL,CES,ENVIRONMENT & COMMUNITY,Revenue,GRANTS & SUBSCRIPTIONS,CONTRACTS TO VOLUNTARY ORGS,586822,349037550,06-Feb-15,"41,500.00",CHELSEA FC FOUNDATION,SP0003770
WANDSWORTH COUNCIL,CES,CHILDREN'S,Revenue,"EQUIPMENT, FURNITURE & MATS","EQUIPMENT, FURNITURE & MATS",4010624,222930000,02-Feb-15,"26,558.00",CHESTNUT GROVE SCHOOL,2013582
WANDSWORTH COUNCIL,ASC,SOCIAL SERVICES,Revenue,PRIVATE,EXTERNAL RESIDENTIAL CARE,585168,142045330,05-Feb-15,"3,193.31",CHILDHOOD FIRST,SP0005833
WANDSWORTH COUNCIL,ASC,SOCIAL SERVICES,Revenue,PRIVATE,EXTERNAL RESIDENTIAL CARE,585169,142045330,05-Feb-15,"2,884.20",CHILDHOOD FIRST,SP0005833
WANDSWORTH COUNCIL,CES,CHILDREN'S,Revenue,PRIVATE,EXTERNAL RESIDENTIAL CARE,597977,376345330,20-Feb-15,"8,116.00",CHOICE LIFESTYLES LTD,SP0000257
WANDSWORTH COUNCIL,ASC,SOCIAL SERVICES,Revenue,VOL ASS,SUPPORTED HOUSING PROGRAMME,597101,130248030,19-Feb-15,"7,972.24",CHOICE SUPPORT,SP0000398
WANDSWORTH COUNCIL,ASC,SOCIAL SERVICES,Revenue,VOL ASS,SUPPORTED HOUSING PROGRAMME,597199,130248030,19-Feb-15,"8,080.68",CHOICE SUPPORT,SP0000398
WANDSWORTH COUNCIL,ASC,SOCIAL SERVICES,Revenue,PRIVATE,EXTERNAL DAYCARE,589338,130245290,11-Feb-15,726.07,CHOICES,SP0000486
WANDSWORTH COUNCIL,ASC,SOCIAL SERVICES,Revenue,PRIVATE,EXTERNAL RESIDENTIAL CARE,585131,142545330,05-Feb-15,"3,333.12",CHRIST THE KING RESIDENTIAL CARE,SP0001203
WANDSWORTH COUNCIL,ASC,SOCIAL SERVICES,Revenue,PRIVATE,EXTERNAL RESIDENTIAL CARE,585132,142545330,05-Feb-15,"2,735.88",CHRIST THE KING RESIDENTIAL CARE,SP0001203
WANDSWORTH COUNCIL,ASC,SOCIAL SERVICES,Revenue,PRIVATE,EXTERNAL HOMECARE,589294,130245300,11-Feb-15,"3,232.00",CHRISTIES CARE LTD,SP0005440
WANDSWORTH COUNCIL,NGF HS,FINANCE,Revenue,"REPAIRS, ALTERATIONS & MTCE",CCTCV SYSTEMS ROUTINE,581922,407249830,02-Feb-15,"1,081.49",CHROMA-VISION LTD,SP0000996
WANDSWORTH COUNCIL,NGF HS,FINANCE,Revenue,"REPAIRS, ALTERATIONS & MTCE",CCTCV SYSTEMS ROUTINE,581923,407249830,02-Feb-15,"1,056.01",CHROMA-VISION LTD,SP0000996
WANDSWORTH COUNCIL,NGF HS,FINANCE,Revenue,"REPAIRS, ALTERATIONS & MTCE",CCTCV SYSTEMS ROUTINE,596634,407249830,19-Feb-15,885.63,CHROMA-VISION LTD,SP0000996
WANDSWORTH COUNCIL,NGF HS,FINANCE,Revenue,"REPAIRS, ALTERATIONS & MTCE",CCTCV SYSTEMS ROUTINE,596635,407249830,19-Feb-15,687.04,CHROMA-VISION LTD,SP0000996
WANDSWORTH COUNCIL,NGF HS,FINANCE,Revenue,"REPAIRS, ALTERATIONS & MTCE",CCTCV SYSTEMS ROUTINE,596637,407249830,19-Feb-15,442.34,CHROMA-VISION LTD,SP0000996
WANDSWORTH COUNCIL,NGF HS,FINANCE,Revenue,"REPAIRS, ALTERATIONS & MTCE",CCTCV SYSTEMS ROUTINE,596748,407249830,19-Feb-15,"1,244.82",CHROMA-VISION LTD,SP0000996
WANDSWORTH COUNCIL,ERS,FINANCE,Revenue,"EQUIPMENT, FURNITURE & MATS",CCTV MAINTENANCE,596633,46543005K05541,19-Feb-15,"1,590.09",CHROMA-VISION LTD,SP0000996
WANDSWORTH COUNCIL,HS,ENVIRONMENT & COMMUNITY,Revenue,"EQUIPMENT, FURNITURE & MATS","EQUIPMENT, FURNITURE & MATS",600128,412230000,27-Feb-15,"4,800.00",CHUBB SYSTEMS LTD,SP0001053
WANDSWORTH COUNCIL,HS,ENVIRONMENT & COMMUNITY,Revenue,"EQUIPMENT, FURNITURE & MATS","EQUIPMENT, FURNITURE & MATS",600128,412230000,27-Feb-15,"1,715.00",CHUBB SYSTEMS LTD,SP0001053
WANDSWORTH COUNCIL,HS,ENVIRONMENT & COMMUNITY,Revenue,"EQUIPMENT, FURNITURE & MATS",EQUIP.FURN & MATS-REPS & MTCE,600131,412430010,27-Feb-15,592.80,CHUBB SYSTEMS LTD,SP0001053
WANDSWORTH COUNCIL,HS,ENVIRONMENT & COMMUNITY,Revenue,"EQUIPMENT, FURNITURE & MATS",EQUIP.FURN & MATS-REPS & MTCE,600131,412430010,27-Feb-15,37.80,CHUBB SYSTEMS LTD,SP0001053
WANDSWORTH COUNCIL,PS,ENVIRONMENT & COMMUNITY,Revenue,PRIVATE,GENERAL CONTRACT WORK,564120,385245370,18-Feb-15,"10,606.25",CHURCHMAN LANDSCAPE ARCHITECTS,SP0008625
WANDSWORTH COUNCIL,NGF HS,ENVIRONMENT & COMMUNITY,Revenue,"EQUIPMENT, FURNITURE & MATS","EQUIPMENT, FURNITURE & MATS",583408,470230000,03-Feb-15,508.80,CIRCAD DESIGN LTD,SP0006845
WANDSWORTH COUNCIL,CRS,ENVIRONMENT & COMMUNITY,Revenue,GRANTS & SUBSCRIPTIONS,SUBSCRIPTIONS,591278,385637640,16-Feb-15,"3,500.00",CITB-CONSTRUCTION SKILLS,SP0009107
WANDSWORTH COUNCIL,ERS,ENVIRONMENT & COMMUNITY,Revenue,OTH LA,CITY OF LONDON VET. ACT,592287,465544550,17-Feb-15,"3,801.00",CITY OF LONDON,SP0006584
WANDSWORTH COUNCIL,CRS,ENVIRONMENT & COMMUNITY,Revenue,"EQUIPMENT, FURNITURE & MATS","EQUIPMENT, FURNITURE & MATS",20301618,422330000,26-Feb-15,"5,600.00",CITY SUBURBAN TREE SURGEONS LIMITED,2016711
WANDSWORTH COUNCIL,NGF CRS,ENVIRONMENT & COMMUNITY,Revenue,GROUNDS MAINTENANCE,"REPS, ALTS & MTCE-PARKS TREES",20300076,423112190,02-Feb-15,47.00,CITY SUBURBAN TREE SURGEONS LIMITED,2016711
WANDSWORTH COUNCIL,CRS,ENVIRONMENT & COMMUNITY,Revenue,GROUNDS MAINTENANCE,"REPS, ALTS & MTCE-PARKS TREES",20300076,423212190,02-Feb-15,390.64,CITY SUBURBAN TREE SURGEONS LIMITED,2016711
WANDSWORTH COUNCIL,HTS,ENVIRONMENT & COMMUNITY,Revenue,GROUNDS MAINTENANCE,"REPS, ALTS & MTCE-PARKS TREES",20300076,452012190,02-Feb-15,123.13,CITY SUBURBAN TREE SURGEONS LIMITED,2016711
WANDSWORTH COUNCIL,NGF HS,ENVIRONMENT & COMMUNITY,Revenue,GROUNDS MAINTENANCE,"REPS, ALTS & MTCE-PARKS TREES",20300076,4YGY12190,02-Feb-15,143.92,CITY SUBURBAN TREE SURGEONS LIMITED,2016711
WANDSWORTH COUNCIL,CES,CHILDREN'S,Revenue,SERVICES,CONSULTANTS FEES,20300917,301834200,27-Feb-15,"22,220.40",CIVICA UK LTD,2002358
WANDSWORTH COUNCIL,CES,CHILDREN'S,Revenue,SERVICES,CONSULTANTS FEES,20300919,301834200,27-Feb-15,"18,401.90",CIVICA UK LTD,2002358
WANDSWORTH COUNCIL,CES,ENVIRONMENT & COMMUNITY,Revenue,SERVICES,CONSULTANTS FEES,587510,354134200,10-Feb-15,700.00,CJS TRAINING LTD,SP0009090
WANDSWORTH COUNCIL,BS,HOUSING,CAPITAL,COUNCIL DWELLINGS,HRA REPAIRS & IMPROVEMENTS,592788,7004C001J6100D,16-Feb-15,"3,486.82",CLAIRGLOW HEATING LTD,SP0001106
WANDSWORTH COUNCIL,CS,ENVIRONMENT & COMMUNITY,Revenue,HEALTH,THIRD PARTY PYMT - HEALTH,584134,128041130,05-Feb-15,"2,644.50",CLARKE PHARMACY,SP0007660
WANDSWORTH COUNCIL,BS,HOUSING,CAPITAL,COUNCIL DWELLINGS,HRA REPAIRS & IMPROVEMENTS,590405,7004C001J8178D,11-Feb-15,"7,760.00",CLC CONTRACTORS LTD,SP0000953
WANDSWORTH COUNCIL,BS,HOUSING,CAPITAL,COUNCIL DWELLINGS,HRA REPAIRS & IMPROVEMENTS,590406,7004C001J8178D,11-Feb-15,"19,605.00",CLC CONTRACTORS LTD,SP0000953
WANDSWORTH COUNCIL,BS,FINANCE,CAPITAL,SUSPENSE ACCOUNTS,REGEN ECONOMIC DEV BUILDINGS,20300233,7007C028J0053G,11-Feb-15,"1,575.00",CLEAR CHANNEL UK LTD,2009107
WANDSWORTH COUNCIL,ASC,SOCIAL SERVICES,Revenue,PRIVATE,EXTERNAL DAYCARE,596306,130245290,19-Feb-15,"1,904.20",CMG HOMES LTD,SP0000075
WANDSWORTH COUNCIL,ASC,SOCIAL SERVICES,Revenue,PRIVATE,EXTERNAL RESIDENTIAL CARE,589236,130245330,11-Feb-15,"5,632.12",CMG HOMES LTD,SP0000075
WANDSWORTH COUNCIL,ASC,SOCIAL SERVICES,Revenue,PRIVATE,EXTERNAL RESIDENTIAL CARE,589242,130245330,11-Feb-15,"3,911.48",CMG HOMES LTD,SP0000075
WANDSWORTH COUNCIL,ASC,SOCIAL SERVICES,Revenue,PRIVATE,EXTERNAL RESIDENTIAL CARE,589243,130245330,11-Feb-15,"6,007.12",CMG HOMES LTD,SP0000075
WANDSWORTH COUNCIL,ASC,SOCIAL SERVICES,Revenue,PRIVATE,EXTERNAL RESIDENTIAL CARE,589244,130245330,11-Feb-15,"5,553.00",CMG HOMES LTD,SP0000075
WANDSWORTH COUNCIL,ASC,SOCIAL SERVICES,Revenue,PRIVATE,EXTERNAL RESIDENTIAL CARE,589245,130245330,11-Feb-15,"4,244.60",CMG HOMES LTD,SP0000075
WANDSWORTH COUNCIL,ASC,SOCIAL SERVICES,Revenue,PRIVATE,EXTERNAL RESIDENTIAL CARE,589246,130245330,11-Feb-15,"4,244.60",CMG HOMES LTD,SP0000075
WANDSWORTH COUNCIL,ASC,SOCIAL SERVICES,Revenue,PRIVATE,EXTERNAL RESIDENTIAL CARE,589247,130245330,11-Feb-15,"4,244.60",CMG HOMES LTD,SP0000075
WANDSWORTH COUNCIL,ASC,SOCIAL SERVICES,Revenue,PRIVATE,EXTERNAL RESIDENTIAL CARE,589248,130245330,11-Feb-15,"8,061.00",CMG HOMES LTD,SP0000075
WANDSWORTH COUNCIL,ASC,SOCIAL SERVICES,Revenue,PRIVATE,EXTERNAL RESIDENTIAL CARE,589249,130245330,11-Feb-15,"4,866.36",CMG HOMES LTD,SP0000075
WANDSWORTH COUNCIL,ASC,SOCIAL SERVICES,Revenue,PRIVATE,EXTERNAL RESIDENTIAL CARE,589250,130245330,11-Feb-15,"4,646.00",CMG HOMES LTD,SP0000075
WANDSWORTH COUNCIL,ASC,SOCIAL SERVICES,Revenue,PRIVATE,EXTERNAL RESIDENTIAL CARE,589253,130245330,11-Feb-15,"7,123.64",CMG HOMES LTD,SP0000075
WANDSWORTH COUNCIL,ASC,SOCIAL SERVICES,Revenue,PRIVATE,EXTERNAL RESIDENTIAL CARE,596210,130245330,19-Feb-15,"4,415.60",CMG HOMES LTD,SP0000075
WANDSWORTH COUNCIL,ASC,SOCIAL SERVICES,Revenue,VOL ASS,SUPPORTED HOUSING PROGRAMME,589251,130248030,11-Feb-15,"4,120.24",CMG HOMES LTD,SP0000075
WANDSWORTH COUNCIL,ASC,SOCIAL SERVICES,Revenue,CUSTOMER & CLIENT RECPTS - EXT,CL CONT EXTERNAL RESIDENTIAL,589236,130280720,11-Feb-15,-319.40,CMG HOMES LTD,SP0000075
WANDSWORTH COUNCIL,ASC,SOCIAL SERVICES,Revenue,CUSTOMER & CLIENT RECPTS - EXT,CL CONT EXTERNAL RESIDENTIAL,589242,130280720,11-Feb-15,-335.00,CMG HOMES LTD,SP0000075
WANDSWORTH COUNCIL,ASC,SOCIAL SERVICES,Revenue,CUSTOMER & CLIENT RECPTS - EXT,CL CONT EXTERNAL RESIDENTIAL,589244,130280720,11-Feb-15,-397.20,CMG HOMES LTD,SP0000075
WANDSWORTH COUNCIL,ASC,SOCIAL SERVICES,Revenue,CUSTOMER & CLIENT RECPTS - EXT,CL CONT EXTERNAL RESIDENTIAL,589245,130280720,11-Feb-15,-131.80,CMG HOMES LTD,SP0000075
WANDSWORTH COUNCIL,ASC,SOCIAL SERVICES,Revenue,CUSTOMER & CLIENT RECPTS - EXT,CL CONT EXTERNAL RESIDENTIAL,589246,130280720,11-Feb-15,-131.80,CMG HOMES LTD,SP0000075
WANDSWORTH COUNCIL,ASC,SOCIAL SERVICES,Revenue,CUSTOMER & CLIENT RECPTS - EXT,CL CONT EXTERNAL RESIDENTIAL,589247,130280720,11-Feb-15,-131.80,CMG HOMES LTD,SP0000075
WANDSWORTH COUNCIL,ASC,SOCIAL SERVICES,Revenue,CUSTOMER & CLIENT RECPTS - EXT,CL CONT EXTERNAL RESIDENTIAL,589248,130280720,11-Feb-15,-319.40,CMG HOMES LTD,SP0000075
WANDSWORTH COUNCIL,ASC,SOCIAL SERVICES,Revenue,CUSTOMER & CLIENT RECPTS - EXT,CL CONT EXTERNAL RESIDENTIAL,589249,130280720,11-Feb-15,-319.40,CMG HOMES LTD,SP0000075
WANDSWORTH COUNCIL,ASC,SOCIAL SERVICES,Revenue,CUSTOMER & CLIENT RECPTS - EXT,CL CONT EXTERNAL RESIDENTIAL,589250,130280720,11-Feb-15,-495.80,CMG HOMES LTD,SP0000075
WANDSWORTH COUNCIL,ASC,SOCIAL SERVICES,Revenue,CUSTOMER & CLIENT RECPTS - EXT,CL CONT EXTERNAL RESIDENTIAL,589253,130280720,11-Feb-15,-362.80,CMG HOMES LTD,SP0000075
WANDSWORTH COUNCIL,ASC,SOCIAL SERVICES,Revenue,CUSTOMER & CLIENT RECPTS - EXT,CL CONT EXTERNAL RESIDENTIAL,596210,130280720,19-Feb-15,-319.40,CMG HOMES LTD,SP0000075
WANDSWORTH COUNCIL,NGF CS,ENVIRONMENT & COMMUNITY,Revenue,DIRECT2,AGENCY STAFF,585512,120500510,09-Feb-15,807.12,COBALT CONSULTING (UK) LTD,SP0008002
WANDSWORTH COUNCIL,NGF CS,ENVIRONMENT & COMMUNITY,Revenue,DIRECT2,AGENCY STAFF,592240,120500510,17-Feb-15,"1,189.44",COBALT CONSULTING (UK) LTD,SP0008002
WANDSWORTH COUNCIL,NGF CS,ENVIRONMENT & COMMUNITY,Revenue,DIRECT2,AGENCY STAFF,592241,120500510,17-Feb-15,"1,486.80",COBALT CONSULTING (UK) LTD,SP0008002
WANDSWORTH COUNCIL,NGF CS,ENVIRONMENT & COMMUNITY,Revenue,DIRECT2,AGENCY STAFF,592242,120500510,17-Feb-15,"1,359.36",COBALT CONSULTING (UK) LTD,SP0008002
WANDSWORTH COUNCIL,HTS,ENVIRONMENT & COMMUNITY,Revenue,SERVICES,COBALT - TELEPHONE,593942,456034170,19-Feb-15,"1,079.83",COBALT TELEPHONE TECHNOLOGIES LTD,SP0001904
WANDSWORTH COUNCIL,BS,HOUSING,CAPITAL,COUNCIL DWELLINGS,HRA REPAIRS & IMPROVEMENTS,592792,7004C001J6451D,16-Feb-15,"38,347.04",COBSEN DAVIES ROOFING LTD,SP0000778
WANDSWORTH COUNCIL,CRS,FINANCE,Revenue,ENERGY,COMBINED HEAT & POWER - COMPEN,20301032,433410760,20-Feb-15,78.51,COGENCO LTD,2005859
WANDSWORTH COUNCIL,CRS,FINANCE,Revenue,ENERGY,COMBINED HEAT & POWER - COMPEN,20301032,433610760,20-Feb-15,416.23,COGENCO LTD,2005859
WANDSWORTH COUNCIL,CRS,ENVIRONMENT & COMMUNITY,Revenue,COMMUNICATIONS & COMP,I.T. EQUIPMENT & MAINTENANCE,542259,385536210,12-Feb-15,500.00,COGNISOFT LTD,SP0006739
WANDSWORTH COUNCIL,CRS,ENVIRONMENT & COMMUNITY,Revenue,COMMUNICATIONS & COMP,I.T. EQUIPMENT & MAINTENANCE,542260,385536210,12-Feb-15,"10,000.00",COGNISOFT LTD,SP0006739
WANDSWORTH COUNCIL,CRS,ENVIRONMENT & COMMUNITY,Revenue,COMMUNICATIONS & COMP,I.T. EQUIPMENT & MAINTENANCE,542260,385536210,12-Feb-15,"2,000.00",COGNISOFT LTD,SP0006739
WANDSWORTH COUNCIL,CRS,ENVIRONMENT & COMMUNITY,Revenue,"EQUIPMENT, FURNITURE & MATS",MATERIALS-ART SHOP RESALES,588931,439730210,20-Feb-15,57.42,COLART FINE ART & GRAPHICS LTD,SP0003399
WANDSWORTH COUNCIL,CRS,ENVIRONMENT & COMMUNITY,Revenue,"EQUIPMENT, FURNITURE & MATS",MATERIALS-ART SHOP RESALES,588931,439730210,20-Feb-15,34.55,COLART FINE ART & GRAPHICS LTD,SP0003399
WANDSWORTH COUNCIL,CRS,ENVIRONMENT & COMMUNITY,Revenue,"EQUIPMENT, FURNITURE & MATS",MATERIALS-ART SHOP RESALES,588931,439730210,20-Feb-15,19.53,COLART FINE ART & GRAPHICS LTD,SP0003399
WANDSWORTH COUNCIL,CRS,ENVIRONMENT & COMMUNITY,Revenue,"EQUIPMENT, FURNITURE & MATS",MATERIALS-ART SHOP RESALES,588931,439730210,20-Feb-15,59.22,COLART FINE ART & GRAPHICS LTD,SP0003399
WANDSWORTH COUNCIL,CRS,ENVIRONMENT & COMMUNITY,Revenue,"EQUIPMENT, FURNITURE & MATS",MATERIALS-ART SHOP RESALES,588931,439730210,20-Feb-15,34.55,COLART FINE ART & GRAPHICS LTD,SP0003399
WANDSWORTH COUNCIL,CRS,ENVIRONMENT & COMMUNITY,Revenue,"EQUIPMENT, FURNITURE & MATS",MATERIALS-ART SHOP RESALES,588931,439730210,20-Feb-15,10.94,COLART FINE ART & GRAPHICS LTD,SP0003399
WANDSWORTH COUNCIL,CRS,ENVIRONMENT & COMMUNITY,Revenue,"EQUIPMENT, FURNITURE & MATS",MATERIALS-ART SHOP RESALES,588931,439730210,20-Feb-15,25.38,COLART FINE ART & GRAPHICS LTD,SP0003399
WANDSWORTH COUNCIL,CRS,ENVIRONMENT & COMMUNITY,Revenue,"EQUIPMENT, FURNITURE & MATS",MATERIALS-ART SHOP RESALES,588931,439730210,20-Feb-15,6.51,COLART FINE ART & GRAPHICS LTD,SP0003399
WANDSWORTH COUNCIL,CRS,ENVIRONMENT & COMMUNITY,Revenue,"EQUIPMENT, FURNITURE & MATS",MATERIALS-ART SHOP RESALES,588931,439730210,20-Feb-15,34.55,COLART FINE ART & GRAPHICS LTD,SP0003399
WANDSWORTH COUNCIL,CRS,ENVIRONMENT & COMMUNITY,Revenue,"EQUIPMENT, FURNITURE & MATS",MATERIALS-ART SHOP RESALES,588931,439730210,20-Feb-15,12.99,COLART FINE ART & GRAPHICS LTD,SP0003399
WANDSWORTH COUNCIL,CRS,ENVIRONMENT & COMMUNITY,Revenue,"EQUIPMENT, FURNITURE & MATS",MATERIALS-ART SHOP RESALES,588931,439730210,20-Feb-15,16.28,COLART FINE ART & GRAPHICS LTD,SP0003399
WANDSWORTH COUNCIL,CRS,ENVIRONMENT & COMMUNITY,Revenue,"EQUIPMENT, FURNITURE & MATS",MATERIALS-ART SHOP RESALES,588931,439730210,20-Feb-15,34.55,COLART FINE ART & GRAPHICS LTD,SP0003399
WANDSWORTH COUNCIL,CRS,ENVIRONMENT & COMMUNITY,Revenue,"EQUIPMENT, FURNITURE & MATS",MATERIALS-ART SHOP RESALES,588931,439730210,20-Feb-15,6.51,COLART FINE ART & GRAPHICS LTD,SP0003399
WANDSWORTH COUNCIL,CRS,ENVIRONMENT & COMMUNITY,Revenue,"EQUIPMENT, FURNITURE & MATS",MATERIALS-ART SHOP RESALES,588931,439730210,20-Feb-15,62.64,COLART FINE ART & GRAPHICS LTD,SP0003399
WANDSWORTH COUNCIL,CRS,ENVIRONMENT & COMMUNITY,Revenue,"EQUIPMENT, FURNITURE & MATS",MATERIALS-ART SHOP RESALES,588931,439730210,20-Feb-15,24.68,COLART FINE ART & GRAPHICS LTD,SP0003399
WANDSWORTH COUNCIL,CRS,ENVIRONMENT & COMMUNITY,Revenue,"EQUIPMENT, FURNITURE & MATS",MATERIALS-ART SHOP RESALES,588931,439730210,20-Feb-15,49.35,COLART FINE ART & GRAPHICS LTD,SP0003399
WANDSWORTH COUNCIL,CRS,ENVIRONMENT & COMMUNITY,Revenue,"EQUIPMENT, FURNITURE & MATS",MATERIALS-ART SHOP RESALES,588931,439730210,20-Feb-15,19.82,COLART FINE ART & GRAPHICS LTD,SP0003399
WANDSWORTH COUNCIL,CRS,ENVIRONMENT & COMMUNITY,Revenue,"EQUIPMENT, FURNITURE & MATS",MATERIALS-ART SHOP RESALES,588931,439730210,20-Feb-15,24.68,COLART FINE ART & GRAPHICS LTD,SP0003399
WANDSWORTH COUNCIL,CRS,ENVIRONMENT & COMMUNITY,Revenue,"EQUIPMENT, FURNITURE & MATS",MATERIALS-ART SHOP RESALES,588931,439730210,20-Feb-15,19.08,COLART FINE ART & GRAPHICS LTD,SP0003399
WANDSWORTH COUNCIL,CRS,ENVIRONMENT & COMMUNITY,Revenue,"EQUIPMENT, FURNITURE & MATS",MATERIALS-ART SHOP RESALES,588931,439730210,20-Feb-15,13.02,COLART FINE ART & GRAPHICS LTD,SP0003399
WANDSWORTH COUNCIL,CRS,ENVIRONMENT & COMMUNITY,Revenue,"EQUIPMENT, FURNITURE & MATS",MATERIALS-ART SHOP RESALES,588931,439730210,20-Feb-15,9.87,COLART FINE ART & GRAPHICS LTD,SP0003399
WANDSWORTH COUNCIL,CRS,ENVIRONMENT & COMMUNITY,Revenue,"EQUIPMENT, FURNITURE & MATS",MATERIALS-ART SHOP RESALES,588931,439730210,20-Feb-15,9.77,COLART FINE ART & GRAPHICS LTD,SP0003399
WANDSWORTH COUNCIL,CRS,ENVIRONMENT & COMMUNITY,Revenue,"EQUIPMENT, FURNITURE & MATS",MATERIALS-ART SHOP RESALES,588931,439730210,20-Feb-15,6.51,COLART FINE ART & GRAPHICS LTD,SP0003399
WANDSWORTH COUNCIL,CRS,ENVIRONMENT & COMMUNITY,Revenue,"EQUIPMENT, FURNITURE & MATS",MATERIALS-ART SHOP RESALES,588931,439730210,20-Feb-15,62.52,COLART FINE ART & GRAPHICS LTD,SP0003399
WANDSWORTH COUNCIL,CRS,ENVIRONMENT & COMMUNITY,Revenue,"EQUIPMENT, FURNITURE & MATS",MATERIALS-ART SHOP RESALES,588931,439730210,20-Feb-15,24.68,COLART FINE ART & GRAPHICS LTD,SP0003399
WANDSWORTH COUNCIL,CRS,ENVIRONMENT & COMMUNITY,Revenue,"EQUIPMENT, FURNITURE & MATS",MATERIALS-ART SHOP RESALES,588931,439730210,20-Feb-15,16.28,COLART FINE ART & GRAPHICS LTD,SP0003399
WANDSWORTH COUNCIL,CRS,ENVIRONMENT & COMMUNITY,Revenue,"EQUIPMENT, FURNITURE & MATS",MATERIALS-ART SHOP RESALES,588931,439730210,20-Feb-15,39.48,COLART FINE ART & GRAPHICS LTD,SP0003399
WANDSWORTH COUNCIL,CRS,ENVIRONMENT & COMMUNITY,Revenue,"EQUIPMENT, FURNITURE & MATS",MATERIALS-ART SHOP RESALES,588931,439730210,20-Feb-15,49.35,COLART FINE ART & GRAPHICS LTD,SP0003399
WANDSWORTH COUNCIL,CRS,ENVIRONMENT & COMMUNITY,Revenue,"EQUIPMENT, FURNITURE & MATS",MATERIALS-ART SHOP RESALES,588931,439730210,20-Feb-15,16.28,COLART FINE ART & GRAPHICS LTD,SP0003399
WANDSWORTH COUNCIL,CRS,ENVIRONMENT & COMMUNITY,Revenue,"EQUIPMENT, FURNITURE & MATS",MATERIALS-ART SHOP RESALES,588931,439730210,20-Feb-15,14.81,COLART FINE ART & GRAPHICS LTD,SP0003399
WANDSWORTH COUNCIL,CRS,ENVIRONMENT & COMMUNITY,Revenue,"EQUIPMENT, FURNITURE & MATS",MATERIALS-ART SHOP RESALES,588931,439730210,20-Feb-15,19.53,COLART FINE ART & GRAPHICS LTD,SP0003399
WANDSWORTH COUNCIL,CRS,ENVIRONMENT & COMMUNITY,Revenue,"EQUIPMENT, FURNITURE & MATS",MATERIALS-ART SHOP RESALES,588931,439730210,20-Feb-15,27.39,COLART FINE ART & GRAPHICS LTD,SP0003399
WANDSWORTH COUNCIL,CRS,ENVIRONMENT & COMMUNITY,Revenue,"EQUIPMENT, FURNITURE & MATS",MATERIALS-ART SHOP RESALES,598743,439730210,24-Feb-15,8.64,COLART FINE ART & GRAPHICS LTD,SP0003399
WANDSWORTH COUNCIL,CRS,ENVIRONMENT & COMMUNITY,Revenue,"EQUIPMENT, FURNITURE & MATS",MATERIALS-ART SHOP RESALES,598743,439730210,24-Feb-15,16.28,COLART FINE ART & GRAPHICS LTD,SP0003399
WANDSWORTH COUNCIL,CRS,ENVIRONMENT & COMMUNITY,Revenue,"EQUIPMENT, FURNITURE & MATS",MATERIALS-ART SHOP RESALES,598743,439730210,24-Feb-15,4.94,COLART FINE ART & GRAPHICS LTD,SP0003399
WANDSWORTH COUNCIL,CRS,ENVIRONMENT & COMMUNITY,Revenue,"EQUIPMENT, FURNITURE & MATS",MATERIALS-ART SHOP RESALES,598743,439730210,24-Feb-15,34.55,COLART FINE ART & GRAPHICS LTD,SP0003399
WANDSWORTH COUNCIL,CRS,ENVIRONMENT & COMMUNITY,Revenue,"EQUIPMENT, FURNITURE & MATS",MATERIALS-ART SHOP RESALES,598743,439730210,24-Feb-15,49.35,COLART FINE ART & GRAPHICS LTD,SP0003399
WANDSWORTH COUNCIL,CRS,ENVIRONMENT & COMMUNITY,Revenue,"EQUIPMENT, FURNITURE & MATS",MATERIALS-ART SHOP RESALES,598743,439730210,24-Feb-15,13.74,COLART FINE ART & GRAPHICS LTD,SP0003399
WANDSWORTH COUNCIL,CRS,ENVIRONMENT & COMMUNITY,Revenue,"EQUIPMENT, FURNITURE & MATS",MATERIALS-ART SHOP RESALES,598743,439730210,24-Feb-15,5.49,COLART FINE ART & GRAPHICS LTD,SP0003399
WANDSWORTH COUNCIL,CRS,ENVIRONMENT & COMMUNITY,Revenue,"EQUIPMENT, FURNITURE & MATS",MATERIALS-ART SHOP RESALES,598743,439730210,24-Feb-15,3.39,COLART FINE ART & GRAPHICS LTD,SP0003399
WANDSWORTH COUNCIL,CRS,ENVIRONMENT & COMMUNITY,Revenue,"EQUIPMENT, FURNITURE & MATS",MATERIALS-ART SHOP RESALES,598743,439730210,24-Feb-15,14.81,COLART FINE ART & GRAPHICS LTD,SP0003399
WANDSWORTH COUNCIL,CRS,ENVIRONMENT & COMMUNITY,Revenue,"EQUIPMENT, FURNITURE & MATS",MATERIALS-ART SHOP RESALES,598743,439730210,24-Feb-15,12.49,COLART FINE ART & GRAPHICS LTD,SP0003399
WANDSWORTH COUNCIL,CRS,ENVIRONMENT & COMMUNITY,Revenue,"EQUIPMENT, FURNITURE & MATS",MATERIALS-ART SHOP RESALES,598743,439730210,24-Feb-15,54.16,COLART FINE ART & GRAPHICS LTD,SP0003399
WANDSWORTH COUNCIL,CRS,ENVIRONMENT & COMMUNITY,Revenue,"EQUIPMENT, FURNITURE & MATS",MATERIALS-ART SHOP RESALES,598743,439730210,24-Feb-15,17.28,COLART FINE ART & GRAPHICS LTD,SP0003399
WANDSWORTH COUNCIL,CRS,ENVIRONMENT & COMMUNITY,Revenue,"EQUIPMENT, FURNITURE & MATS",MATERIALS-ART SHOP RESALES,598743,439730210,24-Feb-15,49.46,COLART FINE ART & GRAPHICS LTD,SP0003399
WANDSWORTH COUNCIL,CRS,ENVIRONMENT & COMMUNITY,Revenue,"EQUIPMENT, FURNITURE & MATS",MATERIALS-ART SHOP RESALES,598743,439730210,24-Feb-15,59.67,COLART FINE ART & GRAPHICS LTD,SP0003399
WANDSWORTH COUNCIL,CRS,ENVIRONMENT & COMMUNITY,Revenue,"EQUIPMENT, FURNITURE & MATS",MATERIALS-ART SHOP RESALES,598743,439730210,24-Feb-15,9.12,COLART FINE ART & GRAPHICS LTD,SP0003399
WANDSWORTH COUNCIL,CRS,ENVIRONMENT & COMMUNITY,Revenue,"EQUIPMENT, FURNITURE & MATS",MATERIALS-ART SHOP RESALES,598743,439730210,24-Feb-15,24.68,COLART FINE ART & GRAPHICS LTD,SP0003399
WANDSWORTH COUNCIL,CRS,ENVIRONMENT & COMMUNITY,Revenue,"EQUIPMENT, FURNITURE & MATS",MATERIALS-ART SHOP RESALES,598743,439730210,24-Feb-15,6.25,COLART FINE ART & GRAPHICS LTD,SP0003399
WANDSWORTH COUNCIL,CRS,ENVIRONMENT & COMMUNITY,Revenue,"EQUIPMENT, FURNITURE & MATS",MATERIALS-ART SHOP RESALES,598743,439730210,24-Feb-15,24.68,COLART FINE ART & GRAPHICS LTD,SP0003399
WANDSWORTH COUNCIL,CRS,ENVIRONMENT & COMMUNITY,Revenue,"EQUIPMENT, FURNITURE & MATS",MATERIALS-ART SHOP RESALES,598743,439730210,24-Feb-15,12.49,COLART FINE ART & GRAPHICS LTD,SP0003399
WANDSWORTH COUNCIL,CRS,ENVIRONMENT & COMMUNITY,Revenue,"EQUIPMENT, FURNITURE & MATS",MATERIALS-ART SHOP RESALES,598743,439730210,24-Feb-15,10.65,COLART FINE ART & GRAPHICS LTD,SP0003399
WANDSWORTH COUNCIL,CRS,ENVIRONMENT & COMMUNITY,Revenue,"EQUIPMENT, FURNITURE & MATS",MATERIALS-ART SHOP RESALES,598743,439730210,24-Feb-15,16.26,COLART FINE ART & GRAPHICS LTD,SP0003399
WANDSWORTH COUNCIL,CRS,ENVIRONMENT & COMMUNITY,Revenue,"EQUIPMENT, FURNITURE & MATS",MATERIALS-ART SHOP RESALES,598743,439730210,24-Feb-15,14.81,COLART FINE ART & GRAPHICS LTD,SP0003399
WANDSWORTH COUNCIL,CRS,ENVIRONMENT & COMMUNITY,Revenue,"EQUIPMENT, FURNITURE & MATS",MATERIALS-ART SHOP RESALES,598743,439730210,24-Feb-15,14.81,COLART FINE ART & GRAPHICS LTD,SP0003399
WANDSWORTH COUNCIL,CRS,ENVIRONMENT & COMMUNITY,Revenue,"EQUIPMENT, FURNITURE & MATS",MATERIALS-ART SHOP RESALES,598743,439730210,24-Feb-15,39.63,COLART FINE ART & GRAPHICS LTD,SP0003399
WANDSWORTH COUNCIL,CRS,ENVIRONMENT & COMMUNITY,Revenue,"EQUIPMENT, FURNITURE & MATS",MATERIALS-ART SHOP RESALES,598743,439730210,24-Feb-15,9.12,COLART FINE ART & GRAPHICS LTD,SP0003399
WANDSWORTH COUNCIL,CRS,ENVIRONMENT & COMMUNITY,Revenue,"EQUIPMENT, FURNITURE & MATS",MATERIALS-ART SHOP RESALES,598743,439730210,24-Feb-15,10.94,COLART FINE ART & GRAPHICS LTD,SP0003399
WANDSWORTH COUNCIL,CRS,ENVIRONMENT & COMMUNITY,Revenue,"EQUIPMENT, FURNITURE & MATS",MATERIALS-ART SHOP RESALES,598743,439730210,24-Feb-15,19.08,COLART FINE ART & GRAPHICS LTD,SP0003399
WANDSWORTH COUNCIL,CRS,ENVIRONMENT & COMMUNITY,Revenue,"EQUIPMENT, FURNITURE & MATS",MATERIALS-ART SHOP RESALES,598743,439730210,24-Feb-15,24.12,COLART FINE ART & GRAPHICS LTD,SP0003399
WANDSWORTH COUNCIL,CRS,ENVIRONMENT & COMMUNITY,Revenue,"EQUIPMENT, FURNITURE & MATS",MATERIALS-ART SHOP RESALES,598743,439730210,24-Feb-15,19.74,COLART FINE ART & GRAPHICS LTD,SP0003399
WANDSWORTH COUNCIL,CRS,ENVIRONMENT & COMMUNITY,Revenue,"EQUIPMENT, FURNITURE & MATS",MATERIALS-ART SHOP RESALES,598743,439730210,24-Feb-15,16.62,COLART FINE ART & GRAPHICS LTD,SP0003399
WANDSWORTH COUNCIL,CRS,ENVIRONMENT & COMMUNITY,Revenue,"EQUIPMENT, FURNITURE & MATS",MATERIALS-ART SHOP RESALES,598743,439730210,24-Feb-15,11.01,COLART FINE ART & GRAPHICS LTD,SP0003399
WANDSWORTH COUNCIL,CRS,ENVIRONMENT & COMMUNITY,Revenue,"EQUIPMENT, FURNITURE & MATS",MATERIALS-ART SHOP RESALES,598743,439730210,24-Feb-15,12.99,COLART FINE ART & GRAPHICS LTD,SP0003399
WANDSWORTH COUNCIL,CRS,ENVIRONMENT & COMMUNITY,Revenue,"EQUIPMENT, FURNITURE & MATS",MATERIALS-ART SHOP RESALES,598743,439730210,24-Feb-15,16.62,COLART FINE ART & GRAPHICS LTD,SP0003399
WANDSWORTH COUNCIL,CRS,ENVIRONMENT & COMMUNITY,Revenue,"EQUIPMENT, FURNITURE & MATS",MATERIALS-ART SHOP RESALES,598743,439730210,24-Feb-15,12.99,COLART FINE ART & GRAPHICS LTD,SP0003399
WANDSWORTH COUNCIL,CRS,ENVIRONMENT & COMMUNITY,Revenue,"EQUIPMENT, FURNITURE & MATS",MATERIALS-ART SHOP RESALES,598743,439730210,24-Feb-15,30.63,COLART FINE ART & GRAPHICS LTD,SP0003399
WANDSWORTH COUNCIL,NGF CES,ENVIRONMENT & COMMUNITY,Revenue,INDIRECT,TRAINING - EXTERNAL COURSES,590349,369400770,11-Feb-15,"1,200.00",COLIN & JULIE WALKER T/A CHURCH PARK C,SP0009216
WANDSWORTH COUNCIL,CES,ENVIRONMENT & COMMUNITY,Revenue,SERVICES,PROJECT WORK,597906,354134800,23-Feb-15,"23,408.46",COLLAGE ARTS LTD,SP0007149
WANDSWORTH COUNCIL,ASC,SOCIAL SERVICES,Revenue,VOL ASS,SUPPORTED HOUSING PROGRAMME,601935,142148030,27-Feb-15,"2,768.92",COMFORT CARE SERVICES (UK) LTD,SP0005792
WANDSWORTH COUNCIL,ASC,SOCIAL SERVICES,Revenue,PRIVATE,EXTERNAL RESIDENTIAL CARE,600478,142245330,25-Feb-15,"2,768.92",COMFORT CARE SERVICES (UK) LTD,SP0005792
WANDSWORTH COUNCIL,NGF HTS,FINANCE,Revenue,"REPAIRS, ALTERATIONS & MTCE",SCHOOLS MAINTENANCE -  WORKS,596650,476010180,19-Feb-15,500.00,COMMERCIAL KITCHEN SERVICES(LONDON) LTD,SP0001075
WANDSWORTH COUNCIL,ASC,SOCIAL SERVICES,Revenue,VOL ASS,SUPPORTED HOUSING PROGRAMME,591435,142648030,12-Feb-15,"3,440.00",COMMUNITY HOUSING & THERAPY,SP0001366
WANDSWORTH COUNCIL,NGF CS,ADMINISTRATION,Revenue,INDIRECT,CHILDCARE VOUCHERS,20300605,123200650,10-Feb-15,677.21,COMPUTERSHARE VOUCHER SERVICES,2007281
WANDSWORTH COUNCIL,NGF CS,ADMINISTRATION,Revenue,INDIRECT,CHILDCARE VOUCHERS,20300606,123200650,10-Feb-15,105.66,COMPUTERSHARE VOUCHER SERVICES,2007281
WANDSWORTH COUNCIL,NGF CS,ADMINISTRATION,Revenue,INDIRECT,CHILDCARE VOUCHERS,20301014,123200650,20-Feb-15,"1,092.10",COMPUTERSHARE VOUCHER SERVICES,2007281
WANDSWORTH COUNCIL,NGF CS,ADMINISTRATION,Revenue,INDIRECT,CHILDCARE VOUCHERS,20301015,123200650,20-Feb-15,100.58,COMPUTERSHARE VOUCHER SERVICES,2007281
WANDSWORTH COUNCIL,NGF CS,ADMINISTRATION,Revenue,INDIRECT,CHILDCARE VOUCHERS,20301016,123200650,20-Feb-15,21.87,COMPUTERSHARE VOUCHER SERVICES,2007281
WANDSWORTH COUNCIL,BS,ADMINISTRATION,Revenue,OTHER DEBTORS,CHILDCARE VOUCHERS,20300605,6002B2950,10-Feb-15,"15,049.00",COMPUTERSHARE VOUCHER SERVICES,2007281
WANDSWORTH COUNCIL,BS,ADMINISTRATION,Revenue,OTHER DEBTORS,CHILDCARE VOUCHERS,20300606,6002B2950,10-Feb-15,"2,347.99",COMPUTERSHARE VOUCHER SERVICES,2007281
WANDSWORTH COUNCIL,BS,ADMINISTRATION,Revenue,OTHER DEBTORS,CHILDCARE VOUCHERS,20301014,6002B2950,20-Feb-15,"24,268.81",COMPUTERSHARE VOUCHER SERVICES,2007281
WANDSWORTH COUNCIL,BS,ADMINISTRATION,Revenue,OTHER DEBTORS,CHILDCARE VOUCHERS,20301015,6002B2950,20-Feb-15,"2,235.00",COMPUTERSHARE VOUCHER SERVICES,2007281
WANDSWORTH COUNCIL,BS,ADMINISTRATION,Revenue,OTHER DEBTORS,CHILDCARE VOUCHERS,20301016,6002B2950,20-Feb-15,486.00,COMPUTERSHARE VOUCHER SERVICES,2007281
WANDSWORTH COUNCIL,NGF HS,ENVIRONMENT & COMMUNITY,Revenue,"EQUIPMENT, FURNITURE & MATS","EQUIPMENT, FURNITURE & MATS",589996,470130000,11-Feb-15,"11,067.00",CONCRETE RESTORATION LTD,SP0005515
WANDSWORTH COUNCIL,NGF CS,ENVIRONMENT & COMMUNITY,Revenue,"EQUIPMENT, FURNITURE & MATS","EQUIPMENT, FURNITURE & MATS",584170,114030000,04-Feb-15,"5,040.00",CONDECO LIMITED,SP0007319
WANDSWORTH COUNCIL,ASC,SOCIAL SERVICES,Revenue,PRIVATE,EXTERNAL RESIDENTIAL CARE,593305,130245330,16-Feb-15,"7,400.00",CONDOVER COLLEGE LTD,SP0001641
WANDSWORTH COUNCIL,CS,FINANCE,Revenue,PRIVATE,BAILIFF SERVICES,20300191,381245100,04-Feb-15,"-3,349.80",CONFERO COLLECTIONS LTD,2000504
WANDSWORTH COUNCIL,CS,FINANCE,Revenue,PRIVATE,BAILIFF SERVICES,20300191,381245100,04-Feb-15,"3,349.80",CONFERO COLLECTIONS LTD,2000504
WANDSWORTH COUNCIL,CS,FINANCE,Revenue,PRIVATE,BAILIFF SERVICES,20300794,381245100,16-Feb-15,"2,644.60",CONFERO COLLECTIONS LTD,2000504
WANDSWORTH COUNCIL,CS,FINANCE,Revenue,PRIVATE,BAILIFF SERVICES,20300794,381245100,16-Feb-15,"-2,644.60",CONFERO COLLECTIONS LTD,2000504
WANDSWORTH COUNCIL,CRS,ENVIRONMENT & COMMUNITY,Revenue,PRINTING STAT & GEN OFFICE EXP,EVENTS PUBLICITY,601008,442833140,27-Feb-15,"2,100.00",CONRAD MURRAY,SP0009214
WANDSWORTH COUNCIL,ASC,SOCIAL SERVICES,Revenue,VOL ASS,SUPPORTED HOUSING PROGRAMME,593425,162448030,16-Feb-15,"2,400.00",CONSENSA CARE GROUP LTD,SP0001117
WANDSWORTH COUNCIL,CES,ENVIRONMENT & COMMUNITY,Revenue,GRANTS & SUBSCRIPTIONS,CONTRACTS TO VOLUNTARY ORGS,599780,340737550,25-Feb-15,"10,442.75",CONTACT A FAMILY,SP0002240
WANDSWORTH COUNCIL,CES,ENVIRONMENT & COMMUNITY,Revenue,GRANTS & SUBSCRIPTIONS,CONTRACTS TO VOLUNTARY ORGS,600959,340737550,26-Feb-15,"10,442.75",CONTACT A FAMILY,SP0002240
WANDSWORTH COUNCIL,CES,ENVIRONMENT & COMMUNITY,Revenue,SERVICES,STRATEGIC PROJECTS,588268,246134900,10-Feb-15,"1,868.50",CONTENDER CHARLIE LTD,SP0008275
WANDSWORTH COUNCIL,ERS,ENVIRONMENT & COMMUNITY,Revenue,PRIVATE,OCS-RECYCLING SERVICES,20300047,420246040,02-Feb-15,"5,145.72",CONTINENTAL LANDSCAPES LTD,2017090
WANDSWORTH COUNCIL,ERS,ENVIRONMENT & COMMUNITY,Revenue,PRIVATE,OCS-RECYCLING SERVICES,20300770,420246040,16-Feb-15,"5,079.09",CONTINENTAL LANDSCAPES LTD,2017090
WANDSWORTH COUNCIL,ERS,ENVIRONMENT & COMMUNITY,Revenue,PRIVATE,OCS-CONTRACT DEFAULTS,20300047,420645150,02-Feb-15,-670.87,CONTINENTAL LANDSCAPES LTD,2017090
WANDSWORTH COUNCIL,ERS,ENVIRONMENT & COMMUNITY,Revenue,PRIVATE,OCS-CONTRACT DEFAULTS,20300770,420645150,16-Feb-15,-280.39,CONTINENTAL LANDSCAPES LTD,2017090
WANDSWORTH COUNCIL,ERS,ENVIRONMENT & COMMUNITY,Revenue,PRIVATE,OCS-LEAF CLEARANCE,20300047,420646010,02-Feb-15,"13,322.58",CONTINENTAL LANDSCAPES LTD,2017090
WANDSWORTH COUNCIL,ERS,ENVIRONMENT & COMMUNITY,Revenue,PRIVATE,OCS-LITTER BINS SERVICE,20300047,420646020,02-Feb-15,"12,386.10",CONTINENTAL LANDSCAPES LTD,2017090
WANDSWORTH COUNCIL,ERS,ENVIRONMENT & COMMUNITY,Revenue,PRIVATE,OCS-LITTER BINS SERVICE,20300770,420646020,16-Feb-15,"12,386.10",CONTINENTAL LANDSCAPES LTD,2017090
WANDSWORTH COUNCIL,ERS,ENVIRONMENT & COMMUNITY,Revenue,PRIVATE,OCS-RAPID RESPONSE,20300047,420646030,02-Feb-15,"3,731.00",CONTINENTAL LANDSCAPES LTD,2017090
WANDSWORTH COUNCIL,ERS,ENVIRONMENT & COMMUNITY,Revenue,PRIVATE,OCS-RAPID RESPONSE,20300770,420646030,16-Feb-15,"4,510.00",CONTINENTAL LANDSCAPES LTD,2017090
WANDSWORTH COUNCIL,ERS,ENVIRONMENT & COMMUNITY,Revenue,PRIVATE,OCS-STREET CLEANSING,20300047,420646060,02-Feb-15,"271,842.34",CONTINENTAL LANDSCAPES LTD,2017090
WANDSWORTH COUNCIL,ERS,ENVIRONMENT & COMMUNITY,Revenue,PRIVATE,OCS-STREET CLEANSING,20300770,420646060,16-Feb-15,"271,842.34",CONTINENTAL LANDSCAPES LTD,2017090
WANDSWORTH COUNCIL,ERS,ENVIRONMENT & COMMUNITY,Revenue,PRIVATE,OCS-UNSPECIFIED WORKS,20300047,420646070,02-Feb-15,518.13,CONTINENTAL LANDSCAPES LTD,2017090
WANDSWORTH COUNCIL,ERS,ENVIRONMENT & COMMUNITY,Revenue,PRIVATE,OCS-UNSPECIFIED WORKS,20300770,420646070,16-Feb-15,120.04,CONTINENTAL LANDSCAPES LTD,2017090
WANDSWORTH COUNCIL,ERS,ENVIRONMENT & COMMUNITY,Revenue,PRIVATE,OCS-WASHING SERVICE,20300047,420646080,02-Feb-15,"2,054.40",CONTINENTAL LANDSCAPES LTD,2017090
WANDSWORTH COUNCIL,ERS,ENVIRONMENT & COMMUNITY,Revenue,PRIVATE,OCS-WASHING SERVICE,20300770,420646080,16-Feb-15,"2,054.40",CONTINENTAL LANDSCAPES LTD,2017090
WANDSWORTH COUNCIL,ERS,ENVIRONMENT & COMMUNITY,Revenue,PRIVATE,OCS-WEED CONTROL,20300047,420646090,02-Feb-15,"2,437.63",CONTINENTAL LANDSCAPES LTD,2017090
WANDSWORTH COUNCIL,ERS,ENVIRONMENT & COMMUNITY,Revenue,PRIVATE,OCS-WEED CONTROL,20300770,420646090,16-Feb-15,"2,437.63",CONTINENTAL LANDSCAPES LTD,2017090
WANDSWORTH COUNCIL,ERS,ENVIRONMENT & COMMUNITY,Revenue,RENTAL INCOME,DEPOT RENT,20300047,420681320,02-Feb-15,"-2,711.54",CONTINENTAL LANDSCAPES LTD,2017090
WANDSWORTH COUNCIL,ERS,ENVIRONMENT & COMMUNITY,Revenue,RENTAL INCOME,DEPOT RENT,20300770,420681320,16-Feb-15,"-2,711.54",CONTINENTAL LANDSCAPES LTD,2017090
WANDSWORTH COUNCIL,ERS,ENVIRONMENT & COMMUNITY,Revenue,RENTAL INCOME,DEPOT RENT-NON VAT,20300047,420682050,02-Feb-15,"-3,438.46",CONTINENTAL LANDSCAPES LTD,2017090
WANDSWORTH COUNCIL,ERS,ENVIRONMENT & COMMUNITY,Revenue,RENTAL INCOME,DEPOT RENT-NON VAT,20300770,420682050,16-Feb-15,"-3,438.46",CONTINENTAL LANDSCAPES LTD,2017090
WANDSWORTH COUNCIL,NGF ERS,ENVIRONMENT & COMMUNITY,Revenue,PRIVATE,OCS-STREET CLEANSING,20300047,420746060,02-Feb-15,"7,195.05",CONTINENTAL LANDSCAPES LTD,2017090
WANDSWORTH COUNCIL,NGF ERS,ENVIRONMENT & COMMUNITY,Revenue,PRIVATE,OCS-STREET CLEANSING,20300770,420746060,16-Feb-15,"7,195.05",CONTINENTAL LANDSCAPES LTD,2017090
WANDSWORTH COUNCIL,PS,ENVIRONMENT & COMMUNITY,Revenue,SERVICES,LEGAL & COURT COSTS,20301169,460534600,23-Feb-15,"6,920.00",Coral Racing Limited,2999999
WANDSWORTH COUNCIL,ASC,SOCIAL SERVICES,Revenue,PRIVATE,EXTERNAL RESIDENTIAL CARE,589263,130245330,11-Feb-15,"7,271.56",CORICH COMMUNITY CARE LTD,SP0000915
WANDSWORTH COUNCIL,ASC,SOCIAL SERVICES,Revenue,PRIVATE,ONE TO ONE CARE,589264,130246220,11-Feb-15,"1,600.44",CORICH COMMUNITY CARE LTD,SP0000915
WANDSWORTH COUNCIL,NGF CS,ENVIRONMENT & COMMUNITY,Revenue,OTHER AGENCIES,DISBURSEMENTS,599773,120643250,26-Feb-15,637.50,CORNERSTONE BACS,SP0004477
WANDSWORTH COUNCIL,ASC,SOCIAL SERVICES,Revenue,PRIVATE,EXTERNAL DAYCARE,593426,130245290,16-Feb-15,963.20,COUNTRY CARE,SP0000090
WANDSWORTH COUNCIL,ASC,SOCIAL SERVICES,Revenue,PRIVATE,EXTERNAL RESIDENTIAL CARE,595066,130245330,18-Feb-15,"3,115.76",COUNTRY CARE,SP0000090
WANDSWORTH COUNCIL,ASC,SOCIAL SERVICES,Revenue,CUSTOMER & CLIENT RECPTS - EXT,CL CONT EXTERNAL RESIDENTIAL,595066,130280720,18-Feb-15,-319.40,COUNTRY CARE,SP0000090
WANDSWORTH COUNCIL,ASC,SOCIAL SERVICES,Revenue,PRIVATE,EXTERNAL RESIDENTIAL CARE,591487,130245330,12-Feb-15,"1,776.74",COUNTRY COURT CARE,SP0009215
WANDSWORTH COUNCIL,ASC,SOCIAL SERVICES,Revenue,CUSTOMER & CLIENT RECPTS - EXT,CL CONT EXTERNAL RESIDENTIAL,591487,130280720,12-Feb-15,-665.27,COUNTRY COURT CARE,SP0009215
WANDSWORTH COUNCIL,ASC,SOCIAL SERVICES,Revenue,PRIVATE,EXTERNAL RESIDENTIAL CARE,591471,142645330,12-Feb-15,"1,752.89",COUNTRY COURT CARE,SP0009215
WANDSWORTH COUNCIL,ASC,SOCIAL SERVICES,Revenue,CUSTOMER & CLIENT RECPTS - EXT,CL CONT EXTERNAL RESIDENTIAL,591471,142680720,12-Feb-15,-364.69,COUNTRY COURT CARE,SP0009215
WANDSWORTH COUNCIL,ASC,SOCIAL SERVICES,Revenue,PRIVATE,EXTERNAL RESIDENTIAL CARE,591468,152245330,12-Feb-15,"1,431.00",COUNTRY COURT CARE,SP0009215
WANDSWORTH COUNCIL,ASC,SOCIAL SERVICES,Revenue,PRIVATE,EXTERNAL RESIDENTIAL CARE,591472,152245330,12-Feb-15,"1,769.28",COUNTRY COURT CARE,SP0009215
WANDSWORTH COUNCIL,ASC,SOCIAL SERVICES,Revenue,PRIVATE,EXTERNAL RESIDENTIAL CARE,591473,152245330,12-Feb-15,"1,775.93",COUNTRY COURT CARE,SP0009215
WANDSWORTH COUNCIL,ASC,SOCIAL SERVICES,Revenue,PRIVATE,EXTERNAL RESIDENTIAL CARE,591474,152245330,12-Feb-15,"1,775.93",COUNTRY COURT CARE,SP0009215
WANDSWORTH COUNCIL,ASC,SOCIAL SERVICES,Revenue,PRIVATE,EXTERNAL RESIDENTIAL CARE,591475,152245330,12-Feb-15,"1,775.93",COUNTRY COURT CARE,SP0009215
WANDSWORTH COUNCIL,ASC,SOCIAL SERVICES,Revenue,PRIVATE,EXTERNAL RESIDENTIAL CARE,591476,152245330,12-Feb-15,"1,775.93",COUNTRY COURT CARE,SP0009215
WANDSWORTH COUNCIL,ASC,SOCIAL SERVICES,Revenue,PRIVATE,EXTERNAL RESIDENTIAL CARE,591481,152245330,12-Feb-15,"1,775.93",COUNTRY COURT CARE,SP0009215
WANDSWORTH COUNCIL,ASC,SOCIAL SERVICES,Revenue,PRIVATE,EXTERNAL RESIDENTIAL CARE,591482,152245330,12-Feb-15,"1,775.93",COUNTRY COURT CARE,SP0009215
WANDSWORTH COUNCIL,ASC,SOCIAL SERVICES,Revenue,PRIVATE,EXTERNAL RESIDENTIAL CARE,591484,152245330,12-Feb-15,"1,775.93",COUNTRY COURT CARE,SP0009215
WANDSWORTH COUNCIL,ASC,SOCIAL SERVICES,Revenue,PRIVATE,EXTERNAL RESIDENTIAL CARE,591485,152245330,12-Feb-15,"1,775.93",COUNTRY COURT CARE,SP0009215
WANDSWORTH COUNCIL,ASC,SOCIAL SERVICES,Revenue,PRIVATE,EXTERNAL RESIDENTIAL CARE,591486,152245330,12-Feb-15,"1,775.93",COUNTRY COURT CARE,SP0009215
WANDSWORTH COUNCIL,ASC,SOCIAL SERVICES,Revenue,PRIVATE,EXTERNAL RESIDENTIAL CARE,591489,152245330,12-Feb-15,"1,775.93",COUNTRY COURT CARE,SP0009215
WANDSWORTH COUNCIL,ASC,SOCIAL SERVICES,Revenue,PRIVATE,EXTERNAL RESIDENTIAL CARE,591490,152245330,12-Feb-15,"1,775.93",COUNTRY COURT CARE,SP0009215
WANDSWORTH COUNCIL,ASC,SOCIAL SERVICES,Revenue,PRIVATE,EXTERNAL RESIDENTIAL CARE,591491,152245330,12-Feb-15,"1,775.93",COUNTRY COURT CARE,SP0009215
WANDSWORTH COUNCIL,ASC,SOCIAL SERVICES,Revenue,PRIVATE,EXTERNAL RESIDENTIAL CARE,591492,152245330,12-Feb-15,"1,812.87",COUNTRY COURT CARE,SP0009215
WANDSWORTH COUNCIL,ASC,SOCIAL SERVICES,Revenue,PRIVATE,EXTERNAL RESIDENTIAL CARE,591493,152245330,12-Feb-15,"1,812.87",COUNTRY COURT CARE,SP0009215
WANDSWORTH COUNCIL,ASC,SOCIAL SERVICES,Revenue,PRIVATE,EXTERNAL RESIDENTIAL CARE,591494,152245330,12-Feb-15,"1,308.58",COUNTRY COURT CARE,SP0009215
WANDSWORTH COUNCIL,ASC,SOCIAL SERVICES,Revenue,PRIVATE,EXTERNAL RESIDENTIAL CARE,591495,152245330,12-Feb-15,"1,812.87",COUNTRY COURT CARE,SP0009215
WANDSWORTH COUNCIL,ASC,SOCIAL SERVICES,Revenue,PRIVATE,EXTERNAL RESIDENTIAL CARE,591496,152245330,12-Feb-15,"1,308.58",COUNTRY COURT CARE,SP0009215
WANDSWORTH COUNCIL,ASC,SOCIAL SERVICES,Revenue,CUSTOMER & CLIENT RECPTS - EXT,3rd PARTY EXTERNAL RESIDENTIAL,591489,152280020,12-Feb-15,-281.47,COUNTRY COURT CARE,SP0009215
WANDSWORTH COUNCIL,ASC,SOCIAL SERVICES,Revenue,CUSTOMER & CLIENT RECPTS - EXT,CL CONT EXTERNAL RESIDENTIAL,591472,152280720,12-Feb-15,-329.79,COUNTRY COURT CARE,SP0009215
WANDSWORTH COUNCIL,ASC,SOCIAL SERVICES,Revenue,CUSTOMER & CLIENT RECPTS - EXT,CL CONT EXTERNAL RESIDENTIAL,591473,152280720,12-Feb-15,-595.81,COUNTRY COURT CARE,SP0009215
WANDSWORTH COUNCIL,ASC,SOCIAL SERVICES,Revenue,CUSTOMER & CLIENT RECPTS - EXT,CL CONT EXTERNAL RESIDENTIAL,591475,152280720,12-Feb-15,-693.39,COUNTRY COURT CARE,SP0009215
WANDSWORTH COUNCIL,ASC,SOCIAL SERVICES,Revenue,CUSTOMER & CLIENT RECPTS - EXT,CL CONT EXTERNAL RESIDENTIAL,591481,152280720,12-Feb-15,-548.61,COUNTRY COURT CARE,SP0009215
WANDSWORTH COUNCIL,ASC,SOCIAL SERVICES,Revenue,CUSTOMER & CLIENT RECPTS - EXT,CL CONT EXTERNAL RESIDENTIAL,591482,152280720,12-Feb-15,-347.21,COUNTRY COURT CARE,SP0009215
WANDSWORTH COUNCIL,ASC,SOCIAL SERVICES,Revenue,CUSTOMER & CLIENT RECPTS - EXT,CL CONT EXTERNAL RESIDENTIAL,591484,152280720,12-Feb-15,-336.44,COUNTRY COURT CARE,SP0009215
WANDSWORTH COUNCIL,ASC,SOCIAL SERVICES,Revenue,CUSTOMER & CLIENT RECPTS - EXT,CL CONT EXTERNAL RESIDENTIAL,591485,152280720,12-Feb-15,-522.61,COUNTRY COURT CARE,SP0009215
WANDSWORTH COUNCIL,ASC,SOCIAL SERVICES,Revenue,CUSTOMER & CLIENT RECPTS - EXT,CL CONT EXTERNAL RESIDENTIAL,591486,152280720,12-Feb-15,-527.03,COUNTRY COURT CARE,SP0009215
WANDSWORTH COUNCIL,ASC,SOCIAL SERVICES,Revenue,CUSTOMER & CLIENT RECPTS - EXT,CL CONT EXTERNAL RESIDENTIAL,591489,152280720,12-Feb-15,-413.47,COUNTRY COURT CARE,SP0009215
WANDSWORTH COUNCIL,ASC,SOCIAL SERVICES,Revenue,CUSTOMER & CLIENT RECPTS - EXT,CL CONT EXTERNAL RESIDENTIAL,591490,152280720,12-Feb-15,-367.19,COUNTRY COURT CARE,SP0009215
WANDSWORTH COUNCIL,ASC,SOCIAL SERVICES,Revenue,CUSTOMER & CLIENT RECPTS - EXT,CL CONT EXTERNAL RESIDENTIAL,591491,152280720,12-Feb-15,-336.44,COUNTRY COURT CARE,SP0009215
WANDSWORTH COUNCIL,ASC,SOCIAL SERVICES,Revenue,CUSTOMER & CLIENT RECPTS - EXT,CL CONT EXTERNAL RESIDENTIAL,591492,152280720,12-Feb-15,-562.35,COUNTRY COURT CARE,SP0009215
WANDSWORTH COUNCIL,ASC,SOCIAL SERVICES,Revenue,CUSTOMER & CLIENT RECPTS - EXT,CL CONT EXTERNAL RESIDENTIAL,591493,152280720,12-Feb-15,-407.01,COUNTRY COURT CARE,SP0009215
WANDSWORTH COUNCIL,ASC,SOCIAL SERVICES,Revenue,CUSTOMER & CLIENT RECPTS - EXT,CL CONT EXTERNAL RESIDENTIAL,591494,152280720,12-Feb-15,-263.34,COUNTRY COURT CARE,SP0009215
WANDSWORTH COUNCIL,ASC,SOCIAL SERVICES,Revenue,CUSTOMER & CLIENT RECPTS - EXT,CL CONT EXTERNAL RESIDENTIAL,591495,152280720,12-Feb-15,-336.44,COUNTRY COURT CARE,SP0009215
WANDSWORTH COUNCIL,ASC,SOCIAL SERVICES,Revenue,CUSTOMER & CLIENT RECPTS - EXT,CL CONT EXTERNAL RESIDENTIAL,591496,152280720,12-Feb-15,-336.92,COUNTRY COURT CARE,SP0009215
WANDSWORTH COUNCIL,ASC,SOCIAL SERVICES,Revenue,PRIVATE,EXTERNAL RESIDENTIAL CARE,591477,152445330,12-Feb-15,"1,775.93",COUNTRY COURT CARE,SP0009215
WANDSWORTH COUNCIL,ASC,SOCIAL SERVICES,Revenue,PRIVATE,EXTERNAL RESIDENTIAL CARE,591480,152445330,12-Feb-15,"1,775.93",COUNTRY COURT CARE,SP0009215
WANDSWORTH COUNCIL,ASC,SOCIAL SERVICES,Revenue,PRIVATE,EXTERNAL RESIDENTIAL CARE,591488,152445330,12-Feb-15,"1,775.93",COUNTRY COURT CARE,SP0009215
WANDSWORTH COUNCIL,ASC,SOCIAL SERVICES,Revenue,CUSTOMER & CLIENT RECPTS - EXT,CL CONT EXTERNAL RESIDENTIAL,591477,152480720,12-Feb-15,-336.44,COUNTRY COURT CARE,SP0009215
WANDSWORTH COUNCIL,ASC,SOCIAL SERVICES,Revenue,CUSTOMER & CLIENT RECPTS - EXT,CL CONT EXTERNAL RESIDENTIAL,591488,152480720,12-Feb-15,-529.48,COUNTRY COURT CARE,SP0009215
WANDSWORTH COUNCIL,ASC,SOCIAL SERVICES,Revenue,PRIVATE,EXTERNAL RESIDENTIAL CARE,591469,152645330,12-Feb-15,"1,717.91",COUNTRY COURT CARE,SP0009215
WANDSWORTH COUNCIL,ASC,SOCIAL SERVICES,Revenue,PRIVATE,EXTERNAL RESIDENTIAL CARE,591479,152645330,12-Feb-15,"1,775.93",COUNTRY COURT CARE,SP0009215
WANDSWORTH COUNCIL,ASC,SOCIAL SERVICES,Revenue,PRIVATE,EXTERNAL RESIDENTIAL CARE,591483,152645330,12-Feb-15,"1,775.93",COUNTRY COURT CARE,SP0009215
WANDSWORTH COUNCIL,ASC,SOCIAL SERVICES,Revenue,CUSTOMER & CLIENT RECPTS - EXT,CL CONT EXTERNAL RESIDENTIAL,591469,152680720,12-Feb-15,-265.90,COUNTRY COURT CARE,SP0009215
WANDSWORTH COUNCIL,ASC,SOCIAL SERVICES,Revenue,CUSTOMER & CLIENT RECPTS - EXT,CL CONT EXTERNAL RESIDENTIAL,591483,152680720,12-Feb-15,-336.44,COUNTRY COURT CARE,SP0009215
WANDSWORTH COUNCIL,PS,ENVIRONMENT & COMMUNITY,Revenue,RENTS,RENTS,590308,385213400,12-Feb-15,"4,911.36",COVENT GARDEN MARKET AUTHORITY,SP0001990
WANDSWORTH COUNCIL,PS,ENVIRONMENT & COMMUNITY,Revenue,RENTS,RENTS,590309,385213400,12-Feb-15,"4,911.36",COVENT GARDEN MARKET AUTHORITY,SP0001990
WANDSWORTH COUNCIL,ASC,SOCIAL SERVICES,Revenue,PRIVATE,EXTERNAL DAYCARE,589339,130245290,11-Feb-15,806.04,CRAEGMOOR FACILITIES CO LTD,SP0000306
WANDSWORTH COUNCIL,ASC,SOCIAL SERVICES,Revenue,PRIVATE,EXTERNAL RESIDENTIAL CARE,589265,130245330,11-Feb-15,"3,029.72",CRAEGMOOR FACILITIES CO LTD,SP0000306
WANDSWORTH COUNCIL,ASC,SOCIAL SERVICES,Revenue,CUSTOMER & CLIENT RECPTS - EXT,CL CONT EXTERNAL RESIDENTIAL,589265,130280720,11-Feb-15,-319.40,CRAEGMOOR FACILITIES CO LTD,SP0000306
WANDSWORTH COUNCIL,ASC,SOCIAL SERVICES,Revenue,PRIVATE,EXTERNAL RESIDENTIAL CARE,598778,130245330,24-Feb-15,"3,523.28",CRAEGMOOR OLD RECTORY BREDE PRIORY,SP0001621
WANDSWORTH COUNCIL,ASC,SOCIAL SERVICES,Revenue,CUSTOMER & CLIENT RECPTS - EXT,CL CONT EXTERNAL RESIDENTIAL,598778,130280720,24-Feb-15,-281.40,CRAEGMOOR OLD RECTORY BREDE PRIORY,SP0001621
WANDSWORTH COUNCIL,PH,SOCIAL SERVICES,Revenue,PRIVATE,EXTERNAL RESIDENTIAL CARE,585170,140145330,05-Feb-15,"2,989.29",CRANSTOUN DRUG SERVICES,SP0000202
WANDSWORTH COUNCIL,PH,SOCIAL SERVICES,Revenue,PRIVATE,EXTERNAL RESIDENTIAL CARE,585171,140145330,05-Feb-15,"2,892.86",CRANSTOUN DRUG SERVICES,SP0000202
WANDSWORTH COUNCIL,PH,SOCIAL SERVICES,Revenue,PRIVATE,EXTERNAL RESIDENTIAL CARE,593309,140145330,16-Feb-15,"2,989.29",CRANSTOUN DRUG SERVICES,SP0000202
WANDSWORTH COUNCIL,PH,SOCIAL SERVICES,Revenue,PRIVATE,EXTERNAL RESIDENTIAL CARE,593313,140145330,16-Feb-15,"2,989.29",CRANSTOUN DRUG SERVICES,SP0000202
WANDSWORTH COUNCIL,PH,SOCIAL SERVICES,Revenue,PRIVATE,EXTERNAL RESIDENTIAL CARE,593314,140145330,16-Feb-15,"5,977.07",CRANSTOUN DRUG SERVICES,SP0000202
WANDSWORTH COUNCIL,PH,SOCIAL SERVICES,Revenue,PRIVATE,EXTERNAL RESIDENTIAL CARE,593315,140145330,16-Feb-15,"2,149.72",CRANSTOUN DRUG SERVICES,SP0000202
WANDSWORTH COUNCIL,PH,SOCIAL SERVICES,Revenue,PRIVATE,EXTERNAL RESIDENTIAL CARE,601925,140145330,27-Feb-15,"2,989.29",CRANSTOUN DRUG SERVICES,SP0000202
WANDSWORTH COUNCIL,PH,SOCIAL SERVICES,Revenue,PRIVATE,EXTERNAL RESIDENTIAL CARE,601927,140145330,27-Feb-15,"1,928.57",CRANSTOUN DRUG SERVICES,SP0000202
WANDSWORTH COUNCIL,PH,SOCIAL SERVICES,Revenue,PRIVATE,EXTERNAL RESIDENTIAL CARE,601928,140145330,27-Feb-15,"2,892.87",CRANSTOUN DRUG SERVICES,SP0000202
WANDSWORTH COUNCIL,PH,SOCIAL SERVICES,Revenue,PRIVATE,EXTERNAL RESIDENTIAL CARE,601929,140145330,27-Feb-15,"2,989.29",CRANSTOUN DRUG SERVICES,SP0000202
WANDSWORTH COUNCIL,PH,SOCIAL SERVICES,Revenue,CUSTOMER & CLIENT RECPTS - EXT,CL CONT EXTERNAL RESIDENTIAL,593309,140180720,16-Feb-15,-212.57,CRANSTOUN DRUG SERVICES,SP0000202
WANDSWORTH COUNCIL,PH,SOCIAL SERVICES,Revenue,CUSTOMER & CLIENT RECPTS - EXT,CL CONT EXTERNAL RESIDENTIAL,593313,140180720,16-Feb-15,-212.57,CRANSTOUN DRUG SERVICES,SP0000202
WANDSWORTH COUNCIL,PH,SOCIAL SERVICES,Revenue,CUSTOMER & CLIENT RECPTS - EXT,CL CONT EXTERNAL RESIDENTIAL,593314,140180720,16-Feb-15,-423.64,CRANSTOUN DRUG SERVICES,SP0000202
WANDSWORTH COUNCIL,PH,SOCIAL SERVICES,Revenue,CUSTOMER & CLIENT RECPTS - EXT,CL CONT EXTERNAL RESIDENTIAL,601925,140180720,27-Feb-15,-212.57,CRANSTOUN DRUG SERVICES,SP0000202
WANDSWORTH COUNCIL,PH,SOCIAL SERVICES,Revenue,CUSTOMER & CLIENT RECPTS - EXT,CL CONT EXTERNAL RESIDENTIAL,601927,140180720,27-Feb-15,-137.14,CRANSTOUN DRUG SERVICES,SP0000202
WANDSWORTH COUNCIL,PH,SOCIAL SERVICES,Revenue,CUSTOMER & CLIENT RECPTS - EXT,CL CONT EXTERNAL RESIDENTIAL,601928,140180720,27-Feb-15,-205.72,CRANSTOUN DRUG SERVICES,SP0000202
